Workbook

Sheet Cover
... 2 more rows

Sheet User Notes - Read Me
... 6 more rows

Sheet Building Energy
B2: SITE ENERGY DEMAND ESTIMATOR
B3: This model uses macros accessed using the buttons below, which may take some time to run. The Export Demand Data macro will also create a new excel file once complete.
D5: Press to update once all known data has been entered | I5: 1
I6: Input values where known (in aggregate above headings, or by building below) | P6: =IF(E6=0,"Reference values - unscaled","Reference values - scaled") -> Reference values - unscaled | U6: Estimated Direct Emissions from fuels consumed on site (excludes emissions from external heat networks not on site)
... 7 more rows

Sheet Energy Benchmarks
A1: Benchmark data used in model | C1: Add new data to the bottom of the table and then re-sort data
A3: NDB_ActivityClass | B3: NDB_RetrofittingOption | C3: BaseTimePeriod | D3: BaseCDay | E3: Product | F3: BaseDiurnalTimeSlice | G3: Benchmark
A4: Cafes | B4: ASHP_EXISTING | C4: 2020 | D4: Autumn_Weekday | E4: ELECO_400V | F4: 0 | G4: 0.00312867311
A5: Cafes | B5: ASHP_EXISTING | C5: 2020 | D5: Autumn_Weekday | E5: ELECO_400V | F5: 1 | G5: 0.003136257669
A6: Cafes | B6: ASHP_EXISTING | C6: 2020 | D6: Autumn_Weekday | E6: ELECO_400V | F6: 2 | G6: 0.003131923916
A7: Cafes | B7: ASHP_EXISTING | C7: 2020 | D7: Autumn_Weekday | E7: ELECO_400V | F7: 3 | G7: 0.003111340299
... 8 more rows

Sheet Demand Scaling (hidden)
C2: Scaling Factors Existing
B3: Building Number | C3: Electricity Scaling | D3: Gas Fuel Scaling | E3: Biomass Scaling | F3: Heat Network Scaling
B4: 1 | C4: 0.6438804489 | D4: 0.5071745722 | E4: 1.631435042 | F4: 1
B5: 2 | C5: 0.6438804489 | D5: 0.5071745722 | E5: 1.631435042 | F5: 1
B6: 3 | C6: 0.6438804489 | D6: 0.5071745722 | E6: 1.631435042 | F6: 1
B7: 4 | C7: 0.26843976 | D7: 0.5071745722 | E7: 1.631435042 | F7: 2.47775844
... 8 more rows

Sheet Heat Network Demand Curves (hidden)
A1: Site Demand (kWh) | B1: =SUM(D1:L1) -> 240000 | C1: =2*MAX(M1:QB1) -> 205.5512532 | D1: =SUM(D5:D36) -> 37619.11583 | E1: 15047.65476 | F1: 1346.551721 | G1: 49819.11041 | H1: 19927.65532 | I1: 12761.95977 | J1: 5104.786767 | K1: 70158.25796 | L1: 28214.90746 | M1: 10.03166468 | N1: 10.2091832 | O1: 10.20321312 | P1: 10.01844431 | Q1: 10.2896701 | R1: 9.495354935 | S1: 10.3433428 | T1: 9.768925496 | U1: 10.05310305 | V1: 9.991421332 | W1: 9.898618233 | X1: 10.25707568 | Y1: 12.1929212 | Z1: 12.37426342 | AA1: 14.45099155 | AB1: 15.23873297 | AC1: 15.67299775 | AD1: 15.36690213 | AE1: 15.04144383 | AF1: 14.78388446 | AG1: 14.56999311 | AH1: 14.3828597 | AI1: 13.9499277 | AJ1: 13.2536346 | AK1: 13.0617945 | AL1: 12.42623524 | AM1: 13.69114174 | AN1: 13.22570009 | AO1: 12.68658091 | AP1: 12.35667227 | AQ1: 12.49532287 | AR1: 12.04407308 | AS1: 12.39072396 | AT1: 11.42539851 | AU1: 12.19794067 | AV1: 11.90808952 | AW1: 12.54324788 | AX1: 12.08571283 | AY1: 12.01545317 | AZ1: 11.78080703 | BA1: 12.69557424 | BB1: 11.44977671 | BC1: 11.84533504 | BD1: 10.3941767 | BE1: 10.44992447 | BF1: 10.45535235 | BG1: 9.763806656 | BH1: 9.942678827 | BI1: 10.03166468 | BJ1: 10.2091832 | BK1: 10.20321312 | BL1: 10.01844431 | BM1: 10.2896701 | BN1: 9.495354935 | BO1: 10.3433428 | BP1: =SUM(BP5:BP36) -> 9.768925496 | BQ1: 10.05310305 | BR1: 9.991421332 | BS1: 9.898618233 | BT1: 10.25707568 | BU1: 12.1929212 | BV1: 12.37426342 | BW1: 14.45099155 | BX1: 15.23873297 | BY1: 15.67299775 | BZ1: 15.36690213 | CA1: 15.04144383 | CB1: 14.78388446 | CC1: 14.56999311 | CD1: 14.3828597 | CE1: 13.9499277 | CF1: 13.2536346 | CG1: 13.0617945 | CH1: 12.42623524 | CI1: 13.69114174 | CJ1: 13.22570009 | CK1: 12.68658091 | CL1: 12.35667227 | CM1: 12.49532287 | CN1: 12.04407308 | CO1: 12.39072396 | CP1: 11.42539851 | CQ1: 12.19794067 | CR1: 11.90808952 | CS1: 12.54324788 | CT1: 12.08571283 | CU1: 12.01545317 | CV1: 11.78080703 | CW1: 12.69557424 | CX1: 11.44977671 | CY1: 11.84533504 | CZ1: 10.3941767 | DA1: 10.44992447 | DB1: 10.45535235 | DC1: 9.763806656 | DD1: 9.942678827 | DE1: 58.40049063 | DF1: 58.46261311 | DG1: 60.71213068 | DH1: 58.03467568 | DI1: 57.25172087 | DJ1: 58.15312808 | DK1: 58.0236209 | DL1: 57.70716458 | DM1: 57.25752654 | DN1: 58.90805229 | DO1: 57.64065045 | DP1: 57.74547833 | DQ1: 59.48704202 | DR1: 59.2037193 | DS1: 94.05474057 | DT1: 94.61224031 | DU1: 99.87082218 | DV1: 101.8714648 | DW1: 100.3317399 | DX1: 102.7756266 | DY1: 100.1603046 | DZ1: 100.4317686 | EA1: 99.56232961 | EB1: =SUM(EB5:EB36) -> 96.64456266 | EC1: 95.91820402 | ED1: 95.29511816 | EE1: 93.88104326 | EF1: 94.16938615 | EG1: 93.99308323 | EH1: 93.53909961 | EI1: 94.35905585 | EJ1: 96.50590206 | EK1: 91.98662842 | EL1: 90.648941 | EM1: 90.44436939 | EN1: 90.47429735 | EO1: 90.45448677 | EP1: 92.58167265 | EQ1: 87.78486247 | ER1: 88.26574931 | ES1: 86.70522989 | ET1: 87.20876238 | EU1: 74.34136586 | EV1: 65.88903138 | EW1: 65.21748203 | EX1: 64.28856853 | EY1: 58.88955647 | EZ1: 56.7604304 | FA1: 12.45968113 | FB1: 12.6243336 | FC1: 12.42469254 | FD1: 12.4436257 | FE1: 12.8010858 | FF1: 12.25016553 | FG1: 12.22611122 | FH1: 12.18946786 | FI1: 12.90316557 | FJ1: 12.68833727 | FK1: 12.64234916 | FL1: 12.50240426 | FM1: 22.3049527 | FN1: 17.10860508 | FO1: 21.99898123 | FP1: 21.51020616 | FQ1: 22.37403609 | FR1: 21.79790728 | FS1: 21.61504938 | FT1: 21.12280157 | FU1: 19.99221551 | FV1: 19.18883259 | FW1: 19.18988465 | FX1: 18.00472796 | FY1: 17.80128082 | FZ1: 17.43386134 | GA1: 17.18316532 | GB1: 16.80471367 | GC1: 16.46247808 | GD1: 16.10672002 | GE1: 15.57776683 | GF1: 15.65474281 | GG1: 15.26699487 | GH1: 15.18387468 | GI1: 15.91757894 | GJ1: 15.36280662 | GK1: 15.57042144 | GL1: 16.21875957 | GM1: 15.79774395 | GN1: =SUM(GN5:GN36) -> 16.40769408 | GO1: 16.35391518 | GP1: 14.50202896 | GQ1: 14.05426693 | GR1: 13.4919806 | GS1: 13.17124645 | GT1: 12.59811714 | GU1: 12.72952088 | GV1: 12.33281861 | GW1: 12.45968113 | GX1: 12.6243336 | GY1: 12.42469254 | GZ1: 12.4436257 | HA1: 12.8010858 | HB1: 12.25016553 | HC1: 12.22611122 | HD1: 12.18946786 | HE1: 12.90316557 | HF1: 12.68833727 | HG1: 12.64234916 | HH1: 12.50240426 | HI1: 22.3049527 | HJ1: 17.10860508 | HK1: 21.99898123 | HL1: 21.51020616 | HM1: 22.37403609 | HN1: 21.79790728 | HO1: 21.61504938 | HP1: 21.12280157 | HQ1: 19.99221551 | HR1: 19.18883259 | HS1: 19.18988465 | HT1: 18.00472796 | HU1: 17.80128082 | HV1: 17.43386134 | HW1: 17.18316532 | HX1: 16.80471367 | HY1: 16.46247808 | HZ1: 16.10672002 | IA1: 15.57776683 | IB1: 15.65474281 | IC1: 15.26699487 | ID1: 15.18387468 | IE1: 15.91757894 | IF1: 15.36280662 | IG1: 15.57042144 | IH1: 16.21875957 | II1: 15.79774395 | IJ1: 16.40769408 | IK1: 16.35391518 | IL1: 14.50202896 | IM1: 14.05426693 | IN1: 13.4919806 | IO1: 13.17124645 | IP1: 12.59811714 | IQ1: 12.72952088 | IR1: 12.33281861 | IS1: 3.479029887 | IT1: 3.211286122 | IU1: 3.236133827 | IV1: 3.173915067 | IW1: 3.10649971 | IX1: 2.987054418 | IY1: 3.126005573 | IZ1: =SUM(IZ5:IZ36) -> 2.84012415 | JA1: 2.866320645 | JB1: 2.989514716 | JC1: 2.903584983 | JD1: 2.91710818 | JE1: 5.998192914 | JF1: 5.670024022 | JG1: 5.792258626 | JH1: 5.494351469 | JI1: 6.057351309 | JJ1: 5.77825782 | JK1: 5.812052299 | JL1: 5.507336965 | JM1: 5.313049833 | JN1: 5.002733781 | JO1: 5.074956136 | JP1: 5.345954106 | JQ1: 5.07154751 | JR1: 4.959831228 | JS1: 5.01766091 | JT1: 4.931830175 | JU1: 5.031893391 | JV1: 4.428577001 | JW1: 4.166916754 | JX1: 3.995111393 | JY1: 3.881591992 | JZ1: 3.921398417 | KA1: 3.612805053 | KB1: 3.656791261 | KC1: 3.684362467 | KD1: 3.701333998 | KE1: 3.15657311 | KF1: 3.57536862 | KG1: 3.622828355 | KH1: 3.194808521 | KI1: 3.193632149 | KJ1: 3.072376208 | KK1: 3.119939116 | KL1: 2.843818965 | KM1: 3.107022058 | KN1: 3.168846859 | KO1: 3.479029887 | KP1: 3.211286122 | KQ1: 3.236133827 | KR1: 3.173915067 | KS1: 3.10649971 | KT1: 2.987054418 | KU1: 3.126005573 | KV1: 2.84012415 | KW1: 2.866320645 | KX1: 2.989514716 | KY1: 2.903584983 | KZ1: 2.91710818 | LA1: 5.998192914 | LB1: 5.670024022 | LC1: 5.792258626 | LD1: 5.494351469 | LE1: 6.057351309 | LF1: 5.77825782 | LG1: 5.812052299 | LH1: 5.507336965 | LI1: 5.313049833 | LJ1: 5.002733781 | LK1: 5.074956136 | LL1: =SUM(LL5:LL36) -> 5.345954106 | LM1: 5.07154751 | LN1: 4.959831228 | LO1: 5.01766091 | LP1: 4.931830175 | LQ1: 5.031893391 | LR1: 4.428577001 | LS1: 4.166916754 | LT1: 3.995111393 | LU1: 3.881591992 | LV1: 3.921398417 | LW1: 3.612805053 | LX1: 3.656791261 | LY1: 3.684362467 | LZ1: 3.701333998 | MA1: 3.15657311 | MB1: 3.57536862 | MC1: 3.622828355 | MD1: 3.194808521 | ME1: 3.193632149 | MF1: 3.072376208 | MG1: 3.119939116 | MH1: 2.843818965 | MI1: 3.107022058 | MJ1: 3.168846859 | MK1: 16.42928093 | ML1: 16.44675728 | MM1: 17.07959368 | MN1: 16.32636953 | MO1: 16.10610794 | MP1: 16.35969267 | MQ1: 16.32325958 | MR1: 16.23423379 | MS1: 16.1077412 | MT1: 16.57206866 | MU1: 16.21552198 | MV1: 16.24501225 | MW1: 16.73495059 | MX1: 16.65524598 | MY1: 26.45956805 | MZ1: 26.6164044 | NA1: 28.09575359 | NB1: 28.65857625 | NC1: 28.2254194 | ND1: 28.91293591 | NE1: 28.17719107 | NF1: 28.25355956 | NG1: 28.00896817 | NH1: 27.18813923 | NI1: 26.98379933 | NJ1: 26.80851224 | NK1: 26.41070336 | NL1: 26.49182025 | NM1: 26.44222254 | NN1: 26.31450745 | NO1: 26.54517831 | NP1: 27.1491311 | NQ1: 25.87776479 | NR1: 25.50144531 | NS1: 25.44389503 | NT1: 25.45231439 | NU1: 25.44674126 | NV1: 26.04516319 | NW1: 24.69572004 | NX1: =SUM(NX5:NX36) -> 24.83100358 | NY1: 24.39199679 | NZ1: 24.53365103 | OA1: 20.91378294 | OB1: 18.53596426 | OC1: 18.34704336 | OD1: 18.08572054 | OE1: 16.56686539 | OF1: 15.96789765 | OG1: 16.42928093 | OH1: 16.44675728 | OI1: 17.07959368 | OJ1: 16.32636953 | OK1: 16.10610794 | OL1: 16.35969267 | OM1: 16.32325958 | ON1: 16.23423379 | OO1: 16.1077412 | OP1: 16.57206866 | OQ1: 16.21552198 | OR1: 16.24501225 | OS1: 16.73495059 | OT1: 16.65524598 | OU1: 26.45956805 | OV1: 26.6164044 | OW1: 28.09575359 | OX1: 28.65857625 | OY1: 28.2254194 | OZ1: 28.91293591 | PA1: 28.17719107 | PB1: 28.25355956 | PC1: 28.00896817 | PD1: 27.18813923 | PE1: 26.98379933 | PF1: 26.80851224 | PG1: 26.41070336 | PH1: 26.49182025 | PI1: 26.44222254 | PJ1: 26.31450745 | PK1: 26.54517831 | PL1: 27.1491311 | PM1: 25.87776479 | PN1: 25.50144531 | PO1: 25.44389503 | PP1: 25.45231439 | PQ1: 25.44674126 | PR1: 26.04516319 | PS1: 24.69572004 | PT1: 24.83100358 | PU1: 24.39199679 | PV1: 24.53365103 | PW1: 20.91378294 | PX1: 18.53596426 | PY1: 18.34704336 | PZ1: 18.08572054 | QA1: 16.56686539 | QB1: 15.96789765
A2: Product | D2: =D1/(365*VLOOKUP(D$4,Lists2!$D$2:$E$10,2,FALSE)) -> 577.1700886 | E2: =E1/(365*VLOOKUP(E$4,Lists2!$D$2:$E$10,2,FALSE)) -> 577.1700886 | F2: =F1/(365*VLOOKUP(F$4,Lists2!$D$2:$E$10,2,FALSE)) -> 3846.90594 | G2: =G1/(365*VLOOKUP(G$4,Lists2!$D$2:$E$10,2,FALSE)) -> 764.3481177 | H2: =H1/(365*VLOOKUP(H$4,Lists2!$D$2:$E$10,2,FALSE)) -> 764.3481177 | I2: =I1/(365*VLOOKUP(I$4,Lists2!$D$2:$E$10,2,FALSE)) -> 195.7999621 | J2: =J1/(365*VLOOKUP(J$4,Lists2!$D$2:$E$10,2,FALSE)) -> 195.7999621 | K2: =K1/(365*VLOOKUP(K$4,Lists2!$D$2:$E$10,2,FALSE)) -> 1082.215196 | L2: =L1/(365*VLOOKUP(L$4,Lists2!$D$2:$E$10,2,FALSE)) -> 1082.215196 | M2: HEAT_DMD
A3: Season | M3: Autumn_Weekday | BI3: Autumn_Weekend | DE3: Peak_Winter | FA3: Spring_Weekday | GW3: Spring_Weekend | IS3: Summer_Weekday | KO3: Summer_Weekend | MK3: Winter_Weekday | OG3: Winter_Weekend
A4: Building Number | B4: Annual | C4: Peak | D4: Autumn_Weekday | E4: Autumn_Weekend | F4: Peak_Winter | G4: Spring_Weekday | H4: Spring_Weekend | I4: Summer_Weekday | J4: Summer_Weekend | K4: Winter_Weekday | L4: Winter_Weekend | M4: 0 | N4: 1 | O4: 2 | P4: 3 | Q4: 4 | R4: 5 | S4: 6 | T4: 7 | U4: 8 | V4: 9 | W4: 10 | X4: 11 | Y4: 12 | Z4: 13 | AA4: 14 | AB4: 15 | AC4: 16 | AD4: 17 | AE4: 18 | AF4: 19 | AG4: 20 | AH4: 21 | AI4: 22 | AJ4: 23 | AK4: 24 | AL4: 25 | AM4: 26 | AN4: 27 | AO4: 28 | AP4: 29 | AQ4: 30 | AR4: 31 | AS4: 32 | AT4: 33 | AU4: 34 | AV4: 35 | AW4: 36 | AX4: 37 | AY4: 38 | AZ4: 39 | BA4: 40 | BB4: 41 | BC4: 42 | BD4: 43 | BE4: 44 | BF4: 45 | BG4: 46 | BH4: 47 | BI4: 0 | BJ4: 1 | BK4: 2 | BL4: 3 | BM4: 4 | BN4: 5 | BO4: 6 | BP4: 7 | BQ4: 8 | BR4: 9 | BS4: 10 | BT4: 11 | BU4: 12 | BV4: 13 | BW4: 14 | BX4: 15 | BY4: 16 | BZ4: 17 | CA4: 18 | CB4: 19 | CC4: 20 | CD4: 21 | CE4: 22 | CF4: 23 | CG4: 24 | CH4: 25 | CI4: 26 | CJ4: 27 | CK4: 28 | CL4: 29 | CM4: 30 | CN4: 31 | CO4: 32 | CP4: 33 | CQ4: 34 | CR4: 35 | CS4: 36 | CT4: 37 | CU4: 38 | CV4: 39 | CW4: 40 | CX4: 41 | CY4: 42 | CZ4: 43 | DA4: 44 | DB4: 45 | DC4: 46 | DD4: 47 | DE4: 0 | DF4: 1 | DG4: 2 | DH4: 3 | DI4: 4 | DJ4: 5 | DK4: 6 | DL4: 7 | DM4: 8 | DN4: 9 | DO4: 10 | DP4: 11 | DQ4: 12 | DR4: 13 | DS4: 14 | DT4: 15 | DU4: 16 | DV4: 17 | DW4: 18 | DX4: 19 | DY4: 20 | DZ4: 21 | EA4: 22 | EB4: 23 | EC4: 24 | ED4: 25 | EE4: 26 | EF4: 27 | EG4: 28 | EH4: 29 | EI4: 30 | EJ4: 31 | EK4: 32 | EL4: 33 | EM4: 34 | EN4: 35 | EO4: 36 | EP4: 37 | EQ4: 38 | ER4: 39 | ES4: 40 | ET4: 41 | EU4: 42 | EV4: 43 | EW4: 44 | EX4: 45 | EY4: 46 | EZ4: 47 | FA4: 0 | FB4: 1 | FC4: 2 | FD4: 3 | FE4: 4 | FF4: 5 | FG4: 6 | FH4: 7 | FI4: 8 | FJ4: 9 | FK4: 10 | FL4: 11 | FM4: 12 | FN4: 13 | FO4: 14 | FP4: 15 | FQ4: 16 | FR4: 17 | FS4: 18 | FT4: 19 | FU4: 20 | FV4: 21 | FW4: 22 | FX4: 23 | FY4: 24 | FZ4: 25 | GA4: 26 | GB4: 27 | GC4: 28 | GD4: 29 | GE4: 30 | GF4: 31 | GG4: 32 | GH4: 33 | GI4: 34 | GJ4: 35 | GK4: 36 | GL4: 37 | GM4: 38 | GN4: 39 | GO4: 40 | GP4: 41 | GQ4: 42 | GR4: 43 | GS4: 44 | GT4: 45 | GU4: 46 | GV4: 47 | GW4: 0 | GX4: 1 | GY4: 2 | GZ4: 3 | HA4: 4 | HB4: 5 | HC4: 6 | HD4: 7 | HE4: 8 | HF4: 9 | HG4: 10 | HH4: 11 | HI4: 12 | HJ4: 13 | HK4: 14 | HL4: 15 | HM4: 16 | HN4: 17 | HO4: 18 | HP4: 19 | HQ4: 20 | HR4: 21 | HS4: 22 | HT4: 23 | HU4: 24 | HV4: 25 | HW4: 26 | HX4: 27 | HY4: 28 | HZ4: 29 | IA4: 30 | IB4: 31 | IC4: 32 | ID4: 33 | IE4: 34 | IF4: 35 | IG4: 36 | IH4: 37 | II4: 38 | IJ4: 39 | IK4: 40 | IL4: 41 | IM4: 42 | IN4: 43 | IO4: 44 | IP4: 45 | IQ4: 46 | IR4: 47 | IS4: 0 | IT4: 1 | IU4: 2 | IV4: 3 | IW4: 4 | IX4: 5 | IY4: 6 | IZ4: 7 | JA4: 8 | JB4: 9 | JC4: 10 | JD4: 11 | JE4: 12 | JF4: 13 | JG4: 14 | JH4: 15 | JI4: 16 | JJ4: 17 | JK4: 18 | JL4: 19 | JM4: 20 | JN4: 21 | JO4: 22 | JP4: 23 | JQ4: 24 | JR4: 25 | JS4: 26 | JT4: 27 | JU4: 28 | JV4: 29 | JW4: 30 | JX4: 31 | JY4: 32 | JZ4: 33 | KA4: 34 | KB4: 35 | KC4: 36 | KD4: 37 | KE4: 38 | KF4: 39 | KG4: 40 | KH4: 41 | KI4: 42 | KJ4: 43 | KK4: 44 | KL4: 45 | KM4: 46 | KN4: 47 | KO4: 0 | KP4: 1 | KQ4: 2 | KR4: 3 | KS4: 4 | KT4: 5 | KU4: 6 | KV4: 7 | KW4: 8 | KX4: 9 | KY4: 10 | KZ4: 11 | LA4: 12 | LB4: 13 | LC4: 14 | LD4: 15 | LE4: 16 | LF4: 17 | LG4: 18 | LH4: 19 | LI4: 20 | LJ4: 21 | LK4: 22 | LL4: 23 | LM4: 24 | LN4: 25 | LO4: 26 | LP4: 27 | LQ4: 28 | LR4: 29 | LS4: 30 | LT4: 31 | LU4: 32 | LV4: 33 | LW4: 34 | LX4: 35 | LY4: 36 | LZ4: 37 | MA4: 38 | MB4: 39 | MC4: 40 | MD4: 41 | ME4: 42 | MF4: 43 | MG4: 44 | MH4: 45 | MI4: 46 | MJ4: 47 | MK4: 0 | ML4: 1 | MM4: 2 | MN4: 3 | MO4: 4 | MP4: 5 | MQ4: 6 | MR4: 7 | MS4: 8 | MT4: 9 | MU4: 10 | MV4: 11 | MW4: 12 | MX4: 13 | MY4: 14 | MZ4: 15 | NA4: 16 | NB4: 17 | NC4: 18 | ND4: 19 | NE4: 20 | NF4: 21 | NG4: 22 | NH4: 23 | NI4: 24 | NJ4: 25 | NK4: 26 | NL4: 27 | NM4: 28 | NN4: 29 | NO4: 30 | NP4: 31 | NQ4: 32 | NR4: 33 | NS4: 34 | NT4: 35 | NU4: 36 | NV4: 37 | NW4: 38 | NX4: 39 | NY4: 40 | NZ4: 41 | OA4: 42 | OB4: 43 | OC4: 44 | OD4: 45 | OE4: 46 | OF4: 47 | OG4: 0 | OH4: 1 | OI4: 2 | OJ4: 3 | OK4: 4 | OL4: 5 | OM4: 6 | ON4: 7 | OO4: 8 | OP4: 9 | OQ4: 10 | OR4: 11 | OS4: 12 | OT4: 13 | OU4: 14 | OV4: 15 | OW4: 16 | OX4: 17 | OY4: 18 | OZ4: 19 | PA4: 20 | PB4: 21 | PC4: 22 | PD4: 23 | PE4: 24 | PF4: 25 | PG4: 26 | PH4: 27 | PI4: 28 | PJ4: 29 | PK4: 30 | PL4: 31 | PM4: 32 | PN4: 33 | PO4: 34 | PP4: 35 | PQ4: 36 | PR4: 37 | PS4: 38 | PT4: 39 | PU4: 40 | PV4: 41 | PW4: 42 | PX4: 43 | PY4: 44 | PZ4: 45 | QA4: 46 | QB4: 47
A5: =IF('Building Energy'!B13=0,"",'Building Energy'!B13) -> 1 | B5: =SUM(D5:L5) -> 0 | C5: =2*MAX(M5:QB5) -> 0 | D5: =365*VLOOKUP(D$4,Lists2!$D$2:$E$10,2,FALSE)*SUM(M5:BH5) -> 0 | E5: =365*VLOOKUP(E$4,Lists2!$D$2:$E$10,2,FALSE)*SUM(BI5:DD5) -> 0 | F5: =365*VLOOKUP(F$4,Lists2!$D$2:$E$10,2,FALSE)*SUM(DE5:EZ5) -> 0 | G5: =365*VLOOKUP(G$4,Lists2!$D$2:$E$10,2,FALSE)*SUM(FA5:GV5) -> 0 | H5: =365*VLOOKUP(H$4,Lists2!$D$2:$E$10,2,FALSE)*SUM(GW5:IR5) -> 0 | I5: =365*VLOOKUP(I$4,Lists2!$D$2:$E$10,2,FALSE)*SUM(IS5:KN5) -> 0 | J5: =365*VLOOKUP(J$4,Lists2!$D$2:$E$10,2,FALSE)*SUM(KO5:MJ5) -> 0 | K5: =365*VLOOKUP(K$4,Lists2!$D$2:$E$10,2,FALSE)*SUM(MK5:OF5) -> 0 | L5: =365*VLOOKUP(L$4,Lists2!$D$2:$E$10,2,FALSE)*SUM(OG5:QB5) -> 0 | M5: ='Demand Scaling'!$F4*'Building Energy'!$O13*SUMIFS('Energy Benchmarks'!$G$4:$G$221188,'Energy Benchmarks'!$A$4:$A$221188,'Building Energy'!$G13,'Energy Benchmarks'!$B$4:$B$221188,'Building Energy'!$H13,'Energy Benchmarks'!$D$4:$D$221188,$M$3,'Energy Benchmarks'!$E$4:$E$221188,$M$2,'Energy Benchmarks'!$F$4:$F$221188,M$4) -> 0 | N5: ='Demand Scaling'!$F4*'Building Energy'!$O13*SUMIFS('Energy Benchmarks'!$G$4:$G$221188,'Energy Benchmarks'!$A$4:$A$221188,'Building Energy'!$G13,'Energy Benchmarks'!$B$4:$B$221188,'Building Energy'!$H13,'Energy Benchmarks'!$D$4:$D$221188,$M$3,'Energy Benchmarks'!$E$4:$E$221188,$M$2,'Energy Benchmarks'!$F$4:$F$221188,N$4) -> 0 | O5: ='Demand Scaling'!$F4*'Building Energy'!$O13*SUMIFS('Energy Benchmarks'!$G$4:$G$221188,'Energy Benchmarks'!$A$4:$A$221188,'Building Energy'!$G13,'Energy Benchmarks'!$B$4:$B$221188,'Building Energy'!$H13,'Energy Benchmarks'!$D$4:$D$221188,$M$3,'Energy Benchmarks'!$E$4:$E$221188,$M$2,'Energy Benchmarks'!$F$4:$F$221188,O$4) -> 0 | P5: ='Demand Scaling'!$F4*'Building Energy'!$O13*SUMIFS('Energy Benchmarks'!$G$4:$G$221188,'Energy Benchmarks'!$A$4:$A$221188,'Building Energy'!$G13,'Energy Benchmarks'!$B$4:$B$221188,'Building Energy'!$H13,'Energy Benchmarks'!$D$4:$D$221188,$M$3,'Energy Benchmarks'!$E$4:$E$221188,$M$2,'Energy Benchmarks'!$F$4:$F$221188,P$4) -> 0 | Q5: ='Demand Scaling'!$F4*'Building Energy'!$O13*SUMIFS('Energy Benchmarks'!$G$4:$G$221188,'Energy Benchmarks'!$A$4:$A$221188,'Building Energy'!$G13,'Energy Benchmarks'!$B$4:$B$221188,'Building Energy'!$H13,'Energy Benchmarks'!$D$4:$D$221188,$M$3,'Energy Benchmarks'!$E$4:$E$221188,$M$2,'Energy Benchmarks'!$F$4:$F$221188,Q$4) -> 0 | R5: ='Demand Scaling'!$F4*'Building Energy'!$O13*SUMIFS('Energy Benchmarks'!$G$4:$G$221188,'Energy Benchmarks'!$A$4:$A$221188,'Building Energy'!$G13,'Energy Benchmarks'!$B$4:$B$221188,'Building Energy'!$H13,'Energy Benchmarks'!$D$4:$D$221188,$M$3,'Energy Benchmarks'!$E$4:$E$221188,$M$2,'Energy Benchmarks'!$F$4:$F$221188,R$4) -> 0 | S5: ='Demand Scaling'!$F4*'Building Energy'!$O13*SUMIFS('Energy Benchmarks'!$G$4:$G$221188,'Energy Benchmarks'!$A$4:$A$221188,'Building Energy'!$G13,'Energy Benchmarks'!$B$4:$B$221188,'Building Energy'!$H13,'Energy Benchmarks'!$D$4:$D$221188,$M$3,'Energy Benchmarks'!$E$4:$E$221188,$M$2,'Energy Benchmarks'!$F$4:$F$221188,S$4) -> 0 | T5: ='Demand Scaling'!$F4*'Building Energy'!$O13*SUMIFS('Energy Benchmarks'!$G$4:$G$221188,'Energy Benchmarks'!$A$4:$A$221188,'Building Energy'!$G13,'Energy Benchmarks'!$B$4:$B$221188,'Building Energy'!$H13,'Energy Benchmarks'!$D$4:$D$221188,$M$3,'Energy Benchmarks'!$E$4:$E$221188,$M$2,'Energy Benchmarks'!$F$4:$F$221188,T$4) -> 0 | U5: ='Demand Scaling'!$F4*'Building Energy'!$O13*SUMIFS('Energy Benchmarks'!$G$4:$G$221188,'Energy Benchmarks'!$A$4:$A$221188,'Building Energy'!$G13,'Energy Benchmarks'!$B$4:$B$221188,'Building Energy'!$H13,'Energy Benchmarks'!$D$4:$D$221188,$M$3,'Energy Benchmarks'!$E$4:$E$221188,$M$2,'Energy Benchmarks'!$F$4:$F$221188,U$4) -> 0 | V5: ='Demand Scaling'!$F4*'Building Energy'!$O13*SUMIFS('Energy Benchmarks'!$G$4:$G$221188,'Energy Benchmarks'!$A$4:$A$221188,'Building Energy'!$G13,'Energy Benchmarks'!$B$4:$B$221188,'Building Energy'!$H13,'Energy Benchmarks'!$D$4:$D$221188,$M$3,'Energy Benchmarks'!$E$4:$E$221188,$M$2,'Energy Benchmarks'!$F$4:$F$221188,V$4) -> 0 | W5: ='Demand Scaling'!$F4*'Building Energy'!$O13*SUMIFS('Energy Benchmarks'!$G$4:$G$221188,'Energy Benchmarks'!$A$4:$A$221188,'Building Energy'!$G13,'Energy Benchmarks'!$B$4:$B$221188,'Building Energy'!$H13,'Energy Benchmarks'!$D$4:$D$221188,$M$3,'Energy Benchmarks'!$E$4:$E$221188,$M$2,'Energy Benchmarks'!$F$4:$F$221188,W$4) -> 0 | X5: ='Demand Scaling'!$F4*'Building Energy'!$O13*SUMIFS('Energy Benchmarks'!$G$4:$G$221188,'Energy Benchmarks'!$A$4:$A$221188,'Building Energy'!$G13,'Energy Benchmarks'!$B$4:$B$221188,'Building Energy'!$H13,'Energy Benchmarks'!$D$4:$D$221188,$M$3,'Energy Benchmarks'!$E$4:$E$221188,$M$2,'Energy Benchmarks'!$F$4:$F$221188,X$4) -> 0 | Y5: ='Demand Scaling'!$F4*'Building Energy'!$O13*SUMIFS('Energy Benchmarks'!$G$4:$G$221188,'Energy Benchmarks'!$A$4:$A$221188,'Building Energy'!$G13,'Energy Benchmarks'!$B$4:$B$221188,'Building Energy'!$H13,'Energy Benchmarks'!$D$4:$D$221188,$M$3,'Energy Benchmarks'!$E$4:$E$221188,$M$2,'Energy Benchmarks'!$F$4:$F$221188,Y$4) -> 0 | Z5: ='Demand Scaling'!$F4*'Building Energy'!$O13*SUMIFS('Energy Benchmarks'!$G$4:$G$221188,'Energy Benchmarks'!$A$4:$A$221188,'Building Energy'!$G13,'Energy Benchmarks'!$B$4:$B$221188,'Building Energy'!$H13,'Energy Benchmarks'!$D$4:$D$221188,$M$3,'Energy Benchmarks'!$E$4:$E$221188,$M$2,'Energy Benchmarks'!$F$4:$F$221188,Z$4) -> 0 | AA5: ='Demand Scaling'!$F4*'Building Energy'!$O13*SUMIFS('Energy Benchmarks'!$G$4:$G$221188,'Energy Benchmarks'!$A$4:$A$221188,'Building Energy'!$G13,'Energy Benchmarks'!$B$4:$B$221188,'Building Energy'!$H13,'Energy Benchmarks'!$D$4:$D$221188,$M$3,'Energy Benchmarks'!$E$4:$E$221188,$M$2,'Energy Benchmarks'!$F$4:$F$221188,AA$4) -> 0 | AB5: ='Demand Scaling'!$F4*'Building Energy'!$O13*SUMIFS('Energy Benchmarks'!$G$4:$G$221188,'Energy Benchmarks'!$A$4:$A$221188,'Building Energy'!$G13,'Energy Benchmarks'!$B$4:$B$221188,'Building Energy'!$H13,'Energy Benchmarks'!$D$4:$D$221188,$M$3,'Energy Benchmarks'!$E$4:$E$221188,$M$2,'Energy Benchmarks'!$F$4:$F$221188,AB$4) -> 0 | AC5: ='Demand Scaling'!$F4*'Building Energy'!$O13*SUMIFS('Energy Benchmarks'!$G$4:$G$221188,'Energy Benchmarks'!$A$4:$A$221188,'Building Energy'!$G13,'Energy Benchmarks'!$B$4:$B$221188,'Building Energy'!$H13,'Energy Benchmarks'!$D$4:$D$221188,$M$3,'Energy Benchmarks'!$E$4:$E$221188,$M$2,'Energy Benchmarks'!$F$4:$F$221188,AC$4) -> 0 | AD5: ='Demand Scaling'!$F4*'Building Energy'!$O13*SUMIFS('Energy Benchmarks'!$G$4:$G$221188,'Energy Benchmarks'!$A$4:$A$221188,'Building Energy'!$G13,'Energy Benchmarks'!$B$4:$B$221188,'Building Energy'!$H13,'Energy Benchmarks'!$D$4:$D$221188,$M$3,'Energy Benchmarks'!$E$4:$E$221188,$M$2,'Energy Benchmarks'!$F$4:$F$221188,AD$4) -> 0 | AE5: ='Demand Scaling'!$F4*'Building Energy'!$O13*SUMIFS('Energy Benchmarks'!$G$4:$G$221188,'Energy Benchmarks'!$A$4:$A$221188,'Building Energy'!$G13,'Energy Benchmarks'!$B$4:$B$221188,'Building Energy'!$H13,'Energy Benchmarks'!$D$4:$D$221188,$M$3,'Energy Benchmarks'!$E$4:$E$221188,$M$2,'Energy Benchmarks'!$F$4:$F$221188,AE$4) -> 0 | AF5: ='Demand Scaling'!$F4*'Building Energy'!$O13*SUMIFS('Energy Benchmarks'!$G$4:$G$221188,'Energy Benchmarks'!$A$4:$A$221188,'Building Energy'!$G13,'Energy Benchmarks'!$B$4:$B$221188,'Building Energy'!$H13,'Energy Benchmarks'!$D$4:$D$221188,$M$3,'Energy Benchmarks'!$E$4:$E$221188,$M$2,'Energy Benchmarks'!$F$4:$F$221188,AF$4) -> 0 | AG5: ='Demand Scaling'!$F4*'Building Energy'!$O13*SUMIFS('Energy Benchmarks'!$G$4:$G$221188,'Energy Benchmarks'!$A$4:$A$221188,'Building Energy'!$G13,'Energy Benchmarks'!$B$4:$B$221188,'Building Energy'!$H13,'Energy Benchmarks'!$D$4:$D$221188,$M$3,'Energy Benchmarks'!$E$4:$E$221188,$M$2,'Energy Benchmarks'!$F$4:$F$221188,AG$4) -> 0 | AH5: ='Demand Scaling'!$F4*'Building Energy'!$O13*SUMIFS('Energy Benchmarks'!$G$4:$G$221188,'Energy Benchmarks'!$A$4:$A$221188,'Building Energy'!$G13,'Energy Benchmarks'!$B$4:$B$221188,'Building Energy'!$H13,'Energy Benchmarks'!$D$4:$D$221188,$M$3,'Energy Benchmarks'!$E$4:$E$221188,$M$2,'Energy Benchmarks'!$F$4:$F$221188,AH$4) -> 0 | AI5: ='Demand Scaling'!$F4*'Building Energy'!$O13*SUMIFS('Energy Benchmarks'!$G$4:$G$221188,'Energy Benchmarks'!$A$4:$A$221188,'Building Energy'!$G13,'Energy Benchmarks'!$B$4:$B$221188,'Building Energy'!$H13,'Energy Benchmarks'!$D$4:$D$221188,$M$3,'Energy Benchmarks'!$E$4:$E$221188,$M$2,'Energy Benchmarks'!$F$4:$F$221188,AI$4) -> 0 | AJ5: ='Demand Scaling'!$F4*'Building Energy'!$O13*SUMIFS('Energy Benchmarks'!$G$4:$G$221188,'Energy Benchmarks'!$A$4:$A$221188,'Building Energy'!$G13,'Energy Benchmarks'!$B$4:$B$221188,'Building Energy'!$H13,'Energy Benchmarks'!$D$4:$D$221188,$M$3,'Energy Benchmarks'!$E$4:$E$221188,$M$2,'Energy Benchmarks'!$F$4:$F$221188,AJ$4) -> 0 | AK5: ='Demand Scaling'!$F4*'Building Energy'!$O13*SUMIFS('Energy Benchmarks'!$G$4:$G$221188,'Energy Benchmarks'!$A$4:$A$221188,'Building Energy'!$G13,'Energy Benchmarks'!$B$4:$B$221188,'Building Energy'!$H13,'Energy Benchmarks'!$D$4:$D$221188,$M$3,'Energy Benchmarks'!$E$4:$E$221188,$M$2,'Energy Benchmarks'!$F$4:$F$221188,AK$4) -> 0 | AL5: ='Demand Scaling'!$F4*'Building Energy'!$O13*SUMIFS('Energy Benchmarks'!$G$4:$G$221188,'Energy Benchmarks'!$A$4:$A$221188,'Building Energy'!$G13,'Energy Benchmarks'!$B$4:$B$221188,'Building Energy'!$H13,'Energy Benchmarks'!$D$4:$D$221188,$M$3,'Energy Benchmarks'!$E$4:$E$221188,$M$2,'Energy Benchmarks'!$F$4:$F$221188,AL$4) -> 0 | AM5: ='Demand Scaling'!$F4*'Building Energy'!$O13*SUMIFS('Energy Benchmarks'!$G$4:$G$221188,'Energy Benchmarks'!$A$4:$A$221188,'Building Energy'!$G13,'Energy Benchmarks'!$B$4:$B$221188,'Building Energy'!$H13,'Energy Benchmarks'!$D$4:$D$221188,$M$3,'Energy Benchmarks'!$E$4:$E$221188,$M$2,'Energy Benchmarks'!$F$4:$F$221188,AM$4) -> 0 | AN5: ='Demand Scaling'!$F4*'Building Energy'!$O13*SUMIFS('Energy Benchmarks'!$G$4:$G$221188,'Energy Benchmarks'!$A$4:$A$221188,'Building Energy'!$G13,'Energy Benchmarks'!$B$4:$B$221188,'Building Energy'!$H13,'Energy Benchmarks'!$D$4:$D$221188,$M$3,'Energy Benchmarks'!$E$4:$E$221188,$M$2,'Energy Benchmarks'!$F$4:$F$221188,AN$4) -> 0 | AO5: ='Demand Scaling'!$F4*'Building Energy'!$O13*SUMIFS('Energy Benchmarks'!$G$4:$G$221188,'Energy Benchmarks'!$A$4:$A$221188,'Building Energy'!$G13,'Energy Benchmarks'!$B$4:$B$221188,'Building Energy'!$H13,'Energy Benchmarks'!$D$4:$D$221188,$M$3,'Energy Benchmarks'!$E$4:$E$221188,$M$2,'Energy Benchmarks'!$F$4:$F$221188,AO$4) -> 0 | AP5: ='Demand Scaling'!$F4*'Building Energy'!$O13*SUMIFS('Energy Benchmarks'!$G$4:$G$221188,'Energy Benchmarks'!$A$4:$A$221188,'Building Energy'!$G13,'Energy Benchmarks'!$B$4:$B$221188,'Building Energy'!$H13,'Energy Benchmarks'!$D$4:$D$221188,$M$3,'Energy Benchmarks'!$E$4:$E$221188,$M$2,'Energy Benchmarks'!$F$4:$F$221188,AP$4) -> 0 | AQ5: ='Demand Scaling'!$F4*'Building Energy'!$O13*SUMIFS('Energy Benchmarks'!$G$4:$G$221188,'Energy Benchmarks'!$A$4:$A$221188,'Building Energy'!$G13,'Energy Benchmarks'!$B$4:$B$221188,'Building Energy'!$H13,'Energy Benchmarks'!$D$4:$D$221188,$M$3,'Energy Benchmarks'!$E$4:$E$221188,$M$2,'Energy Benchmarks'!$F$4:$F$221188,AQ$4) -> 0 | AR5: ='Demand Scaling'!$F4*'Building Energy'!$O13*SUMIFS('Energy Benchmarks'!$G$4:$G$221188,'Energy Benchmarks'!$A$4:$A$221188,'Building Energy'!$G13,'Energy Benchmarks'!$B$4:$B$221188,'Building Energy'!$H13,'Energy Benchmarks'!$D$4:$D$221188,$M$3,'Energy Benchmarks'!$E$4:$E$221188,$M$2,'Energy Benchmarks'!$F$4:$F$221188,AR$4) -> 0 | AS5: ='Demand Scaling'!$F4*'Building Energy'!$O13*SUMIFS('Energy Benchmarks'!$G$4:$G$221188,'Energy Benchmarks'!$A$4:$A$221188,'Building Energy'!$G13,'Energy Benchmarks'!$B$4:$B$221188,'Building Energy'!$H13,'Energy Benchmarks'!$D$4:$D$221188,$M$3,'Energy Benchmarks'!$E$4:$E$221188,$M$2,'Energy Benchmarks'!$F$4:$F$221188,AS$4) -> 0 | AT5: ='Demand Scaling'!$F4*'Building Energy'!$O13*SUMIFS('Energy Benchmarks'!$G$4:$G$221188,'Energy Benchmarks'!$A$4:$A$221188,'Building Energy'!$G13,'Energy Benchmarks'!$B$4:$B$221188,'Building Energy'!$H13,'Energy Benchmarks'!$D$4:$D$221188,$M$3,'Energy Benchmarks'!$E$4:$E$221188,$M$2,'Energy Benchmarks'!$F$4:$F$221188,AT$4) -> 0 | AU5: ='Demand Scaling'!$F4*'Building Energy'!$O13*SUMIFS('Energy Benchmarks'!$G$4:$G$221188,'Energy Benchmarks'!$A$4:$A$221188,'Building Energy'!$G13,'Energy Benchmarks'!$B$4:$B$221188,'Building Energy'!$H13,'Energy Benchmarks'!$D$4:$D$221188,$M$3,'Energy Benchmarks'!$E$4:$E$221188,$M$2,'Energy Benchmarks'!$F$4:$F$221188,AU$4) -> 0 | AV5: ='Demand Scaling'!$F4*'Building Energy'!$O13*SUMIFS('Energy Benchmarks'!$G$4:$G$221188,'Energy Benchmarks'!$A$4:$A$221188,'Building Energy'!$G13,'Energy Benchmarks'!$B$4:$B$221188,'Building Energy'!$H13,'Energy Benchmarks'!$D$4:$D$221188,$M$3,'Energy Benchmarks'!$E$4:$E$221188,$M$2,'Energy Benchmarks'!$F$4:$F$221188,AV$4) -> 0 | AW5: ='Demand Scaling'!$F4*'Building Energy'!$O13*SUMIFS('Energy Benchmarks'!$G$4:$G$221188,'Energy Benchmarks'!$A$4:$A$221188,'Building Energy'!$G13,'Energy Benchmarks'!$B$4:$B$221188,'Building Energy'!$H13,'Energy Benchmarks'!$D$4:$D$221188,$M$3,'Energy Benchmarks'!$E$4:$E$221188,$M$2,'Energy Benchmarks'!$F$4:$F$221188,AW$4) -> 0 | AX5: ='Demand Scaling'!$F4*'Building Energy'!$O13*SUMIFS('Energy Benchmarks'!$G$4:$G$221188,'Energy Benchmarks'!$A$4:$A$221188,'Building Energy'!$G13,'Energy Benchmarks'!$B$4:$B$221188,'Building Energy'!$H13,'Energy Benchmarks'!$D$4:$D$221188,$M$3,'Energy Benchmarks'!$E$4:$E$221188,$M$2,'Energy Benchmarks'!$F$4:$F$221188,AX$4) -> 0 | AY5: ='Demand Scaling'!$F4*'Building Energy'!$O13*SUMIFS('Energy Benchmarks'!$G$4:$G$221188,'Energy Benchmarks'!$A$4:$A$221188,'Building Energy'!$G13,'Energy Benchmarks'!$B$4:$B$221188,'Building Energy'!$H13,'Energy Benchmarks'!$D$4:$D$221188,$M$3,'Energy Benchmarks'!$E$4:$E$221188,$M$2,'Energy Benchmarks'!$F$4:$F$221188,AY$4) -> 0 | AZ5: ='Demand Scaling'!$F4*'Building Energy'!$O13*SUMIFS('Energy Benchmarks'!$G$4:$G$221188,'Energy Benchmarks'!$A$4:$A$221188,'Building Energy'!$G13,'Energy Benchmarks'!$B$4:$B$221188,'Building Energy'!$H13,'Energy Benchmarks'!$D$4:$D$221188,$M$3,'Energy Benchmarks'!$E$4:$E$221188,$M$2,'Energy Benchmarks'!$F$4:$F$221188,AZ$4) -> 0 | BA5: ='Demand Scaling'!$F4*'Building Energy'!$O13*SUMIFS('Energy Benchmarks'!$G$4:$G$221188,'Energy Benchmarks'!$A$4:$A$221188,'Building Energy'!$G13,'Energy Benchmarks'!$B$4:$B$221188,'Building Energy'!$H13,'Energy Benchmarks'!$D$4:$D$221188,$M$3,'Energy Benchmarks'!$E$4:$E$221188,$M$2,'Energy Benchmarks'!$F$4:$F$221188,BA$4) -> 0 | BB5: ='Demand Scaling'!$F4*'Building Energy'!$O13*SUMIFS('Energy Benchmarks'!$G$4:$G$221188,'Energy Benchmarks'!$A$4:$A$221188,'Building Energy'!$G13,'Energy Benchmarks'!$B$4:$B$221188,'Building Energy'!$H13,'Energy Benchmarks'!$D$4:$D$221188,$M$3,'Energy Benchmarks'!$E$4:$E$221188,$M$2,'Energy Benchmarks'!$F$4:$F$221188,BB$4) -> 0 | BC5: ='Demand Scaling'!$F4*'Building Energy'!$O13*SUMIFS('Energy Benchmarks'!$G$4:$G$221188,'Energy Benchmarks'!$A$4:$A$221188,'Building Energy'!$G13,'Energy Benchmarks'!$B$4:$B$221188,'Building Energy'!$H13,'Energy Benchmarks'!$D$4:$D$221188,$M$3,'Energy Benchmarks'!$E$4:$E$221188,$M$2,'Energy Benchmarks'!$F$4:$F$221188,BC$4) -> 0 | BD5: ='Demand Scaling'!$F4*'Building Energy'!$O13*SUMIFS('Energy Benchmarks'!$G$4:$G$221188,'Energy Benchmarks'!$A$4:$A$221188,'Building Energy'!$G13,'Energy Benchmarks'!$B$4:$B$221188,'Building Energy'!$H13,'Energy Benchmarks'!$D$4:$D$221188,$M$3,'Energy Benchmarks'!$E$4:$E$221188,$M$2,'Energy Benchmarks'!$F$4:$F$221188,BD$4) -> 0 | BE5: ='Demand Scaling'!$F4*'Building Energy'!$O13*SUMIFS('Energy Benchmarks'!$G$4:$G$221188,'Energy Benchmarks'!$A$4:$A$221188,'Building Energy'!$G13,'Energy Benchmarks'!$B$4:$B$221188,'Building Energy'!$H13,'Energy Benchmarks'!$D$4:$D$221188,$M$3,'Energy Benchmarks'!$E$4:$E$221188,$M$2,'Energy Benchmarks'!$F$4:$F$221188,BE$4) -> 0 | BF5: ='Demand Scaling'!$F4*'Building Energy'!$O13*SUMIFS('Energy Benchmarks'!$G$4:$G$221188,'Energy Benchmarks'!$A$4:$A$221188,'Building Energy'!$G13,'Energy Benchmarks'!$B$4:$B$221188,'Building Energy'!$H13,'Energy Benchmarks'!$D$4:$D$221188,$M$3,'Energy Benchmarks'!$E$4:$E$221188,$M$2,'Energy Benchmarks'!$F$4:$F$221188,BF$4) -> 0 | BG5: ='Demand Scaling'!$F4*'Building Energy'!$O13*SUMIFS('Energy Benchmarks'!$G$4:$G$221188,'Energy Benchmarks'!$A$4:$A$221188,'Building Energy'!$G13,'Energy Benchmarks'!$B$4:$B$221188,'Building Energy'!$H13,'Energy Benchmarks'!$D$4:$D$221188,$M$3,'Energy Benchmarks'!$E$4:$E$221188,$M$2,'Energy Benchmarks'!$F$4:$F$221188,BG$4) -> 0 | BH5: ='Demand Scaling'!$F4*'Building Energy'!$O13*SUMIFS('Energy Benchmarks'!$G$4:$G$221188,'Energy Benchmarks'!$A$4:$A$221188,'Building Energy'!$G13,'Energy Benchmarks'!$B$4:$B$221188,'Building Energy'!$H13,'Energy Benchmarks'!$D$4:$D$221188,$M$3,'Energy Benchmarks'!$E$4:$E$221188,$M$2,'Energy Benchmarks'!$F$4:$F$221188,BH$4) -> 0 | BI5: ='Demand Scaling'!$F4*'Building Energy'!$O13*SUMIFS('Energy Benchmarks'!$G$4:$G$221188,'Energy Benchmarks'!$A$4:$A$221188,'Building Energy'!$G13,'Energy Benchmarks'!$B$4:$B$221188,'Building Energy'!$H13,'Energy Benchmarks'!$D$4:$D$221188,$BI$3,'Energy Benchmarks'!$E$4:$E$221188,$M$2,'Energy Benchmarks'!$F$4:$F$221188,BI$4) -> 0 | BJ5: ='Demand Scaling'!$F4*'Building Energy'!$O13*SUMIFS('Energy Benchmarks'!$G$4:$G$221188,'Energy Benchmarks'!$A$4:$A$221188,'Building Energy'!$G13,'Energy Benchmarks'!$B$4:$B$221188,'Building Energy'!$H13,'Energy Benchmarks'!$D$4:$D$221188,$BI$3,'Energy Benchmarks'!$E$4:$E$221188,$M$2,'Energy Benchmarks'!$F$4:$F$221188,BJ$4) -> 0 | BK5: ='Demand Scaling'!$F4*'Building Energy'!$O13*SUMIFS('Energy Benchmarks'!$G$4:$G$221188,'Energy Benchmarks'!$A$4:$A$221188,'Building Energy'!$G13,'Energy Benchmarks'!$B$4:$B$221188,'Building Energy'!$H13,'Energy Benchmarks'!$D$4:$D$221188,$BI$3,'Energy Benchmarks'!$E$4:$E$221188,$M$2,'Energy Benchmarks'!$F$4:$F$221188,BK$4) -> 0 | BL5: ='Demand Scaling'!$F4*'Building Energy'!$O13*SUMIFS('Energy Benchmarks'!$G$4:$G$221188,'Energy Benchmarks'!$A$4:$A$221188,'Building Energy'!$G13,'Energy Benchmarks'!$B$4:$B$221188,'Building Energy'!$H13,'Energy Benchmarks'!$D$4:$D$221188,$BI$3,'Energy Benchmarks'!$E$4:$E$221188,$M$2,'Energy Benchmarks'!$F$4:$F$221188,BL$4) -> 0 | BM5: ='Demand Scaling'!$F4*'Building Energy'!$O13*SUMIFS('Energy Benchmarks'!$G$4:$G$221188,'Energy Benchmarks'!$A$4:$A$221188,'Building Energy'!$G13,'Energy Benchmarks'!$B$4:$B$221188,'Building Energy'!$H13,'Energy Benchmarks'!$D$4:$D$221188,$BI$3,'Energy Benchmarks'!$E$4:$E$221188,$M$2,'Energy Benchmarks'!$F$4:$F$221188,BM$4) -> 0 | BN5: ='Demand Scaling'!$F4*'Building Energy'!$O13*SUMIFS('Energy Benchmarks'!$G$4:$G$221188,'Energy Benchmarks'!$A$4:$A$221188,'Building Energy'!$G13,'Energy Benchmarks'!$B$4:$B$221188,'Building Energy'!$H13,'Energy Benchmarks'!$D$4:$D$221188,$BI$3,'Energy Benchmarks'!$E$4:$E$221188,$M$2,'Energy Benchmarks'!$F$4:$F$221188,BN$4) -> 0 | BO5: ='Demand Scaling'!$F4*'Building Energy'!$O13*SUMIFS('Energy Benchmarks'!$G$4:$G$221188,'Energy Benchmarks'!$A$4:$A$221188,'Building Energy'!$G13,'Energy Benchmarks'!$B$4:$B$221188,'Building Energy'!$H13,'Energy Benchmarks'!$D$4:$D$221188,$BI$3,'Energy Benchmarks'!$E$4:$E$221188,$M$2,'Energy Benchmarks'!$F$4:$F$221188,BO$4) -> 0 | BP5: ='Demand Scaling'!$F4*'Building Energy'!$O13*SUMIFS('Energy Benchmarks'!$G$4:$G$221188,'Energy Benchmarks'!$A$4:$A$221188,'Building Energy'!$G13,'Energy Benchmarks'!$B$4:$B$221188,'Building Energy'!$H13,'Energy Benchmarks'!$D$4:$D$221188,$BI$3,'Energy Benchmarks'!$E$4:$E$221188,$M$2,'Energy Benchmarks'!$F$4:$F$221188,BP$4) -> 0 | BQ5: ='Demand Scaling'!$F4*'Building Energy'!$O13*SUMIFS('Energy Benchmarks'!$G$4:$G$221188,'Energy Benchmarks'!$A$4:$A$221188,'Building Energy'!$G13,'Energy Benchmarks'!$B$4:$B$221188,'Building Energy'!$H13,'Energy Benchmarks'!$D$4:$D$221188,$BI$3,'Energy Benchmarks'!$E$4:$E$221188,$M$2,'Energy Benchmarks'!$F$4:$F$221188,BQ$4) -> 0 | BR5: ='Demand Scaling'!$F4*'Building Energy'!$O13*SUMIFS('Energy Benchmarks'!$G$4:$G$221188,'Energy Benchmarks'!$A$4:$A$221188,'Building Energy'!$G13,'Energy Benchmarks'!$B$4:$B$221188,'Building Energy'!$H13,'Energy Benchmarks'!$D$4:$D$221188,$BI$3,'Energy Benchmarks'!$E$4:$E$221188,$M$2,'Energy Benchmarks'!$F$4:$F$221188,BR$4) -> 0 | BS5: ='Demand Scaling'!$F4*'Building Energy'!$O13*SUMIFS('Energy Benchmarks'!$G$4:$G$221188,'Energy Benchmarks'!$A$4:$A$221188,'Building Energy'!$G13,'Energy Benchmarks'!$B$4:$B$221188,'Building Energy'!$H13,'Energy Benchmarks'!$D$4:$D$221188,$BI$3,'Energy Benchmarks'!$E$4:$E$221188,$M$2,'Energy Benchmarks'!$F$4:$F$221188,BS$4) -> 0 | BT5: ='Demand Scaling'!$F4*'Building Energy'!$O13*SUMIFS('Energy Benchmarks'!$G$4:$G$221188,'Energy Benchmarks'!$A$4:$A$221188,'Building Energy'!$G13,'Energy Benchmarks'!$B$4:$B$221188,'Building Energy'!$H13,'Energy Benchmarks'!$D$4:$D$221188,$BI$3,'Energy Benchmarks'!$E$4:$E$221188,$M$2,'Energy Benchmarks'!$F$4:$F$221188,BT$4) -> 0 | BU5: ='Demand Scaling'!$F4*'Building Energy'!$O13*SUMIFS('Energy Benchmarks'!$G$4:$G$221188,'Energy Benchmarks'!$A$4:$A$221188,'Building Energy'!$G13,'Energy Benchmarks'!$B$4:$B$221188,'Building Energy'!$H13,'Energy Benchmarks'!$D$4:$D$221188,$BI$3,'Energy Benchmarks'!$E$4:$E$221188,$M$2,'Energy Benchmarks'!$F$4:$F$221188,BU$4) -> 0 | BV5: ='Demand Scaling'!$F4*'Building Energy'!$O13*SUMIFS('Energy Benchmarks'!$G$4:$G$221188,'Energy Benchmarks'!$A$4:$A$221188,'Building Energy'!$G13,'Energy Benchmarks'!$B$4:$B$221188,'Building Energy'!$H13,'Energy Benchmarks'!$D$4:$D$221188,$BI$3,'Energy Benchmarks'!$E$4:$E$221188,$M$2,'Energy Benchmarks'!$F$4:$F$221188,BV$4) -> 0 | BW5: ='Demand Scaling'!$F4*'Building Energy'!$O13*SUMIFS('Energy Benchmarks'!$G$4:$G$221188,'Energy Benchmarks'!$A$4:$A$221188,'Building Energy'!$G13,'Energy Benchmarks'!$B$4:$B$221188,'Building Energy'!$H13,'Energy Benchmarks'!$D$4:$D$221188,$BI$3,'Energy Benchmarks'!$E$4:$E$221188,$M$2,'Energy Benchmarks'!$F$4:$F$221188,BW$4) -> 0 | BX5: ='Demand Scaling'!$F4*'Building Energy'!$O13*SUMIFS('Energy Benchmarks'!$G$4:$G$221188,'Energy Benchmarks'!$A$4:$A$221188,'Building Energy'!$G13,'Energy Benchmarks'!$B$4:$B$221188,'Building Energy'!$H13,'Energy Benchmarks'!$D$4:$D$221188,$BI$3,'Energy Benchmarks'!$E$4:$E$221188,$M$2,'Energy Benchmarks'!$F$4:$F$221188,BX$4) -> 0 | BY5: ='Demand Scaling'!$F4*'Building Energy'!$O13*SUMIFS('Energy Benchmarks'!$G$4:$G$221188,'Energy Benchmarks'!$A$4:$A$221188,'Building Energy'!$G13,'Energy Benchmarks'!$B$4:$B$221188,'Building Energy'!$H13,'Energy Benchmarks'!$D$4:$D$221188,$BI$3,'Energy Benchmarks'!$E$4:$E$221188,$M$2,'Energy Benchmarks'!$F$4:$F$221188,BY$4) -> 0 | BZ5: ='Demand Scaling'!$F4*'Building Energy'!$O13*SUMIFS('Energy Benchmarks'!$G$4:$G$221188,'Energy Benchmarks'!$A$4:$A$221188,'Building Energy'!$G13,'Energy Benchmarks'!$B$4:$B$221188,'Building Energy'!$H13,'Energy Benchmarks'!$D$4:$D$221188,$BI$3,'Energy Benchmarks'!$E$4:$E$221188,$M$2,'Energy Benchmarks'!$F$4:$F$221188,BZ$4) -> 0 | CA5: ='Demand Scaling'!$F4*'Building Energy'!$O13*SUMIFS('Energy Benchmarks'!$G$4:$G$221188,'Energy Benchmarks'!$A$4:$A$221188,'Building Energy'!$G13,'Energy Benchmarks'!$B$4:$B$221188,'Building Energy'!$H13,'Energy Benchmarks'!$D$4:$D$221188,$BI$3,'Energy Benchmarks'!$E$4:$E$221188,$M$2,'Energy Benchmarks'!$F$4:$F$221188,CA$4) -> 0 | CB5: ='Demand Scaling'!$F4*'Building Energy'!$O13*SUMIFS('Energy Benchmarks'!$G$4:$G$221188,'Energy Benchmarks'!$A$4:$A$221188,'Building Energy'!$G13,'Energy Benchmarks'!$B$4:$B$221188,'Building Energy'!$H13,'Energy Benchmarks'!$D$4:$D$221188,$BI$3,'Energy Benchmarks'!$E$4:$E$221188,$M$2,'Energy Benchmarks'!$F$4:$F$221188,CB$4) -> 0 | CC5: ='Demand Scaling'!$F4*'Building Energy'!$O13*SUMIFS('Energy Benchmarks'!$G$4:$G$221188,'Energy Benchmarks'!$A$4:$A$221188,'Building Energy'!$G13,'Energy Benchmarks'!$B$4:$B$221188,'Building Energy'!$H13,'Energy Benchmarks'!$D$4:$D$221188,$BI$3,'Energy Benchmarks'!$E$4:$E$221188,$M$2,'Energy Benchmarks'!$F$4:$F$221188,CC$4) -> 0 | CD5: ='Demand Scaling'!$F4*'Building Energy'!$O13*SUMIFS('Energy Benchmarks'!$G$4:$G$221188,'Energy Benchmarks'!$A$4:$A$221188,'Building Energy'!$G13,'Energy Benchmarks'!$B$4:$B$221188,'Building Energy'!$H13,'Energy Benchmarks'!$D$4:$D$221188,$BI$3,'Energy Benchmarks'!$E$4:$E$221188,$M$2,'Energy Benchmarks'!$F$4:$F$221188,CD$4) -> 0 | CE5: ='Demand Scaling'!$F4*'Building Energy'!$O13*SUMIFS('Energy Benchmarks'!$G$4:$G$221188,'Energy Benchmarks'!$A$4:$A$221188,'Building Energy'!$G13,'Energy Benchmarks'!$B$4:$B$221188,'Building Energy'!$H13,'Energy Benchmarks'!$D$4:$D$221188,$BI$3,'Energy Benchmarks'!$E$4:$E$221188,$M$2,'Energy Benchmarks'!$F$4:$F$221188,CE$4) -> 0 | CF5: ='Demand Scaling'!$F4*'Building Energy'!$O13*SUMIFS('Energy Benchmarks'!$G$4:$G$221188,'Energy Benchmarks'!$A$4:$A$221188,'Building Energy'!$G13,'Energy Benchmarks'!$B$4:$B$221188,'Building Energy'!$H13,'Energy Benchmarks'!$D$4:$D$221188,$BI$3,'Energy Benchmarks'!$E$4:$E$221188,$M$2,'Energy Benchmarks'!$F$4:$F$221188,CF$4) -> 0 | CG5: ='Demand Scaling'!$F4*'Building Energy'!$O13*SUMIFS('Energy Benchmarks'!$G$4:$G$221188,'Energy Benchmarks'!$A$4:$A$221188,'Building Energy'!$G13,'Energy Benchmarks'!$B$4:$B$221188,'Building Energy'!$H13,'Energy Benchmarks'!$D$4:$D$221188,$BI$3,'Energy Benchmarks'!$E$4:$E$221188,$M$2,'Energy Benchmarks'!$F$4:$F$221188,CG$4) -> 0 | CH5: ='Demand Scaling'!$F4*'Building Energy'!$O13*SUMIFS('Energy Benchmarks'!$G$4:$G$221188,'Energy Benchmarks'!$A$4:$A$221188,'Building Energy'!$G13,'Energy Benchmarks'!$B$4:$B$221188,'Building Energy'!$H13,'Energy Benchmarks'!$D$4:$D$221188,$BI$3,'Energy Benchmarks'!$E$4:$E$221188,$M$2,'Energy Benchmarks'!$F$4:$F$221188,CH$4) -> 0 | CI5: ='Demand Scaling'!$F4*'Building Energy'!$O13*SUMIFS('Energy Benchmarks'!$G$4:$G$221188,'Energy Benchmarks'!$A$4:$A$221188,'Building Energy'!$G13,'Energy Benchmarks'!$B$4:$B$221188,'Building Energy'!$H13,'Energy Benchmarks'!$D$4:$D$221188,$BI$3,'Energy Benchmarks'!$E$4:$E$221188,$M$2,'Energy Benchmarks'!$F$4:$F$221188,CI$4) -> 0 | CJ5: ='Demand Scaling'!$F4*'Building Energy'!$O13*SUMIFS('Energy Benchmarks'!$G$4:$G$221188,'Energy Benchmarks'!$A$4:$A$221188,'Building Energy'!$G13,'Energy Benchmarks'!$B$4:$B$221188,'Building Energy'!$H13,'Energy Benchmarks'!$D$4:$D$221188,$BI$3,'Energy Benchmarks'!$E$4:$E$221188,$M$2,'Energy Benchmarks'!$F$4:$F$221188,CJ$4) -> 0 | CK5: ='Demand Scaling'!$F4*'Building Energy'!$O13*SUMIFS('Energy Benchmarks'!$G$4:$G$221188,'Energy Benchmarks'!$A$4:$A$221188,'Building Energy'!$G13,'Energy Benchmarks'!$B$4:$B$221188,'Building Energy'!$H13,'Energy Benchmarks'!$D$4:$D$221188,$BI$3,'Energy Benchmarks'!$E$4:$E$221188,$M$2,'Energy Benchmarks'!$F$4:$F$221188,CK$4) -> 0 | CL5: ='Demand Scaling'!$F4*'Building Energy'!$O13*SUMIFS('Energy Benchmarks'!$G$4:$G$221188,'Energy Benchmarks'!$A$4:$A$221188,'Building Energy'!$G13,'Energy Benchmarks'!$B$4:$B$221188,'Building Energy'!$H13,'Energy Benchmarks'!$D$4:$D$221188,$BI$3,'Energy Benchmarks'!$E$4:$E$221188,$M$2,'Energy Benchmarks'!$F$4:$F$221188,CL$4) -> 0 | CM5: ='Demand Scaling'!$F4*'Building Energy'!$O13*SUMIFS('Energy Benchmarks'!$G$4:$G$221188,'Energy Benchmarks'!$A$4:$A$221188,'Building Energy'!$G13,'Energy Benchmarks'!$B$4:$B$221188,'Building Energy'!$H13,'Energy Benchmarks'!$D$4:$D$221188,$BI$3,'Energy Benchmarks'!$E$4:$E$221188,$M$2,'Energy Benchmarks'!$F$4:$F$221188,CM$4) -> 0 | CN5: ='Demand Scaling'!$F4*'Building Energy'!$O13*SUMIFS('Energy Benchmarks'!$G$4:$G$221188,'Energy Benchmarks'!$A$4:$A$221188,'Building Energy'!$G13,'Energy Benchmarks'!$B$4:$B$221188,'Building Energy'!$H13,'Energy Benchmarks'!$D$4:$D$221188,$BI$3,'Energy Benchmarks'!$E$4:$E$221188,$M$2,'Energy Benchmarks'!$F$4:$F$221188,CN$4) -> 0 | CO5: ='Demand Scaling'!$F4*'Building Energy'!$O13*SUMIFS('Energy Benchmarks'!$G$4:$G$221188,'Energy Benchmarks'!$A$4:$A$221188,'Building Energy'!$G13,'Energy Benchmarks'!$B$4:$B$221188,'Building Energy'!$H13,'Energy Benchmarks'!$D$4:$D$221188,$BI$3,'Energy Benchmarks'!$E$4:$E$221188,$M$2,'Energy Benchmarks'!$F$4:$F$221188,CO$4) -> 0 | CP5: ='Demand Scaling'!$F4*'Building Energy'!$O13*SUMIFS('Energy Benchmarks'!$G$4:$G$221188,'Energy Benchmarks'!$A$4:$A$221188,'Building Energy'!$G13,'Energy Benchmarks'!$B$4:$B$221188,'Building Energy'!$H13,'Energy Benchmarks'!$D$4:$D$221188,$BI$3,'Energy Benchmarks'!$E$4:$E$221188,$M$2,'Energy Benchmarks'!$F$4:$F$221188,CP$4) -> 0 | CQ5: ='Demand Scaling'!$F4*'Building Energy'!$O13*SUMIFS('Energy Benchmarks'!$G$4:$G$221188,'Energy Benchmarks'!$A$4:$A$221188,'Building Energy'!$G13,'Energy Benchmarks'!$B$4:$B$221188,'Building Energy'!$H13,'Energy Benchmarks'!$D$4:$D$221188,$BI$3,'Energy Benchmarks'!$E$4:$E$221188,$M$2,'Energy Benchmarks'!$F$4:$F$221188,CQ$4) -> 0 | CR5: ='Demand Scaling'!$F4*'Building Energy'!$O13*SUMIFS('Energy Benchmarks'!$G$4:$G$221188,'Energy Benchmarks'!$A$4:$A$221188,'Building Energy'!$G13,'Energy Benchmarks'!$B$4:$B$221188,'Building Energy'!$H13,'Energy Benchmarks'!$D$4:$D$221188,$BI$3,'Energy Benchmarks'!$E$4:$E$221188,$M$2,'Energy Benchmarks'!$F$4:$F$221188,CR$4) -> 0 | CS5: ='Demand Scaling'!$F4*'Building Energy'!$O13*SUMIFS('Energy Benchmarks'!$G$4:$G$221188,'Energy Benchmarks'!$A$4:$A$221188,'Building Energy'!$G13,'Energy Benchmarks'!$B$4:$B$221188,'Building Energy'!$H13,'Energy Benchmarks'!$D$4:$D$221188,$BI$3,'Energy Benchmarks'!$E$4:$E$221188,$M$2,'Energy Benchmarks'!$F$4:$F$221188,CS$4) -> 0 | CT5: ='Demand Scaling'!$F4*'Building Energy'!$O13*SUMIFS('Energy Benchmarks'!$G$4:$G$221188,'Energy Benchmarks'!$A$4:$A$221188,'Building Energy'!$G13,'Energy Benchmarks'!$B$4:$B$221188,'Building Energy'!$H13,'Energy Benchmarks'!$D$4:$D$221188,$BI$3,'Energy Benchmarks'!$E$4:$E$221188,$M$2,'Energy Benchmarks'!$F$4:$F$221188,CT$4) -> 0 | CU5: ='Demand Scaling'!$F4*'Building Energy'!$O13*SUMIFS('Energy Benchmarks'!$G$4:$G$221188,'Energy Benchmarks'!$A$4:$A$221188,'Building Energy'!$G13,'Energy Benchmarks'!$B$4:$B$221188,'Building Energy'!$H13,'Energy Benchmarks'!$D$4:$D$221188,$BI$3,'Energy Benchmarks'!$E$4:$E$221188,$M$2,'Energy Benchmarks'!$F$4:$F$221188,CU$4) -> 0 | CV5: ='Demand Scaling'!$F4*'Building Energy'!$O13*SUMIFS('Energy Benchmarks'!$G$4:$G$221188,'Energy Benchmarks'!$A$4:$A$221188,'Building Energy'!$G13,'Energy Benchmarks'!$B$4:$B$221188,'Building Energy'!$H13,'Energy Benchmarks'!$D$4:$D$221188,$BI$3,'Energy Benchmarks'!$E$4:$E$221188,$M$2,'Energy Benchmarks'!$F$4:$F$221188,CV$4) -> 0 | CW5: ='Demand Scaling'!$F4*'Building Energy'!$O13*SUMIFS('Energy Benchmarks'!$G$4:$G$221188,'Energy Benchmarks'!$A$4:$A$221188,'Building Energy'!$G13,'Energy Benchmarks'!$B$4:$B$221188,'Building Energy'!$H13,'Energy Benchmarks'!$D$4:$D$221188,$BI$3,'Energy Benchmarks'!$E$4:$E$221188,$M$2,'Energy Benchmarks'!$F$4:$F$221188,CW$4) -> 0 | CX5: ='Demand Scaling'!$F4*'Building Energy'!$O13*SUMIFS('Energy Benchmarks'!$G$4:$G$221188,'Energy Benchmarks'!$A$4:$A$221188,'Building Energy'!$G13,'Energy Benchmarks'!$B$4:$B$221188,'Building Energy'!$H13,'Energy Benchmarks'!$D$4:$D$221188,$BI$3,'Energy Benchmarks'!$E$4:$E$221188,$M$2,'Energy Benchmarks'!$F$4:$F$221188,CX$4) -> 0 | CY5: ='Demand Scaling'!$F4*'Building Energy'!$O13*SUMIFS('Energy Benchmarks'!$G$4:$G$221188,'Energy Benchmarks'!$A$4:$A$221188,'Building Energy'!$G13,'Energy Benchmarks'!$B$4:$B$221188,'Building Energy'!$H13,'Energy Benchmarks'!$D$4:$D$221188,$BI$3,'Energy Benchmarks'!$E$4:$E$221188,$M$2,'Energy Benchmarks'!$F$4:$F$221188,CY$4) -> 0 | CZ5: ='Demand Scaling'!$F4*'Building Energy'!$O13*SUMIFS('Energy Benchmarks'!$G$4:$G$221188,'Energy Benchmarks'!$A$4:$A$221188,'Building Energy'!$G13,'Energy Benchmarks'!$B$4:$B$221188,'Building Energy'!$H13,'Energy Benchmarks'!$D$4:$D$221188,$BI$3,'Energy Benchmarks'!$E$4:$E$221188,$M$2,'Energy Benchmarks'!$F$4:$F$221188,CZ$4) -> 0 | DA5: ='Demand Scaling'!$F4*'Building Energy'!$O13*SUMIFS('Energy Benchmarks'!$G$4:$G$221188,'Energy Benchmarks'!$A$4:$A$221188,'Building Energy'!$G13,'Energy Benchmarks'!$B$4:$B$221188,'Building Energy'!$H13,'Energy Benchmarks'!$D$4:$D$221188,$BI$3,'Energy Benchmarks'!$E$4:$E$221188,$M$2,'Energy Benchmarks'!$F$4:$F$221188,DA$4) -> 0 | DB5: ='Demand Scaling'!$F4*'Building Energy'!$O13*SUMIFS('Energy Benchmarks'!$G$4:$G$221188,'Energy Benchmarks'!$A$4:$A$221188,'Building Energy'!$G13,'Energy Benchmarks'!$B$4:$B$221188,'Building Energy'!$H13,'Energy Benchmarks'!$D$4:$D$221188,$BI$3,'Energy Benchmarks'!$E$4:$E$221188,$M$2,'Energy Benchmarks'!$F$4:$F$221188,DB$4) -> 0 | DC5: ='Demand Scaling'!$F4*'Building Energy'!$O13*SUMIFS('Energy Benchmarks'!$G$4:$G$221188,'Energy Benchmarks'!$A$4:$A$221188,'Building Energy'!$G13,'Energy Benchmarks'!$B$4:$B$221188,'Building Energy'!$H13,'Energy Benchmarks'!$D$4:$D$221188,$BI$3,'Energy Benchmarks'!$E$4:$E$221188,$M$2,'Energy Benchmarks'!$F$4:$F$221188,DC$4) -> 0 | DD5: ='Demand Scaling'!$F4*'Building Energy'!$O13*SUMIFS('Energy Benchmarks'!$G$4:$G$221188,'Energy Benchmarks'!$A$4:$A$221188,'Building Energy'!$G13,'Energy Benchmarks'!$B$4:$B$221188,'Building Energy'!$H13,'Energy Benchmarks'!$D$4:$D$221188,$BI$3,'Energy Benchmarks'!$E$4:$E$221188,$M$2,'Energy Benchmarks'!$F$4:$F$221188,DD$4) -> 0 | DE5: ='Demand Scaling'!$F4*'Building Energy'!$O13*SUMIFS('Energy Benchmarks'!$G$4:$G$221188,'Energy Benchmarks'!$A$4:$A$221188,'Building Energy'!$G13,'Energy Benchmarks'!$B$4:$B$221188,'Building Energy'!$H13,'Energy Benchmarks'!$D$4:$D$221188,$DE$3,'Energy Benchmarks'!$E$4:$E$221188,$M$2,'Energy Benchmarks'!$F$4:$F$221188,DE$4) -> 0 | DF5: ='Demand Scaling'!$F4*'Building Energy'!$O13*SUMIFS('Energy Benchmarks'!$G$4:$G$221188,'Energy Benchmarks'!$A$4:$A$221188,'Building Energy'!$G13,'Energy Benchmarks'!$B$4:$B$221188,'Building Energy'!$H13,'Energy Benchmarks'!$D$4:$D$221188,$DE$3,'Energy Benchmarks'!$E$4:$E$221188,$M$2,'Energy Benchmarks'!$F$4:$F$221188,DF$4) -> 0 | DG5: ='Demand Scaling'!$F4*'Building Energy'!$O13*SUMIFS('Energy Benchmarks'!$G$4:$G$221188,'Energy Benchmarks'!$A$4:$A$221188,'Building Energy'!$G13,'Energy Benchmarks'!$B$4:$B$221188,'Building Energy'!$H13,'Energy Benchmarks'!$D$4:$D$221188,$DE$3,'Energy Benchmarks'!$E$4:$E$221188,$M$2,'Energy Benchmarks'!$F$4:$F$221188,DG$4) -> 0 | DH5: ='Demand Scaling'!$F4*'Building Energy'!$O13*SUMIFS('Energy Benchmarks'!$G$4:$G$221188,'Energy Benchmarks'!$A$4:$A$221188,'Building Energy'!$G13,'Energy Benchmarks'!$B$4:$B$221188,'Building Energy'!$H13,'Energy Benchmarks'!$D$4:$D$221188,$DE$3,'Energy Benchmarks'!$E$4:$E$221188,$M$2,'Energy Benchmarks'!$F$4:$F$221188,DH$4) -> 0 | DI5: ='Demand Scaling'!$F4*'Building Energy'!$O13*SUMIFS('Energy Benchmarks'!$G$4:$G$221188,'Energy Benchmarks'!$A$4:$A$221188,'Building Energy'!$G13,'Energy Benchmarks'!$B$4:$B$221188,'Building Energy'!$H13,'Energy Benchmarks'!$D$4:$D$221188,$DE$3,'Energy Benchmarks'!$E$4:$E$221188,$M$2,'Energy Benchmarks'!$F$4:$F$221188,DI$4) -> 0 | DJ5: ='Demand Scaling'!$F4*'Building Energy'!$O13*SUMIFS('Energy Benchmarks'!$G$4:$G$221188,'Energy Benchmarks'!$A$4:$A$221188,'Building Energy'!$G13,'Energy Benchmarks'!$B$4:$B$221188,'Building Energy'!$H13,'Energy Benchmarks'!$D$4:$D$221188,$DE$3,'Energy Benchmarks'!$E$4:$E$221188,$M$2,'Energy Benchmarks'!$F$4:$F$221188,DJ$4) -> 0 | DK5: ='Demand Scaling'!$F4*'Building Energy'!$O13*SUMIFS('Energy Benchmarks'!$G$4:$G$221188,'Energy Benchmarks'!$A$4:$A$221188,'Building Energy'!$G13,'Energy Benchmarks'!$B$4:$B$221188,'Building Energy'!$H13,'Energy Benchmarks'!$D$4:$D$221188,$DE$3,'Energy Benchmarks'!$E$4:$E$221188,$M$2,'Energy Benchmarks'!$F$4:$F$221188,DK$4) -> 0 | DL5: ='Demand Scaling'!$F4*'Building Energy'!$O13*SUMIFS('Energy Benchmarks'!$G$4:$G$221188,'Energy Benchmarks'!$A$4:$A$221188,'Building Energy'!$G13,'Energy Benchmarks'!$B$4:$B$221188,'Building Energy'!$H13,'Energy Benchmarks'!$D$4:$D$221188,$DE$3,'Energy Benchmarks'!$E$4:$E$221188,$M$2,'Energy Benchmarks'!$F$4:$F$221188,DL$4) -> 0 | DM5: ='Demand Scaling'!$F4*'Building Energy'!$O13*SUMIFS('Energy Benchmarks'!$G$4:$G$221188,'Energy Benchmarks'!$A$4:$A$221188,'Building Energy'!$G13,'Energy Benchmarks'!$B$4:$B$221188,'Building Energy'!$H13,'Energy Benchmarks'!$D$4:$D$221188,$DE$3,'Energy Benchmarks'!$E$4:$E$221188,$M$2,'Energy Benchmarks'!$F$4:$F$221188,DM$4) -> 0 | DN5: ='Demand Scaling'!$F4*'Building Energy'!$O13*SUMIFS('Energy Benchmarks'!$G$4:$G$221188,'Energy Benchmarks'!$A$4:$A$221188,'Building Energy'!$G13,'Energy Benchmarks'!$B$4:$B$221188,'Building Energy'!$H13,'Energy Benchmarks'!$D$4:$D$221188,$DE$3,'Energy Benchmarks'!$E$4:$E$221188,$M$2,'Energy Benchmarks'!$F$4:$F$221188,DN$4) -> 0 | DO5: ='Demand Scaling'!$F4*'Building Energy'!$O13*SUMIFS('Energy Benchmarks'!$G$4:$G$221188,'Energy Benchmarks'!$A$4:$A$221188,'Building Energy'!$G13,'Energy Benchmarks'!$B$4:$B$221188,'Building Energy'!$H13,'Energy Benchmarks'!$D$4:$D$221188,$DE$3,'Energy Benchmarks'!$E$4:$E$221188,$M$2,'Energy Benchmarks'!$F$4:$F$221188,DO$4) -> 0 | DP5: ='Demand Scaling'!$F4*'Building Energy'!$O13*SUMIFS('Energy Benchmarks'!$G$4:$G$221188,'Energy Benchmarks'!$A$4:$A$221188,'Building Energy'!$G13,'Energy Benchmarks'!$B$4:$B$221188,'Building Energy'!$H13,'Energy Benchmarks'!$D$4:$D$221188,$DE$3,'Energy Benchmarks'!$E$4:$E$221188,$M$2,'Energy Benchmarks'!$F$4:$F$221188,DP$4) -> 0 | DQ5: ='Demand Scaling'!$F4*'Building Energy'!$O13*SUMIFS('Energy Benchmarks'!$G$4:$G$221188,'Energy Benchmarks'!$A$4:$A$221188,'Building Energy'!$G13,'Energy Benchmarks'!$B$4:$B$221188,'Building Energy'!$H13,'Energy Benchmarks'!$D$4:$D$221188,$DE$3,'Energy Benchmarks'!$E$4:$E$221188,$M$2,'Energy Benchmarks'!$F$4:$F$221188,DQ$4) -> 0 | DR5: ='Demand Scaling'!$F4*'Building Energy'!$O13*SUMIFS('Energy Benchmarks'!$G$4:$G$221188,'Energy Benchmarks'!$A$4:$A$221188,'Building Energy'!$G13,'Energy Benchmarks'!$B$4:$B$221188,'Building Energy'!$H13,'Energy Benchmarks'!$D$4:$D$221188,$DE$3,'Energy Benchmarks'!$E$4:$E$221188,$M$2,'Energy Benchmarks'!$F$4:$F$221188,DR$4) -> 0 | DS5: ='Demand Scaling'!$F4*'Building Energy'!$O13*SUMIFS('Energy Benchmarks'!$G$4:$G$221188,'Energy Benchmarks'!$A$4:$A$221188,'Building Energy'!$G13,'Energy Benchmarks'!$B$4:$B$221188,'Building Energy'!$H13,'Energy Benchmarks'!$D$4:$D$221188,$DE$3,'Energy Benchmarks'!$E$4:$E$221188,$M$2,'Energy Benchmarks'!$F$4:$F$221188,DS$4) -> 0 | DT5: ='Demand Scaling'!$F4*'Building Energy'!$O13*SUMIFS('Energy Benchmarks'!$G$4:$G$221188,'Energy Benchmarks'!$A$4:$A$221188,'Building Energy'!$G13,'Energy Benchmarks'!$B$4:$B$221188,'Building Energy'!$H13,'Energy Benchmarks'!$D$4:$D$221188,$DE$3,'Energy Benchmarks'!$E$4:$E$221188,$M$2,'Energy Benchmarks'!$F$4:$F$221188,DT$4) -> 0 | DU5: ='Demand Scaling'!$F4*'Building Energy'!$O13*SUMIFS('Energy Benchmarks'!$G$4:$G$221188,'Energy Benchmarks'!$A$4:$A$221188,'Building Energy'!$G13,'Energy Benchmarks'!$B$4:$B$221188,'Building Energy'!$H13,'Energy Benchmarks'!$D$4:$D$221188,$DE$3,'Energy Benchmarks'!$E$4:$E$221188,$M$2,'Energy Benchmarks'!$F$4:$F$221188,DU$4) -> 0 | DV5: ='Demand Scaling'!$F4*'Building Energy'!$O13*SUMIFS('Energy Benchmarks'!$G$4:$G$221188,'Energy Benchmarks'!$A$4:$A$221188,'Building Energy'!$G13,'Energy Benchmarks'!$B$4:$B$221188,'Building Energy'!$H13,'Energy Benchmarks'!$D$4:$D$221188,$DE$3,'Energy Benchmarks'!$E$4:$E$221188,$M$2,'Energy Benchmarks'!$F$4:$F$221188,DV$4) -> 0 | DW5: ='Demand Scaling'!$F4*'Building Energy'!$O13*SUMIFS('Energy Benchmarks'!$G$4:$G$221188,'Energy Benchmarks'!$A$4:$A$221188,'Building Energy'!$G13,'Energy Benchmarks'!$B$4:$B$221188,'Building Energy'!$H13,'Energy Benchmarks'!$D$4:$D$221188,$DE$3,'Energy Benchmarks'!$E$4:$E$221188,$M$2,'Energy Benchmarks'!$F$4:$F$221188,DW$4) -> 0 | DX5: ='Demand Scaling'!$F4*'Building Energy'!$O13*SUMIFS('Energy Benchmarks'!$G$4:$G$221188,'Energy Benchmarks'!$A$4:$A$221188,'Building Energy'!$G13,'Energy Benchmarks'!$B$4:$B$221188,'Building Energy'!$H13,'Energy Benchmarks'!$D$4:$D$221188,$DE$3,'Energy Benchmarks'!$E$4:$E$221188,$M$2,'Energy Benchmarks'!$F$4:$F$221188,DX$4) -> 0 | DY5: ='Demand Scaling'!$F4*'Building Energy'!$O13*SUMIFS('Energy Benchmarks'!$G$4:$G$221188,'Energy Benchmarks'!$A$4:$A$221188,'Building Energy'!$G13,'Energy Benchmarks'!$B$4:$B$221188,'Building Energy'!$H13,'Energy Benchmarks'!$D$4:$D$221188,$DE$3,'Energy Benchmarks'!$E$4:$E$221188,$M$2,'Energy Benchmarks'!$F$4:$F$221188,DY$4) -> 0 | DZ5: ='Demand Scaling'!$F4*'Building Energy'!$O13*SUMIFS('Energy Benchmarks'!$G$4:$G$221188,'Energy Benchmarks'!$A$4:$A$221188,'Building Energy'!$G13,'Energy Benchmarks'!$B$4:$B$221188,'Building Energy'!$H13,'Energy Benchmarks'!$D$4:$D$221188,$DE$3,'Energy Benchmarks'!$E$4:$E$221188,$M$2,'Energy Benchmarks'!$F$4:$F$221188,DZ$4) -> 0 | EA5: ='Demand Scaling'!$F4*'Building Energy'!$O13*SUMIFS('Energy Benchmarks'!$G$4:$G$221188,'Energy Benchmarks'!$A$4:$A$221188,'Building Energy'!$G13,'Energy Benchmarks'!$B$4:$B$221188,'Building Energy'!$H13,'Energy Benchmarks'!$D$4:$D$221188,$DE$3,'Energy Benchmarks'!$E$4:$E$221188,$M$2,'Energy Benchmarks'!$F$4:$F$221188,EA$4) -> 0 | EB5: ='Demand Scaling'!$F4*'Building Energy'!$O13*SUMIFS('Energy Benchmarks'!$G$4:$G$221188,'Energy Benchmarks'!$A$4:$A$221188,'Building Energy'!$G13,'Energy Benchmarks'!$B$4:$B$221188,'Building Energy'!$H13,'Energy Benchmarks'!$D$4:$D$221188,$DE$3,'Energy Benchmarks'!$E$4:$E$221188,$M$2,'Energy Benchmarks'!$F$4:$F$221188,EB$4) -> 0 | EC5: ='Demand Scaling'!$F4*'Building Energy'!$O13*SUMIFS('Energy Benchmarks'!$G$4:$G$221188,'Energy Benchmarks'!$A$4:$A$221188,'Building Energy'!$G13,'Energy Benchmarks'!$B$4:$B$221188,'Building Energy'!$H13,'Energy Benchmarks'!$D$4:$D$221188,$DE$3,'Energy Benchmarks'!$E$4:$E$221188,$M$2,'Energy Benchmarks'!$F$4:$F$221188,EC$4) -> 0 | ED5: ='Demand Scaling'!$F4*'Building Energy'!$O13*SUMIFS('Energy Benchmarks'!$G$4:$G$221188,'Energy Benchmarks'!$A$4:$A$221188,'Building Energy'!$G13,'Energy Benchmarks'!$B$4:$B$221188,'Building Energy'!$H13,'Energy Benchmarks'!$D$4:$D$221188,$DE$3,'Energy Benchmarks'!$E$4:$E$221188,$M$2,'Energy Benchmarks'!$F$4:$F$221188,ED$4) -> 0 | EE5: ='Demand Scaling'!$F4*'Building Energy'!$O13*SUMIFS('Energy Benchmarks'!$G$4:$G$221188,'Energy Benchmarks'!$A$4:$A$221188,'Building Energy'!$G13,'Energy Benchmarks'!$B$4:$B$221188,'Building Energy'!$H13,'Energy Benchmarks'!$D$4:$D$221188,$DE$3,'Energy Benchmarks'!$E$4:$E$221188,$M$2,'Energy Benchmarks'!$F$4:$F$221188,EE$4) -> 0 | EF5: ='Demand Scaling'!$F4*'Building Energy'!$O13*SUMIFS('Energy Benchmarks'!$G$4:$G$221188,'Energy Benchmarks'!$A$4:$A$221188,'Building Energy'!$G13,'Energy Benchmarks'!$B$4:$B$221188,'Building Energy'!$H13,'Energy Benchmarks'!$D$4:$D$221188,$DE$3,'Energy Benchmarks'!$E$4:$E$221188,$M$2,'Energy Benchmarks'!$F$4:$F$221188,EF$4) -> 0 | EG5: ='Demand Scaling'!$F4*'Building Energy'!$O13*SUMIFS('Energy Benchmarks'!$G$4:$G$221188,'Energy Benchmarks'!$A$4:$A$221188,'Building Energy'!$G13,'Energy Benchmarks'!$B$4:$B$221188,'Building Energy'!$H13,'Energy Benchmarks'!$D$4:$D$221188,$DE$3,'Energy Benchmarks'!$E$4:$E$221188,$M$2,'Energy Benchmarks'!$F$4:$F$221188,EG$4) -> 0 | EH5: ='Demand Scaling'!$F4*'Building Energy'!$O13*SUMIFS('Energy Benchmarks'!$G$4:$G$221188,'Energy Benchmarks'!$A$4:$A$221188,'Building Energy'!$G13,'Energy Benchmarks'!$B$4:$B$221188,'Building Energy'!$H13,'Energy Benchmarks'!$D$4:$D$221188,$DE$3,'Energy Benchmarks'!$E$4:$E$221188,$M$2,'Energy Benchmarks'!$F$4:$F$221188,EH$4) -> 0 | EI5: ='Demand Scaling'!$F4*'Building Energy'!$O13*SUMIFS('Energy Benchmarks'!$G$4:$G$221188,'Energy Benchmarks'!$A$4:$A$221188,'Building Energy'!$G13,'Energy Benchmarks'!$B$4:$B$221188,'Building Energy'!$H13,'Energy Benchmarks'!$D$4:$D$221188,$DE$3,'Energy Benchmarks'!$E$4:$E$221188,$M$2,'Energy Benchmarks'!$F$4:$F$221188,EI$4) -> 0 | EJ5: ='Demand Scaling'!$F4*'Building Energy'!$O13*SUMIFS('Energy Benchmarks'!$G$4:$G$221188,'Energy Benchmarks'!$A$4:$A$221188,'Building Energy'!$G13,'Energy Benchmarks'!$B$4:$B$221188,'Building Energy'!$H13,'Energy Benchmarks'!$D$4:$D$221188,$DE$3,'Energy Benchmarks'!$E$4:$E$221188,$M$2,'Energy Benchmarks'!$F$4:$F$221188,EJ$4) -> 0 | EK5: ='Demand Scaling'!$F4*'Building Energy'!$O13*SUMIFS('Energy Benchmarks'!$G$4:$G$221188,'Energy Benchmarks'!$A$4:$A$221188,'Building Energy'!$G13,'Energy Benchmarks'!$B$4:$B$221188,'Building Energy'!$H13,'Energy Benchmarks'!$D$4:$D$221188,$DE$3,'Energy Benchmarks'!$E$4:$E$221188,$M$2,'Energy Benchmarks'!$F$4:$F$221188,EK$4) -> 0 | EL5: ='Demand Scaling'!$F4*'Building Energy'!$O13*SUMIFS('Energy Benchmarks'!$G$4:$G$221188,'Energy Benchmarks'!$A$4:$A$221188,'Building Energy'!$G13,'Energy Benchmarks'!$B$4:$B$221188,'Building Energy'!$H13,'Energy Benchmarks'!$D$4:$D$221188,$DE$3,'Energy Benchmarks'!$E$4:$E$221188,$M$2,'Energy Benchmarks'!$F$4:$F$221188,EL$4) -> 0 | EM5: ='Demand Scaling'!$F4*'Building Energy'!$O13*SUMIFS('Energy Benchmarks'!$G$4:$G$221188,'Energy Benchmarks'!$A$4:$A$221188,'Building Energy'!$G13,'Energy Benchmarks'!$B$4:$B$221188,'Building Energy'!$H13,'Energy Benchmarks'!$D$4:$D$221188,$DE$3,'Energy Benchmarks'!$E$4:$E$221188,$M$2,'Energy Benchmarks'!$F$4:$F$221188,EM$4) -> 0 | EN5: ='Demand Scaling'!$F4*'Building Energy'!$O13*SUMIFS('Energy Benchmarks'!$G$4:$G$221188,'Energy Benchmarks'!$A$4:$A$221188,'Building Energy'!$G13,'Energy Benchmarks'!$B$4:$B$221188,'Building Energy'!$H13,'Energy Benchmarks'!$D$4:$D$221188,$DE$3,'Energy Benchmarks'!$E$4:$E$221188,$M$2,'Energy Benchmarks'!$F$4:$F$221188,EN$4) -> 0 | EO5: ='Demand Scaling'!$F4*'Building Energy'!$O13*SUMIFS('Energy Benchmarks'!$G$4:$G$221188,'Energy Benchmarks'!$A$4:$A$221188,'Building Energy'!$G13,'Energy Benchmarks'!$B$4:$B$221188,'Building Energy'!$H13,'Energy Benchmarks'!$D$4:$D$221188,$DE$3,'Energy Benchmarks'!$E$4:$E$221188,$M$2,'Energy Benchmarks'!$F$4:$F$221188,EO$4) -> 0 | EP5: ='Demand Scaling'!$F4*'Building Energy'!$O13*SUMIFS('Energy Benchmarks'!$G$4:$G$221188,'Energy Benchmarks'!$A$4:$A$221188,'Building Energy'!$G13,'Energy Benchmarks'!$B$4:$B$221188,'Building Energy'!$H13,'Energy Benchmarks'!$D$4:$D$221188,$DE$3,'Energy Benchmarks'!$E$4:$E$221188,$M$2,'Energy Benchmarks'!$F$4:$F$221188,EP$4) -> 0 | EQ5: ='Demand Scaling'!$F4*'Building Energy'!$O13*SUMIFS('Energy Benchmarks'!$G$4:$G$221188,'Energy Benchmarks'!$A$4:$A$221188,'Building Energy'!$G13,'Energy Benchmarks'!$B$4:$B$221188,'Building Energy'!$H13,'Energy Benchmarks'!$D$4:$D$221188,$DE$3,'Energy Benchmarks'!$E$4:$E$221188,$M$2,'Energy Benchmarks'!$F$4:$F$221188,EQ$4) -> 0 | ER5: ='Demand Scaling'!$F4*'Building Energy'!$O13*SUMIFS('Energy Benchmarks'!$G$4:$G$221188,'Energy Benchmarks'!$A$4:$A$221188,'Building Energy'!$G13,'Energy Benchmarks'!$B$4:$B$221188,'Building Energy'!$H13,'Energy Benchmarks'!$D$4:$D$221188,$DE$3,'Energy Benchmarks'!$E$4:$E$221188,$M$2,'Energy Benchmarks'!$F$4:$F$221188,ER$4) -> 0 | ES5: ='Demand Scaling'!$F4*'Building Energy'!$O13*SUMIFS('Energy Benchmarks'!$G$4:$G$221188,'Energy Benchmarks'!$A$4:$A$221188,'Building Energy'!$G13,'Energy Benchmarks'!$B$4:$B$221188,'Building Energy'!$H13,'Energy Benchmarks'!$D$4:$D$221188,$DE$3,'Energy Benchmarks'!$E$4:$E$221188,$M$2,'Energy Benchmarks'!$F$4:$F$221188,ES$4) -> 0 | ET5: ='Demand Scaling'!$F4*'Building Energy'!$O13*SUMIFS('Energy Benchmarks'!$G$4:$G$221188,'Energy Benchmarks'!$A$4:$A$221188,'Building Energy'!$G13,'Energy Benchmarks'!$B$4:$B$221188,'Building Energy'!$H13,'Energy Benchmarks'!$D$4:$D$221188,$DE$3,'Energy Benchmarks'!$E$4:$E$221188,$M$2,'Energy Benchmarks'!$F$4:$F$221188,ET$4) -> 0 | EU5: ='Demand Scaling'!$F4*'Building Energy'!$O13*SUMIFS('Energy Benchmarks'!$G$4:$G$221188,'Energy Benchmarks'!$A$4:$A$221188,'Building Energy'!$G13,'Energy Benchmarks'!$B$4:$B$221188,'Building Energy'!$H13,'Energy Benchmarks'!$D$4:$D$221188,$DE$3,'Energy Benchmarks'!$E$4:$E$221188,$M$2,'Energy Benchmarks'!$F$4:$F$221188,EU$4) -> 0 | EV5: ='Demand Scaling'!$F4*'Building Energy'!$O13*SUMIFS('Energy Benchmarks'!$G$4:$G$221188,'Energy Benchmarks'!$A$4:$A$221188,'Building Energy'!$G13,'Energy Benchmarks'!$B$4:$B$221188,'Building Energy'!$H13,'Energy Benchmarks'!$D$4:$D$221188,$DE$3,'Energy Benchmarks'!$E$4:$E$221188,$M$2,'Energy Benchmarks'!$F$4:$F$221188,EV$4) -> 0 | EW5: ='Demand Scaling'!$F4*'Building Energy'!$O13*SUMIFS('Energy Benchmarks'!$G$4:$G$221188,'Energy Benchmarks'!$A$4:$A$221188,'Building Energy'!$G13,'Energy Benchmarks'!$B$4:$B$221188,'Building Energy'!$H13,'Energy Benchmarks'!$D$4:$D$221188,$DE$3,'Energy Benchmarks'!$E$4:$E$221188,$M$2,'Energy Benchmarks'!$F$4:$F$221188,EW$4) -> 0 | EX5: ='Demand Scaling'!$F4*'Building Energy'!$O13*SUMIFS('Energy Benchmarks'!$G$4:$G$221188,'Energy Benchmarks'!$A$4:$A$221188,'Building Energy'!$G13,'Energy Benchmarks'!$B$4:$B$221188,'Building Energy'!$H13,'Energy Benchmarks'!$D$4:$D$221188,$DE$3,'Energy Benchmarks'!$E$4:$E$221188,$M$2,'Energy Benchmarks'!$F$4:$F$221188,EX$4) -> 0 | EY5: ='Demand Scaling'!$F4*'Building Energy'!$O13*SUMIFS('Energy Benchmarks'!$G$4:$G$221188,'Energy Benchmarks'!$A$4:$A$221188,'Building Energy'!$G13,'Energy Benchmarks'!$B$4:$B$221188,'Building Energy'!$H13,'Energy Benchmarks'!$D$4:$D$221188,$DE$3,'Energy Benchmarks'!$E$4:$E$221188,$M$2,'Energy Benchmarks'!$F$4:$F$221188,EY$4) -> 0 | EZ5: ='Demand Scaling'!$F4*'Building Energy'!$O13*SUMIFS('Energy Benchmarks'!$G$4:$G$221188,'Energy Benchmarks'!$A$4:$A$221188,'Building Energy'!$G13,'Energy Benchmarks'!$B$4:$B$221188,'Building Energy'!$H13,'Energy Benchmarks'!$D$4:$D$221188,$DE$3,'Energy Benchmarks'!$E$4:$E$221188,$M$2,'Energy Benchmarks'!$F$4:$F$221188,EZ$4) -> 0 | FA5: ='Demand Scaling'!$F4*'Building Energy'!$O13*SUMIFS('Energy Benchmarks'!$G$4:$G$221188,'Energy Benchmarks'!$A$4:$A$221188,'Building Energy'!$G13,'Energy Benchmarks'!$B$4:$B$221188,'Building Energy'!$H13,'Energy Benchmarks'!$D$4:$D$221188,$FA$3,'Energy Benchmarks'!$E$4:$E$221188,$M$2,'Energy Benchmarks'!$F$4:$F$221188,FA$4) -> 0 | FB5: ='Demand Scaling'!$F4*'Building Energy'!$O13*SUMIFS('Energy Benchmarks'!$G$4:$G$221188,'Energy Benchmarks'!$A$4:$A$221188,'Building Energy'!$G13,'Energy Benchmarks'!$B$4:$B$221188,'Building Energy'!$H13,'Energy Benchmarks'!$D$4:$D$221188,$FA$3,'Energy Benchmarks'!$E$4:$E$221188,$M$2,'Energy Benchmarks'!$F$4:$F$221188,FB$4) -> 0 | FC5: ='Demand Scaling'!$F4*'Building Energy'!$O13*SUMIFS('Energy Benchmarks'!$G$4:$G$221188,'Energy Benchmarks'!$A$4:$A$221188,'Building Energy'!$G13,'Energy Benchmarks'!$B$4:$B$221188,'Building Energy'!$H13,'Energy Benchmarks'!$D$4:$D$221188,$FA$3,'Energy Benchmarks'!$E$4:$E$221188,$M$2,'Energy Benchmarks'!$F$4:$F$221188,FC$4) -> 0 | FD5: ='Demand Scaling'!$F4*'Building Energy'!$O13*SUMIFS('Energy Benchmarks'!$G$4:$G$221188,'Energy Benchmarks'!$A$4:$A$221188,'Building Energy'!$G13,'Energy Benchmarks'!$B$4:$B$221188,'Building Energy'!$H13,'Energy Benchmarks'!$D$4:$D$221188,$FA$3,'Energy Benchmarks'!$E$4:$E$221188,$M$2,'Energy Benchmarks'!$F$4:$F$221188,FD$4) -> 0 | FE5: ='Demand Scaling'!$F4*'Building Energy'!$O13*SUMIFS('Energy Benchmarks'!$G$4:$G$221188,'Energy Benchmarks'!$A$4:$A$221188,'Building Energy'!$G13,'Energy Benchmarks'!$B$4:$B$221188,'Building Energy'!$H13,'Energy Benchmarks'!$D$4:$D$221188,$FA$3,'Energy Benchmarks'!$E$4:$E$221188,$M$2,'Energy Benchmarks'!$F$4:$F$221188,FE$4) -> 0 | FF5: ='Demand Scaling'!$F4*'Building Energy'!$O13*SUMIFS('Energy Benchmarks'!$G$4:$G$221188,'Energy Benchmarks'!$A$4:$A$221188,'Building Energy'!$G13,'Energy Benchmarks'!$B$4:$B$221188,'Building Energy'!$H13,'Energy Benchmarks'!$D$4:$D$221188,$FA$3,'Energy Benchmarks'!$E$4:$E$221188,$M$2,'Energy Benchmarks'!$F$4:$F$221188,FF$4) -> 0 | FG5: ='Demand Scaling'!$F4*'Building Energy'!$O13*SUMIFS('Energy Benchmarks'!$G$4:$G$221188,'Energy Benchmarks'!$A$4:$A$221188,'Building Energy'!$G13,'Energy Benchmarks'!$B$4:$B$221188,'Building Energy'!$H13,'Energy Benchmarks'!$D$4:$D$221188,$FA$3,'Energy Benchmarks'!$E$4:$E$221188,$M$2,'Energy Benchmarks'!$F$4:$F$221188,FG$4) -> 0 | FH5: ='Demand Scaling'!$F4*'Building Energy'!$O13*SUMIFS('Energy Benchmarks'!$G$4:$G$221188,'Energy Benchmarks'!$A$4:$A$221188,'Building Energy'!$G13,'Energy Benchmarks'!$B$4:$B$221188,'Building Energy'!$H13,'Energy Benchmarks'!$D$4:$D$221188,$FA$3,'Energy Benchmarks'!$E$4:$E$221188,$M$2,'Energy Benchmarks'!$F$4:$F$221188,FH$4) -> 0 | FI5: ='Demand Scaling'!$F4*'Building Energy'!$O13*SUMIFS('Energy Benchmarks'!$G$4:$G$221188,'Energy Benchmarks'!$A$4:$A$221188,'Building Energy'!$G13,'Energy Benchmarks'!$B$4:$B$221188,'Building Energy'!$H13,'Energy Benchmarks'!$D$4:$D$221188,$FA$3,'Energy Benchmarks'!$E$4:$E$221188,$M$2,'Energy Benchmarks'!$F$4:$F$221188,FI$4) -> 0 | FJ5: ='Demand Scaling'!$F4*'Building Energy'!$O13*SUMIFS('Energy Benchmarks'!$G$4:$G$221188,'Energy Benchmarks'!$A$4:$A$221188,'Building Energy'!$G13,'Energy Benchmarks'!$B$4:$B$221188,'Building Energy'!$H13,'Energy Benchmarks'!$D$4:$D$221188,$FA$3,'Energy Benchmarks'!$E$4:$E$221188,$M$2,'Energy Benchmarks'!$F$4:$F$221188,FJ$4) -> 0 | FK5: ='Demand Scaling'!$F4*'Building Energy'!$O13*SUMIFS('Energy Benchmarks'!$G$4:$G$221188,'Energy Benchmarks'!$A$4:$A$221188,'Building Energy'!$G13,'Energy Benchmarks'!$B$4:$B$221188,'Building Energy'!$H13,'Energy Benchmarks'!$D$4:$D$221188,$FA$3,'Energy Benchmarks'!$E$4:$E$221188,$M$2,'Energy Benchmarks'!$F$4:$F$221188,FK$4) -> 0 | FL5: ='Demand Scaling'!$F4*'Building Energy'!$O13*SUMIFS('Energy Benchmarks'!$G$4:$G$221188,'Energy Benchmarks'!$A$4:$A$221188,'Building Energy'!$G13,'Energy Benchmarks'!$B$4:$B$221188,'Building Energy'!$H13,'Energy Benchmarks'!$D$4:$D$221188,$FA$3,'Energy Benchmarks'!$E$4:$E$221188,$M$2,'Energy Benchmarks'!$F$4:$F$221188,FL$4) -> 0 | FM5: ='Demand Scaling'!$F4*'Building Energy'!$O13*SUMIFS('Energy Benchmarks'!$G$4:$G$221188,'Energy Benchmarks'!$A$4:$A$221188,'Building Energy'!$G13,'Energy Benchmarks'!$B$4:$B$221188,'Building Energy'!$H13,'Energy Benchmarks'!$D$4:$D$221188,$FA$3,'Energy Benchmarks'!$E$4:$E$221188,$M$2,'Energy Benchmarks'!$F$4:$F$221188,FM$4) -> 0 | FN5: ='Demand Scaling'!$F4*'Building Energy'!$O13*SUMIFS('Energy Benchmarks'!$G$4:$G$221188,'Energy Benchmarks'!$A$4:$A$221188,'Building Energy'!$G13,'Energy Benchmarks'!$B$4:$B$221188,'Building Energy'!$H13,'Energy Benchmarks'!$D$4:$D$221188,$FA$3,'Energy Benchmarks'!$E$4:$E$221188,$M$2,'Energy Benchmarks'!$F$4:$F$221188,FN$4) -> 0 | FO5: ='Demand Scaling'!$F4*'Building Energy'!$O13*SUMIFS('Energy Benchmarks'!$G$4:$G$221188,'Energy Benchmarks'!$A$4:$A$221188,'Building Energy'!$G13,'Energy Benchmarks'!$B$4:$B$221188,'Building Energy'!$H13,'Energy Benchmarks'!$D$4:$D$221188,$FA$3,'Energy Benchmarks'!$E$4:$E$221188,$M$2,'Energy Benchmarks'!$F$4:$F$221188,FO$4) -> 0 | FP5: ='Demand Scaling'!$F4*'Building Energy'!$O13*SUMIFS('Energy Benchmarks'!$G$4:$G$221188,'Energy Benchmarks'!$A$4:$A$221188,'Building Energy'!$G13,'Energy Benchmarks'!$B$4:$B$221188,'Building Energy'!$H13,'Energy Benchmarks'!$D$4:$D$221188,$FA$3,'Energy Benchmarks'!$E$4:$E$221188,$M$2,'Energy Benchmarks'!$F$4:$F$221188,FP$4) -> 0 | FQ5: ='Demand Scaling'!$F4*'Building Energy'!$O13*SUMIFS('Energy Benchmarks'!$G$4:$G$221188,'Energy Benchmarks'!$A$4:$A$221188,'Building Energy'!$G13,'Energy Benchmarks'!$B$4:$B$221188,'Building Energy'!$H13,'Energy Benchmarks'!$D$4:$D$221188,$FA$3,'Energy Benchmarks'!$E$4:$E$221188,$M$2,'Energy Benchmarks'!$F$4:$F$221188,FQ$4) -> 0 | FR5: ='Demand Scaling'!$F4*'Building Energy'!$O13*SUMIFS('Energy Benchmarks'!$G$4:$G$221188,'Energy Benchmarks'!$A$4:$A$221188,'Building Energy'!$G13,'Energy Benchmarks'!$B$4:$B$221188,'Building Energy'!$H13,'Energy Benchmarks'!$D$4:$D$221188,$FA$3,'Energy Benchmarks'!$E$4:$E$221188,$M$2,'Energy Benchmarks'!$F$4:$F$221188,FR$4) -> 0 | FS5: ='Demand Scaling'!$F4*'Building Energy'!$O13*SUMIFS('Energy Benchmarks'!$G$4:$G$221188,'Energy Benchmarks'!$A$4:$A$221188,'Building Energy'!$G13,'Energy Benchmarks'!$B$4:$B$221188,'Building Energy'!$H13,'Energy Benchmarks'!$D$4:$D$221188,$FA$3,'Energy Benchmarks'!$E$4:$E$221188,$M$2,'Energy Benchmarks'!$F$4:$F$221188,FS$4) -> 0 | FT5: ='Demand Scaling'!$F4*'Building Energy'!$O13*SUMIFS('Energy Benchmarks'!$G$4:$G$221188,'Energy Benchmarks'!$A$4:$A$221188,'Building Energy'!$G13,'Energy Benchmarks'!$B$4:$B$221188,'Building Energy'!$H13,'Energy Benchmarks'!$D$4:$D$221188,$FA$3,'Energy Benchmarks'!$E$4:$E$221188,$M$2,'Energy Benchmarks'!$F$4:$F$221188,FT$4) -> 0 | FU5: ='Demand Scaling'!$F4*'Building Energy'!$O13*SUMIFS('Energy Benchmarks'!$G$4:$G$221188,'Energy Benchmarks'!$A$4:$A$221188,'Building Energy'!$G13,'Energy Benchmarks'!$B$4:$B$221188,'Building Energy'!$H13,'Energy Benchmarks'!$D$4:$D$221188,$FA$3,'Energy Benchmarks'!$E$4:$E$221188,$M$2,'Energy Benchmarks'!$F$4:$F$221188,FU$4) -> 0 | FV5: ='Demand Scaling'!$F4*'Building Energy'!$O13*SUMIFS('Energy Benchmarks'!$G$4:$G$221188,'Energy Benchmarks'!$A$4:$A$221188,'Building Energy'!$G13,'Energy Benchmarks'!$B$4:$B$221188,'Building Energy'!$H13,'Energy Benchmarks'!$D$4:$D$221188,$FA$3,'Energy Benchmarks'!$E$4:$E$221188,$M$2,'Energy Benchmarks'!$F$4:$F$221188,FV$4) -> 0 | FW5: ='Demand Scaling'!$F4*'Building Energy'!$O13*SUMIFS('Energy Benchmarks'!$G$4:$G$221188,'Energy Benchmarks'!$A$4:$A$221188,'Building Energy'!$G13,'Energy Benchmarks'!$B$4:$B$221188,'Building Energy'!$H13,'Energy Benchmarks'!$D$4:$D$221188,$FA$3,'Energy Benchmarks'!$E$4:$E$221188,$M$2,'Energy Benchmarks'!$F$4:$F$221188,FW$4) -> 0 | FX5: ='Demand Scaling'!$F4*'Building Energy'!$O13*SUMIFS('Energy Benchmarks'!$G$4:$G$221188,'Energy Benchmarks'!$A$4:$A$221188,'Building Energy'!$G13,'Energy Benchmarks'!$B$4:$B$221188,'Building Energy'!$H13,'Energy Benchmarks'!$D$4:$D$221188,$FA$3,'Energy Benchmarks'!$E$4:$E$221188,$M$2,'Energy Benchmarks'!$F$4:$F$221188,FX$4) -> 0 | FY5: ='Demand Scaling'!$F4*'Building Energy'!$O13*SUMIFS('Energy Benchmarks'!$G$4:$G$221188,'Energy Benchmarks'!$A$4:$A$221188,'Building Energy'!$G13,'Energy Benchmarks'!$B$4:$B$221188,'Building Energy'!$H13,'Energy Benchmarks'!$D$4:$D$221188,$FA$3,'Energy Benchmarks'!$E$4:$E$221188,$M$2,'Energy Benchmarks'!$F$4:$F$221188,FY$4) -> 0 | FZ5: ='Demand Scaling'!$F4*'Building Energy'!$O13*SUMIFS('Energy Benchmarks'!$G$4:$G$221188,'Energy Benchmarks'!$A$4:$A$221188,'Building Energy'!$G13,'Energy Benchmarks'!$B$4:$B$221188,'Building Energy'!$H13,'Energy Benchmarks'!$D$4:$D$221188,$FA$3,'Energy Benchmarks'!$E$4:$E$221188,$M$2,'Energy Benchmarks'!$F$4:$F$221188,FZ$4) -> 0 | GA5: ='Demand Scaling'!$F4*'Building Energy'!$O13*SUMIFS('Energy Benchmarks'!$G$4:$G$221188,'Energy Benchmarks'!$A$4:$A$221188,'Building Energy'!$G13,'Energy Benchmarks'!$B$4:$B$221188,'Building Energy'!$H13,'Energy Benchmarks'!$D$4:$D$221188,$FA$3,'Energy Benchmarks'!$E$4:$E$221188,$M$2,'Energy Benchmarks'!$F$4:$F$221188,GA$4) -> 0 | GB5: ='Demand Scaling'!$F4*'Building Energy'!$O13*SUMIFS('Energy Benchmarks'!$G$4:$G$221188,'Energy Benchmarks'!$A$4:$A$221188,'Building Energy'!$G13,'Energy Benchmarks'!$B$4:$B$221188,'Building Energy'!$H13,'Energy Benchmarks'!$D$4:$D$221188,$FA$3,'Energy Benchmarks'!$E$4:$E$221188,$M$2,'Energy Benchmarks'!$F$4:$F$221188,GB$4) -> 0 | GC5: ='Demand Scaling'!$F4*'Building Energy'!$O13*SUMIFS('Energy Benchmarks'!$G$4:$G$221188,'Energy Benchmarks'!$A$4:$A$221188,'Building Energy'!$G13,'Energy Benchmarks'!$B$4:$B$221188,'Building Energy'!$H13,'Energy Benchmarks'!$D$4:$D$221188,$FA$3,'Energy Benchmarks'!$E$4:$E$221188,$M$2,'Energy Benchmarks'!$F$4:$F$221188,GC$4) -> 0 | GD5: ='Demand Scaling'!$F4*'Building Energy'!$O13*SUMIFS('Energy Benchmarks'!$G$4:$G$221188,'Energy Benchmarks'!$A$4:$A$221188,'Building Energy'!$G13,'Energy Benchmarks'!$B$4:$B$221188,'Building Energy'!$H13,'Energy Benchmarks'!$D$4:$D$221188,$FA$3,'Energy Benchmarks'!$E$4:$E$221188,$M$2,'Energy Benchmarks'!$F$4:$F$221188,GD$4) -> 0 | GE5: ='Demand Scaling'!$F4*'Building Energy'!$O13*SUMIFS('Energy Benchmarks'!$G$4:$G$221188,'Energy Benchmarks'!$A$4:$A$221188,'Building Energy'!$G13,'Energy Benchmarks'!$B$4:$B$221188,'Building Energy'!$H13,'Energy Benchmarks'!$D$4:$D$221188,$FA$3,'Energy Benchmarks'!$E$4:$E$221188,$M$2,'Energy Benchmarks'!$F$4:$F$221188,GE$4) -> 0 | GF5: ='Demand Scaling'!$F4*'Building Energy'!$O13*SUMIFS('Energy Benchmarks'!$G$4:$G$221188,'Energy Benchmarks'!$A$4:$A$221188,'Building Energy'!$G13,'Energy Benchmarks'!$B$4:$B$221188,'Building Energy'!$H13,'Energy Benchmarks'!$D$4:$D$221188,$FA$3,'Energy Benchmarks'!$E$4:$E$221188,$M$2,'Energy Benchmarks'!$F$4:$F$221188,GF$4) -> 0 | GG5: ='Demand Scaling'!$F4*'Building Energy'!$O13*SUMIFS('Energy Benchmarks'!$G$4:$G$221188,'Energy Benchmarks'!$A$4:$A$221188,'Building Energy'!$G13,'Energy Benchmarks'!$B$4:$B$221188,'Building Energy'!$H13,'Energy Benchmarks'!$D$4:$D$221188,$FA$3,'Energy Benchmarks'!$E$4:$E$221188,$M$2,'Energy Benchmarks'!$F$4:$F$221188,GG$4) -> 0 | GH5: ='Demand Scaling'!$F4*'Building Energy'!$O13*SUMIFS('Energy Benchmarks'!$G$4:$G$221188,'Energy Benchmarks'!$A$4:$A$221188,'Building Energy'!$G13,'Energy Benchmarks'!$B$4:$B$221188,'Building Energy'!$H13,'Energy Benchmarks'!$D$4:$D$221188,$FA$3,'Energy Benchmarks'!$E$4:$E$221188,$M$2,'Energy Benchmarks'!$F$4:$F$221188,GH$4) -> 0 | GI5: ='Demand Scaling'!$F4*'Building Energy'!$O13*SUMIFS('Energy Benchmarks'!$G$4:$G$221188,'Energy Benchmarks'!$A$4:$A$221188,'Building Energy'!$G13,'Energy Benchmarks'!$B$4:$B$221188,'Building Energy'!$H13,'Energy Benchmarks'!$D$4:$D$221188,$FA$3,'Energy Benchmarks'!$E$4:$E$221188,$M$2,'Energy Benchmarks'!$F$4:$F$221188,GI$4) -> 0 | GJ5: ='Demand Scaling'!$F4*'Building Energy'!$O13*SUMIFS('Energy Benchmarks'!$G$4:$G$221188,'Energy Benchmarks'!$A$4:$A$221188,'Building Energy'!$G13,'Energy Benchmarks'!$B$4:$B$221188,'Building Energy'!$H13,'Energy Benchmarks'!$D$4:$D$221188,$FA$3,'Energy Benchmarks'!$E$4:$E$221188,$M$2,'Energy Benchmarks'!$F$4:$F$221188,GJ$4) -> 0 | GK5: ='Demand Scaling'!$F4*'Building Energy'!$O13*SUMIFS('Energy Benchmarks'!$G$4:$G$221188,'Energy Benchmarks'!$A$4:$A$221188,'Building Energy'!$G13,'Energy Benchmarks'!$B$4:$B$221188,'Building Energy'!$H13,'Energy Benchmarks'!$D$4:$D$221188,$FA$3,'Energy Benchmarks'!$E$4:$E$221188,$M$2,'Energy Benchmarks'!$F$4:$F$221188,GK$4) -> 0 | GL5: ='Demand Scaling'!$F4*'Building Energy'!$O13*SUMIFS('Energy Benchmarks'!$G$4:$G$221188,'Energy Benchmarks'!$A$4:$A$221188,'Building Energy'!$G13,'Energy Benchmarks'!$B$4:$B$221188,'Building Energy'!$H13,'Energy Benchmarks'!$D$4:$D$221188,$FA$3,'Energy Benchmarks'!$E$4:$E$221188,$M$2,'Energy Benchmarks'!$F$4:$F$221188,GL$4) -> 0 | GM5: ='Demand Scaling'!$F4*'Building Energy'!$O13*SUMIFS('Energy Benchmarks'!$G$4:$G$221188,'Energy Benchmarks'!$A$4:$A$221188,'Building Energy'!$G13,'Energy Benchmarks'!$B$4:$B$221188,'Building Energy'!$H13,'Energy Benchmarks'!$D$4:$D$221188,$FA$3,'Energy Benchmarks'!$E$4:$E$221188,$M$2,'Energy Benchmarks'!$F$4:$F$221188,GM$4) -> 0 | GN5: ='Demand Scaling'!$F4*'Building Energy'!$O13*SUMIFS('Energy Benchmarks'!$G$4:$G$221188,'Energy Benchmarks'!$A$4:$A$221188,'Building Energy'!$G13,'Energy Benchmarks'!$B$4:$B$221188,'Building Energy'!$H13,'Energy Benchmarks'!$D$4:$D$221188,$FA$3,'Energy Benchmarks'!$E$4:$E$221188,$M$2,'Energy Benchmarks'!$F$4:$F$221188,GN$4) -> 0 | GO5: ='Demand Scaling'!$F4*'Building Energy'!$O13*SUMIFS('Energy Benchmarks'!$G$4:$G$221188,'Energy Benchmarks'!$A$4:$A$221188,'Building Energy'!$G13,'Energy Benchmarks'!$B$4:$B$221188,'Building Energy'!$H13,'Energy Benchmarks'!$D$4:$D$221188,$FA$3,'Energy Benchmarks'!$E$4:$E$221188,$M$2,'Energy Benchmarks'!$F$4:$F$221188,GO$4) -> 0 | GP5: ='Demand Scaling'!$F4*'Building Energy'!$O13*SUMIFS('Energy Benchmarks'!$G$4:$G$221188,'Energy Benchmarks'!$A$4:$A$221188,'Building Energy'!$G13,'Energy Benchmarks'!$B$4:$B$221188,'Building Energy'!$H13,'Energy Benchmarks'!$D$4:$D$221188,$FA$3,'Energy Benchmarks'!$E$4:$E$221188,$M$2,'Energy Benchmarks'!$F$4:$F$221188,GP$4) -> 0 | GQ5: ='Demand Scaling'!$F4*'Building Energy'!$O13*SUMIFS('Energy Benchmarks'!$G$4:$G$221188,'Energy Benchmarks'!$A$4:$A$221188,'Building Energy'!$G13,'Energy Benchmarks'!$B$4:$B$221188,'Building Energy'!$H13,'Energy Benchmarks'!$D$4:$D$221188,$FA$3,'Energy Benchmarks'!$E$4:$E$221188,$M$2,'Energy Benchmarks'!$F$4:$F$221188,GQ$4) -> 0 | GR5: ='Demand Scaling'!$F4*'Building Energy'!$O13*SUMIFS('Energy Benchmarks'!$G$4:$G$221188,'Energy Benchmarks'!$A$4:$A$221188,'Building Energy'!$G13,'Energy Benchmarks'!$B$4:$B$221188,'Building Energy'!$H13,'Energy Benchmarks'!$D$4:$D$221188,$FA$3,'Energy Benchmarks'!$E$4:$E$221188,$M$2,'Energy Benchmarks'!$F$4:$F$221188,GR$4) -> 0 | GS5: ='Demand Scaling'!$F4*'Building Energy'!$O13*SUMIFS('Energy Benchmarks'!$G$4:$G$221188,'Energy Benchmarks'!$A$4:$A$221188,'Building Energy'!$G13,'Energy Benchmarks'!$B$4:$B$221188,'Building Energy'!$H13,'Energy Benchmarks'!$D$4:$D$221188,$FA$3,'Energy Benchmarks'!$E$4:$E$221188,$M$2,'Energy Benchmarks'!$F$4:$F$221188,GS$4) -> 0 | GT5: ='Demand Scaling'!$F4*'Building Energy'!$O13*SUMIFS('Energy Benchmarks'!$G$4:$G$221188,'Energy Benchmarks'!$A$4:$A$221188,'Building Energy'!$G13,'Energy Benchmarks'!$B$4:$B$221188,'Building Energy'!$H13,'Energy Benchmarks'!$D$4:$D$221188,$FA$3,'Energy Benchmarks'!$E$4:$E$221188,$M$2,'Energy Benchmarks'!$F$4:$F$221188,GT$4) -> 0 | GU5: ='Demand Scaling'!$F4*'Building Energy'!$O13*SUMIFS('Energy Benchmarks'!$G$4:$G$221188,'Energy Benchmarks'!$A$4:$A$221188,'Building Energy'!$G13,'Energy Benchmarks'!$B$4:$B$221188,'Building Energy'!$H13,'Energy Benchmarks'!$D$4:$D$221188,$FA$3,'Energy Benchmarks'!$E$4:$E$221188,$M$2,'Energy Benchmarks'!$F$4:$F$221188,GU$4) -> 0 | GV5: ='Demand Scaling'!$F4*'Building Energy'!$O13*SUMIFS('Energy Benchmarks'!$G$4:$G$221188,'Energy Benchmarks'!$A$4:$A$221188,'Building Energy'!$G13,'Energy Benchmarks'!$B$4:$B$221188,'Building Energy'!$H13,'Energy Benchmarks'!$D$4:$D$221188,$FA$3,'Energy Benchmarks'!$E$4:$E$221188,$M$2,'Energy Benchmarks'!$F$4:$F$221188,GV$4) -> 0 | GW5: ='Demand Scaling'!$F4*'Building Energy'!$O13*SUMIFS('Energy Benchmarks'!$G$4:$G$221188,'Energy Benchmarks'!$A$4:$A$221188,'Building Energy'!$G13,'Energy Benchmarks'!$B$4:$B$221188,'Building Energy'!$H13,'Energy Benchmarks'!$D$4:$D$221188,$GW$3,'Energy Benchmarks'!$E$4:$E$221188,$M$2,'Energy Benchmarks'!$F$4:$F$221188,GW$4) -> 0 | GX5: ='Demand Scaling'!$F4*'Building Energy'!$O13*SUMIFS('Energy Benchmarks'!$G$4:$G$221188,'Energy Benchmarks'!$A$4:$A$221188,'Building Energy'!$G13,'Energy Benchmarks'!$B$4:$B$221188,'Building Energy'!$H13,'Energy Benchmarks'!$D$4:$D$221188,$GW$3,'Energy Benchmarks'!$E$4:$E$221188,$M$2,'Energy Benchmarks'!$F$4:$F$221188,GX$4) -> 0 | GY5: ='Demand Scaling'!$F4*'Building Energy'!$O13*SUMIFS('Energy Benchmarks'!$G$4:$G$221188,'Energy Benchmarks'!$A$4:$A$221188,'Building Energy'!$G13,'Energy Benchmarks'!$B$4:$B$221188,'Building Energy'!$H13,'Energy Benchmarks'!$D$4:$D$221188,$GW$3,'Energy Benchmarks'!$E$4:$E$221188,$M$2,'Energy Benchmarks'!$F$4:$F$221188,GY$4) -> 0 | GZ5: ='Demand Scaling'!$F4*'Building Energy'!$O13*SUMIFS('Energy Benchmarks'!$G$4:$G$221188,'Energy Benchmarks'!$A$4:$A$221188,'Building Energy'!$G13,'Energy Benchmarks'!$B$4:$B$221188,'Building Energy'!$H13,'Energy Benchmarks'!$D$4:$D$221188,$GW$3,'Energy Benchmarks'!$E$4:$E$221188,$M$2,'Energy Benchmarks'!$F$4:$F$221188,GZ$4) -> 0 | HA5: ='Demand Scaling'!$F4*'Building Energy'!$O13*SUMIFS('Energy Benchmarks'!$G$4:$G$221188,'Energy Benchmarks'!$A$4:$A$221188,'Building Energy'!$G13,'Energy Benchmarks'!$B$4:$B$221188,'Building Energy'!$H13,'Energy Benchmarks'!$D$4:$D$221188,$GW$3,'Energy Benchmarks'!$E$4:$E$221188,$M$2,'Energy Benchmarks'!$F$4:$F$221188,HA$4) -> 0 | HB5: ='Demand Scaling'!$F4*'Building Energy'!$O13*SUMIFS('Energy Benchmarks'!$G$4:$G$221188,'Energy Benchmarks'!$A$4:$A$221188,'Building Energy'!$G13,'Energy Benchmarks'!$B$4:$B$221188,'Building Energy'!$H13,'Energy Benchmarks'!$D$4:$D$221188,$GW$3,'Energy Benchmarks'!$E$4:$E$221188,$M$2,'Energy Benchmarks'!$F$4:$F$221188,HB$4) -> 0 | HC5: ='Demand Scaling'!$F4*'Building Energy'!$O13*SUMIFS('Energy Benchmarks'!$G$4:$G$221188,'Energy Benchmarks'!$A$4:$A$221188,'Building Energy'!$G13,'Energy Benchmarks'!$B$4:$B$221188,'Building Energy'!$H13,'Energy Benchmarks'!$D$4:$D$221188,$GW$3,'Energy Benchmarks'!$E$4:$E$221188,$M$2,'Energy Benchmarks'!$F$4:$F$221188,HC$4) -> 0 | HD5: ='Demand Scaling'!$F4*'Building Energy'!$O13*SUMIFS('Energy Benchmarks'!$G$4:$G$221188,'Energy Benchmarks'!$A$4:$A$221188,'Building Energy'!$G13,'Energy Benchmarks'!$B$4:$B$221188,'Building Energy'!$H13,'Energy Benchmarks'!$D$4:$D$221188,$GW$3,'Energy Benchmarks'!$E$4:$E$221188,$M$2,'Energy Benchmarks'!$F$4:$F$221188,HD$4) -> 0 | HE5: ='Demand Scaling'!$F4*'Building Energy'!$O13*SUMIFS('Energy Benchmarks'!$G$4:$G$221188,'Energy Benchmarks'!$A$4:$A$221188,'Building Energy'!$G13,'Energy Benchmarks'!$B$4:$B$221188,'Building Energy'!$H13,'Energy Benchmarks'!$D$4:$D$221188,$GW$3,'Energy Benchmarks'!$E$4:$E$221188,$M$2,'Energy Benchmarks'!$F$4:$F$221188,HE$4) -> 0 | HF5: ='Demand Scaling'!$F4*'Building Energy'!$O13*SUMIFS('Energy Benchmarks'!$G$4:$G$221188,'Energy Benchmarks'!$A$4:$A$221188,'Building Energy'!$G13,'Energy Benchmarks'!$B$4:$B$221188,'Building Energy'!$H13,'Energy Benchmarks'!$D$4:$D$221188,$GW$3,'Energy Benchmarks'!$E$4:$E$221188,$M$2,'Energy Benchmarks'!$F$4:$F$221188,HF$4) -> 0 | HG5: ='Demand Scaling'!$F4*'Building Energy'!$O13*SUMIFS('Energy Benchmarks'!$G$4:$G$221188,'Energy Benchmarks'!$A$4:$A$221188,'Building Energy'!$G13,'Energy Benchmarks'!$B$4:$B$221188,'Building Energy'!$H13,'Energy Benchmarks'!$D$4:$D$221188,$GW$3,'Energy Benchmarks'!$E$4:$E$221188,$M$2,'Energy Benchmarks'!$F$4:$F$221188,HG$4) -> 0 | HH5: ='Demand Scaling'!$F4*'Building Energy'!$O13*SUMIFS('Energy Benchmarks'!$G$4:$G$221188,'Energy Benchmarks'!$A$4:$A$221188,'Building Energy'!$G13,'Energy Benchmarks'!$B$4:$B$221188,'Building Energy'!$H13,'Energy Benchmarks'!$D$4:$D$221188,$GW$3,'Energy Benchmarks'!$E$4:$E$221188,$M$2,'Energy Benchmarks'!$F$4:$F$221188,HH$4) -> 0 | HI5: ='Demand Scaling'!$F4*'Building Energy'!$O13*SUMIFS('Energy Benchmarks'!$G$4:$G$221188,'Energy Benchmarks'!$A$4:$A$221188,'Building Energy'!$G13,'Energy Benchmarks'!$B$4:$B$221188,'Building Energy'!$H13,'Energy Benchmarks'!$D$4:$D$221188,$GW$3,'Energy Benchmarks'!$E$4:$E$221188,$M$2,'Energy Benchmarks'!$F$4:$F$221188,HI$4) -> 0 | HJ5: ='Demand Scaling'!$F4*'Building Energy'!$O13*SUMIFS('Energy Benchmarks'!$G$4:$G$221188,'Energy Benchmarks'!$A$4:$A$221188,'Building Energy'!$G13,'Energy Benchmarks'!$B$4:$B$221188,'Building Energy'!$H13,'Energy Benchmarks'!$D$4:$D$221188,$GW$3,'Energy Benchmarks'!$E$4:$E$221188,$M$2,'Energy Benchmarks'!$F$4:$F$221188,HJ$4) -> 0 | HK5: ='Demand Scaling'!$F4*'Building Energy'!$O13*SUMIFS('Energy Benchmarks'!$G$4:$G$221188,'Energy Benchmarks'!$A$4:$A$221188,'Building Energy'!$G13,'Energy Benchmarks'!$B$4:$B$221188,'Building Energy'!$H13,'Energy Benchmarks'!$D$4:$D$221188,$GW$3,'Energy Benchmarks'!$E$4:$E$221188,$M$2,'Energy Benchmarks'!$F$4:$F$221188,HK$4) -> 0 | HL5: ='Demand Scaling'!$F4*'Building Energy'!$O13*SUMIFS('Energy Benchmarks'!$G$4:$G$221188,'Energy Benchmarks'!$A$4:$A$221188,'Building Energy'!$G13,'Energy Benchmarks'!$B$4:$B$221188,'Building Energy'!$H13,'Energy Benchmarks'!$D$4:$D$221188,$GW$3,'Energy Benchmarks'!$E$4:$E$221188,$M$2,'Energy Benchmarks'!$F$4:$F$221188,HL$4) -> 0 | HM5: ='Demand Scaling'!$F4*'Building Energy'!$O13*SUMIFS('Energy Benchmarks'!$G$4:$G$221188,'Energy Benchmarks'!$A$4:$A$221188,'Building Energy'!$G13,'Energy Benchmarks'!$B$4:$B$221188,'Building Energy'!$H13,'Energy Benchmarks'!$D$4:$D$221188,$GW$3,'Energy Benchmarks'!$E$4:$E$221188,$M$2,'Energy Benchmarks'!$F$4:$F$221188,HM$4) -> 0 | HN5: ='Demand Scaling'!$F4*'Building Energy'!$O13*SUMIFS('Energy Benchmarks'!$G$4:$G$221188,'Energy Benchmarks'!$A$4:$A$221188,'Building Energy'!$G13,'Energy Benchmarks'!$B$4:$B$221188,'Building Energy'!$H13,'Energy Benchmarks'!$D$4:$D$221188,$GW$3,'Energy Benchmarks'!$E$4:$E$221188,$M$2,'Energy Benchmarks'!$F$4:$F$221188,HN$4) -> 0 | HO5: ='Demand Scaling'!$F4*'Building Energy'!$O13*SUMIFS('Energy Benchmarks'!$G$4:$G$221188,'Energy Benchmarks'!$A$4:$A$221188,'Building Energy'!$G13,'Energy Benchmarks'!$B$4:$B$221188,'Building Energy'!$H13,'Energy Benchmarks'!$D$4:$D$221188,$GW$3,'Energy Benchmarks'!$E$4:$E$221188,$M$2,'Energy Benchmarks'!$F$4:$F$221188,HO$4) -> 0 | HP5: ='Demand Scaling'!$F4*'Building Energy'!$O13*SUMIFS('Energy Benchmarks'!$G$4:$G$221188,'Energy Benchmarks'!$A$4:$A$221188,'Building Energy'!$G13,'Energy Benchmarks'!$B$4:$B$221188,'Building Energy'!$H13,'Energy Benchmarks'!$D$4:$D$221188,$GW$3,'Energy Benchmarks'!$E$4:$E$221188,$M$2,'Energy Benchmarks'!$F$4:$F$221188,HP$4) -> 0 | HQ5: ='Demand Scaling'!$F4*'Building Energy'!$O13*SUMIFS('Energy Benchmarks'!$G$4:$G$221188,'Energy Benchmarks'!$A$4:$A$221188,'Building Energy'!$G13,'Energy Benchmarks'!$B$4:$B$221188,'Building Energy'!$H13,'Energy Benchmarks'!$D$4:$D$221188,$GW$3,'Energy Benchmarks'!$E$4:$E$221188,$M$2,'Energy Benchmarks'!$F$4:$F$221188,HQ$4) -> 0 | HR5: ='Demand Scaling'!$F4*'Building Energy'!$O13*SUMIFS('Energy Benchmarks'!$G$4:$G$221188,'Energy Benchmarks'!$A$4:$A$221188,'Building Energy'!$G13,'Energy Benchmarks'!$B$4:$B$221188,'Building Energy'!$H13,'Energy Benchmarks'!$D$4:$D$221188,$GW$3,'Energy Benchmarks'!$E$4:$E$221188,$M$2,'Energy Benchmarks'!$F$4:$F$221188,HR$4) -> 0 | HS5: ='Demand Scaling'!$F4*'Building Energy'!$O13*SUMIFS('Energy Benchmarks'!$G$4:$G$221188,'Energy Benchmarks'!$A$4:$A$221188,'Building Energy'!$G13,'Energy Benchmarks'!$B$4:$B$221188,'Building Energy'!$H13,'Energy Benchmarks'!$D$4:$D$221188,$GW$3,'Energy Benchmarks'!$E$4:$E$221188,$M$2,'Energy Benchmarks'!$F$4:$F$221188,HS$4) -> 0 | HT5: ='Demand Scaling'!$F4*'Building Energy'!$O13*SUMIFS('Energy Benchmarks'!$G$4:$G$221188,'Energy Benchmarks'!$A$4:$A$221188,'Building Energy'!$G13,'Energy Benchmarks'!$B$4:$B$221188,'Building Energy'!$H13,'Energy Benchmarks'!$D$4:$D$221188,$GW$3,'Energy Benchmarks'!$E$4:$E$221188,$M$2,'Energy Benchmarks'!$F$4:$F$221188,HT$4) -> 0 | HU5: ='Demand Scaling'!$F4*'Building Energy'!$O13*SUMIFS('Energy Benchmarks'!$G$4:$G$221188,'Energy Benchmarks'!$A$4:$A$221188,'Building Energy'!$G13,'Energy Benchmarks'!$B$4:$B$221188,'Building Energy'!$H13,'Energy Benchmarks'!$D$4:$D$221188,$GW$3,'Energy Benchmarks'!$E$4:$E$221188,$M$2,'Energy Benchmarks'!$F$4:$F$221188,HU$4) -> 0 | HV5: ='Demand Scaling'!$F4*'Building Energy'!$O13*SUMIFS('Energy Benchmarks'!$G$4:$G$221188,'Energy Benchmarks'!$A$4:$A$221188,'Building Energy'!$G13,'Energy Benchmarks'!$B$4:$B$221188,'Building Energy'!$H13,'Energy Benchmarks'!$D$4:$D$221188,$GW$3,'Energy Benchmarks'!$E$4:$E$221188,$M$2,'Energy Benchmarks'!$F$4:$F$221188,HV$4) -> 0 | HW5: ='Demand Scaling'!$F4*'Building Energy'!$O13*SUMIFS('Energy Benchmarks'!$G$4:$G$221188,'Energy Benchmarks'!$A$4:$A$221188,'Building Energy'!$G13,'Energy Benchmarks'!$B$4:$B$221188,'Building Energy'!$H13,'Energy Benchmarks'!$D$4:$D$221188,$GW$3,'Energy Benchmarks'!$E$4:$E$221188,$M$2,'Energy Benchmarks'!$F$4:$F$221188,HW$4) -> 0 | HX5: ='Demand Scaling'!$F4*'Building Energy'!$O13*SUMIFS('Energy Benchmarks'!$G$4:$G$221188,'Energy Benchmarks'!$A$4:$A$221188,'Building Energy'!$G13,'Energy Benchmarks'!$B$4:$B$221188,'Building Energy'!$H13,'Energy Benchmarks'!$D$4:$D$221188,$GW$3,'Energy Benchmarks'!$E$4:$E$221188,$M$2,'Energy Benchmarks'!$F$4:$F$221188,HX$4) -> 0 | HY5: ='Demand Scaling'!$F4*'Building Energy'!$O13*SUMIFS('Energy Benchmarks'!$G$4:$G$221188,'Energy Benchmarks'!$A$4:$A$221188,'Building Energy'!$G13,'Energy Benchmarks'!$B$4:$B$221188,'Building Energy'!$H13,'Energy Benchmarks'!$D$4:$D$221188,$GW$3,'Energy Benchmarks'!$E$4:$E$221188,$M$2,'Energy Benchmarks'!$F$4:$F$221188,HY$4) -> 0 | HZ5: ='Demand Scaling'!$F4*'Building Energy'!$O13*SUMIFS('Energy Benchmarks'!$G$4:$G$221188,'Energy Benchmarks'!$A$4:$A$221188,'Building Energy'!$G13,'Energy Benchmarks'!$B$4:$B$221188,'Building Energy'!$H13,'Energy Benchmarks'!$D$4:$D$221188,$GW$3,'Energy Benchmarks'!$E$4:$E$221188,$M$2,'Energy Benchmarks'!$F$4:$F$221188,HZ$4) -> 0 | IA5: ='Demand Scaling'!$F4*'Building Energy'!$O13*SUMIFS('Energy Benchmarks'!$G$4:$G$221188,'Energy Benchmarks'!$A$4:$A$221188,'Building Energy'!$G13,'Energy Benchmarks'!$B$4:$B$221188,'Building Energy'!$H13,'Energy Benchmarks'!$D$4:$D$221188,$GW$3,'Energy Benchmarks'!$E$4:$E$221188,$M$2,'Energy Benchmarks'!$F$4:$F$221188,IA$4) -> 0 | IB5: ='Demand Scaling'!$F4*'Building Energy'!$O13*SUMIFS('Energy Benchmarks'!$G$4:$G$221188,'Energy Benchmarks'!$A$4:$A$221188,'Building Energy'!$G13,'Energy Benchmarks'!$B$4:$B$221188,'Building Energy'!$H13,'Energy Benchmarks'!$D$4:$D$221188,$GW$3,'Energy Benchmarks'!$E$4:$E$221188,$M$2,'Energy Benchmarks'!$F$4:$F$221188,IB$4) -> 0 | IC5: ='Demand Scaling'!$F4*'Building Energy'!$O13*SUMIFS('Energy Benchmarks'!$G$4:$G$221188,'Energy Benchmarks'!$A$4:$A$221188,'Building Energy'!$G13,'Energy Benchmarks'!$B$4:$B$221188,'Building Energy'!$H13,'Energy Benchmarks'!$D$4:$D$221188,$GW$3,'Energy Benchmarks'!$E$4:$E$221188,$M$2,'Energy Benchmarks'!$F$4:$F$221188,IC$4) -> 0 | ID5: ='Demand Scaling'!$F4*'Building Energy'!$O13*SUMIFS('Energy Benchmarks'!$G$4:$G$221188,'Energy Benchmarks'!$A$4:$A$221188,'Building Energy'!$G13,'Energy Benchmarks'!$B$4:$B$221188,'Building Energy'!$H13,'Energy Benchmarks'!$D$4:$D$221188,$GW$3,'Energy Benchmarks'!$E$4:$E$221188,$M$2,'Energy Benchmarks'!$F$4:$F$221188,ID$4) -> 0 | IE5: ='Demand Scaling'!$F4*'Building Energy'!$O13*SUMIFS('Energy Benchmarks'!$G$4:$G$221188,'Energy Benchmarks'!$A$4:$A$221188,'Building Energy'!$G13,'Energy Benchmarks'!$B$4:$B$221188,'Building Energy'!$H13,'Energy Benchmarks'!$D$4:$D$221188,$GW$3,'Energy Benchmarks'!$E$4:$E$221188,$M$2,'Energy Benchmarks'!$F$4:$F$221188,IE$4) -> 0 | IF5: ='Demand Scaling'!$F4*'Building Energy'!$O13*SUMIFS('Energy Benchmarks'!$G$4:$G$221188,'Energy Benchmarks'!$A$4:$A$221188,'Building Energy'!$G13,'Energy Benchmarks'!$B$4:$B$221188,'Building Energy'!$H13,'Energy Benchmarks'!$D$4:$D$221188,$GW$3,'Energy Benchmarks'!$E$4:$E$221188,$M$2,'Energy Benchmarks'!$F$4:$F$221188,IF$4) -> 0 | IG5: ='Demand Scaling'!$F4*'Building Energy'!$O13*SUMIFS('Energy Benchmarks'!$G$4:$G$221188,'Energy Benchmarks'!$A$4:$A$221188,'Building Energy'!$G13,'Energy Benchmarks'!$B$4:$B$221188,'Building Energy'!$H13,'Energy Benchmarks'!$D$4:$D$221188,$GW$3,'Energy Benchmarks'!$E$4:$E$221188,$M$2,'Energy Benchmarks'!$F$4:$F$221188,IG$4) -> 0 | IH5: ='Demand Scaling'!$F4*'Building Energy'!$O13*SUMIFS('Energy Benchmarks'!$G$4:$G$221188,'Energy Benchmarks'!$A$4:$A$221188,'Building Energy'!$G13,'Energy Benchmarks'!$B$4:$B$221188,'Building Energy'!$H13,'Energy Benchmarks'!$D$4:$D$221188,$GW$3,'Energy Benchmarks'!$E$4:$E$221188,$M$2,'Energy Benchmarks'!$F$4:$F$221188,IH$4) -> 0 | II5: ='Demand Scaling'!$F4*'Building Energy'!$O13*SUMIFS('Energy Benchmarks'!$G$4:$G$221188,'Energy Benchmarks'!$A$4:$A$221188,'Building Energy'!$G13,'Energy Benchmarks'!$B$4:$B$221188,'Building Energy'!$H13,'Energy Benchmarks'!$D$4:$D$221188,$GW$3,'Energy Benchmarks'!$E$4:$E$221188,$M$2,'Energy Benchmarks'!$F$4:$F$221188,II$4) -> 0 | IJ5: ='Demand Scaling'!$F4*'Building Energy'!$O13*SUMIFS('Energy Benchmarks'!$G$4:$G$221188,'Energy Benchmarks'!$A$4:$A$221188,'Building Energy'!$G13,'Energy Benchmarks'!$B$4:$B$221188,'Building Energy'!$H13,'Energy Benchmarks'!$D$4:$D$221188,$GW$3,'Energy Benchmarks'!$E$4:$E$221188,$M$2,'Energy Benchmarks'!$F$4:$F$221188,IJ$4) -> 0 | IK5: ='Demand Scaling'!$F4*'Building Energy'!$O13*SUMIFS('Energy Benchmarks'!$G$4:$G$221188,'Energy Benchmarks'!$A$4:$A$221188,'Building Energy'!$G13,'Energy Benchmarks'!$B$4:$B$221188,'Building Energy'!$H13,'Energy Benchmarks'!$D$4:$D$221188,$GW$3,'Energy Benchmarks'!$E$4:$E$221188,$M$2,'Energy Benchmarks'!$F$4:$F$221188,IK$4) -> 0 | IL5: ='Demand Scaling'!$F4*'Building Energy'!$O13*SUMIFS('Energy Benchmarks'!$G$4:$G$221188,'Energy Benchmarks'!$A$4:$A$221188,'Building Energy'!$G13,'Energy Benchmarks'!$B$4:$B$221188,'Building Energy'!$H13,'Energy Benchmarks'!$D$4:$D$221188,$GW$3,'Energy Benchmarks'!$E$4:$E$221188,$M$2,'Energy Benchmarks'!$F$4:$F$221188,IL$4) -> 0 | IM5: ='Demand Scaling'!$F4*'Building Energy'!$O13*SUMIFS('Energy Benchmarks'!$G$4:$G$221188,'Energy Benchmarks'!$A$4:$A$221188,'Building Energy'!$G13,'Energy Benchmarks'!$B$4:$B$221188,'Building Energy'!$H13,'Energy Benchmarks'!$D$4:$D$221188,$GW$3,'Energy Benchmarks'!$E$4:$E$221188,$M$2,'Energy Benchmarks'!$F$4:$F$221188,IM$4) -> 0 | IN5: ='Demand Scaling'!$F4*'Building Energy'!$O13*SUMIFS('Energy Benchmarks'!$G$4:$G$221188,'Energy Benchmarks'!$A$4:$A$221188,'Building Energy'!$G13,'Energy Benchmarks'!$B$4:$B$221188,'Building Energy'!$H13,'Energy Benchmarks'!$D$4:$D$221188,$GW$3,'Energy Benchmarks'!$E$4:$E$221188,$M$2,'Energy Benchmarks'!$F$4:$F$221188,IN$4) -> 0 | IO5: ='Demand Scaling'!$F4*'Building Energy'!$O13*SUMIFS('Energy Benchmarks'!$G$4:$G$221188,'Energy Benchmarks'!$A$4:$A$221188,'Building Energy'!$G13,'Energy Benchmarks'!$B$4:$B$221188,'Building Energy'!$H13,'Energy Benchmarks'!$D$4:$D$221188,$GW$3,'Energy Benchmarks'!$E$4:$E$221188,$M$2,'Energy Benchmarks'!$F$4:$F$221188,IO$4) -> 0 | IP5: ='Demand Scaling'!$F4*'Building Energy'!$O13*SUMIFS('Energy Benchmarks'!$G$4:$G$221188,'Energy Benchmarks'!$A$4:$A$221188,'Building Energy'!$G13,'Energy Benchmarks'!$B$4:$B$221188,'Building Energy'!$H13,'Energy Benchmarks'!$D$4:$D$221188,$GW$3,'Energy Benchmarks'!$E$4:$E$221188,$M$2,'Energy Benchmarks'!$F$4:$F$221188,IP$4) -> 0 | IQ5: ='Demand Scaling'!$F4*'Building Energy'!$O13*SUMIFS('Energy Benchmarks'!$G$4:$G$221188,'Energy Benchmarks'!$A$4:$A$221188,'Building Energy'!$G13,'Energy Benchmarks'!$B$4:$B$221188,'Building Energy'!$H13,'Energy Benchmarks'!$D$4:$D$221188,$GW$3,'Energy Benchmarks'!$E$4:$E$221188,$M$2,'Energy Benchmarks'!$F$4:$F$221188,IQ$4) -> 0 | IR5: ='Demand Scaling'!$F4*'Building Energy'!$O13*SUMIFS('Energy Benchmarks'!$G$4:$G$221188,'Energy Benchmarks'!$A$4:$A$221188,'Building Energy'!$G13,'Energy Benchmarks'!$B$4:$B$221188,'Building Energy'!$H13,'Energy Benchmarks'!$D$4:$D$221188,$GW$3,'Energy Benchmarks'!$E$4:$E$221188,$M$2,'Energy Benchmarks'!$F$4:$F$221188,IR$4) -> 0 | IS5: ='Demand Scaling'!$F4*'Building Energy'!$O13*SUMIFS('Energy Benchmarks'!$G$4:$G$221188,'Energy Benchmarks'!$A$4:$A$221188,'Building Energy'!$G13,'Energy Benchmarks'!$B$4:$B$221188,'Building Energy'!$H13,'Energy Benchmarks'!$D$4:$D$221188,$IS$3,'Energy Benchmarks'!$E$4:$E$221188,$M$2,'Energy Benchmarks'!$F$4:$F$221188,IS$4) -> 0 | IT5: ='Demand Scaling'!$F4*'Building Energy'!$O13*SUMIFS('Energy Benchmarks'!$G$4:$G$221188,'Energy Benchmarks'!$A$4:$A$221188,'Building Energy'!$G13,'Energy Benchmarks'!$B$4:$B$221188,'Building Energy'!$H13,'Energy Benchmarks'!$D$4:$D$221188,$IS$3,'Energy Benchmarks'!$E$4:$E$221188,$M$2,'Energy Benchmarks'!$F$4:$F$221188,IT$4) -> 0 | IU5: ='Demand Scaling'!$F4*'Building Energy'!$O13*SUMIFS('Energy Benchmarks'!$G$4:$G$221188,'Energy Benchmarks'!$A$4:$A$221188,'Building Energy'!$G13,'Energy Benchmarks'!$B$4:$B$221188,'Building Energy'!$H13,'Energy Benchmarks'!$D$4:$D$221188,$IS$3,'Energy Benchmarks'!$E$4:$E$221188,$M$2,'Energy Benchmarks'!$F$4:$F$221188,IU$4) -> 0 | IV5: ='Demand Scaling'!$F4*'Building Energy'!$O13*SUMIFS('Energy Benchmarks'!$G$4:$G$221188,'Energy Benchmarks'!$A$4:$A$221188,'Building Energy'!$G13,'Energy Benchmarks'!$B$4:$B$221188,'Building Energy'!$H13,'Energy Benchmarks'!$D$4:$D$221188,$IS$3,'Energy Benchmarks'!$E$4:$E$221188,$M$2,'Energy Benchmarks'!$F$4:$F$221188,IV$4) -> 0 | IW5: ='Demand Scaling'!$F4*'Building Energy'!$O13*SUMIFS('Energy Benchmarks'!$G$4:$G$221188,'Energy Benchmarks'!$A$4:$A$221188,'Building Energy'!$G13,'Energy Benchmarks'!$B$4:$B$221188,'Building Energy'!$H13,'Energy Benchmarks'!$D$4:$D$221188,$IS$3,'Energy Benchmarks'!$E$4:$E$221188,$M$2,'Energy Benchmarks'!$F$4:$F$221188,IW$4) -> 0 | IX5: ='Demand Scaling'!$F4*'Building Energy'!$O13*SUMIFS('Energy Benchmarks'!$G$4:$G$221188,'Energy Benchmarks'!$A$4:$A$221188,'Building Energy'!$G13,'Energy Benchmarks'!$B$4:$B$221188,'Building Energy'!$H13,'Energy Benchmarks'!$D$4:$D$221188,$IS$3,'Energy Benchmarks'!$E$4:$E$221188,$M$2,'Energy Benchmarks'!$F$4:$F$221188,IX$4) -> 0 | IY5: ='Demand Scaling'!$F4*'Building Energy'!$O13*SUMIFS('Energy Benchmarks'!$G$4:$G$221188,'Energy Benchmarks'!$A$4:$A$221188,'Building Energy'!$G13,'Energy Benchmarks'!$B$4:$B$221188,'Building Energy'!$H13,'Energy Benchmarks'!$D$4:$D$221188,$IS$3,'Energy Benchmarks'!$E$4:$E$221188,$M$2,'Energy Benchmarks'!$F$4:$F$221188,IY$4) -> 0 | IZ5: ='Demand Scaling'!$F4*'Building Energy'!$O13*SUMIFS('Energy Benchmarks'!$G$4:$G$221188,'Energy Benchmarks'!$A$4:$A$221188,'Building Energy'!$G13,'Energy Benchmarks'!$B$4:$B$221188,'Building Energy'!$H13,'Energy Benchmarks'!$D$4:$D$221188,$IS$3,'Energy Benchmarks'!$E$4:$E$221188,$M$2,'Energy Benchmarks'!$F$4:$F$221188,IZ$4) -> 0 | JA5: ='Demand Scaling'!$F4*'Building Energy'!$O13*SUMIFS('Energy Benchmarks'!$G$4:$G$221188,'Energy Benchmarks'!$A$4:$A$221188,'Building Energy'!$G13,'Energy Benchmarks'!$B$4:$B$221188,'Building Energy'!$H13,'Energy Benchmarks'!$D$4:$D$221188,$IS$3,'Energy Benchmarks'!$E$4:$E$221188,$M$2,'Energy Benchmarks'!$F$4:$F$221188,JA$4) -> 0 | JB5: ='Demand Scaling'!$F4*'Building Energy'!$O13*SUMIFS('Energy Benchmarks'!$G$4:$G$221188,'Energy Benchmarks'!$A$4:$A$221188,'Building Energy'!$G13,'Energy Benchmarks'!$B$4:$B$221188,'Building Energy'!$H13,'Energy Benchmarks'!$D$4:$D$221188,$IS$3,'Energy Benchmarks'!$E$4:$E$221188,$M$2,'Energy Benchmarks'!$F$4:$F$221188,JB$4) -> 0 | JC5: ='Demand Scaling'!$F4*'Building Energy'!$O13*SUMIFS('Energy Benchmarks'!$G$4:$G$221188,'Energy Benchmarks'!$A$4:$A$221188,'Building Energy'!$G13,'Energy Benchmarks'!$B$4:$B$221188,'Building Energy'!$H13,'Energy Benchmarks'!$D$4:$D$221188,$IS$3,'Energy Benchmarks'!$E$4:$E$221188,$M$2,'Energy Benchmarks'!$F$4:$F$221188,JC$4) -> 0 | JD5: ='Demand Scaling'!$F4*'Building Energy'!$O13*SUMIFS('Energy Benchmarks'!$G$4:$G$221188,'Energy Benchmarks'!$A$4:$A$221188,'Building Energy'!$G13,'Energy Benchmarks'!$B$4:$B$221188,'Building Energy'!$H13,'Energy Benchmarks'!$D$4:$D$221188,$IS$3,'Energy Benchmarks'!$E$4:$E$221188,$M$2,'Energy Benchmarks'!$F$4:$F$221188,JD$4) -> 0 | JE5: ='Demand Scaling'!$F4*'Building Energy'!$O13*SUMIFS('Energy Benchmarks'!$G$4:$G$221188,'Energy Benchmarks'!$A$4:$A$221188,'Building Energy'!$G13,'Energy Benchmarks'!$B$4:$B$221188,'Building Energy'!$H13,'Energy Benchmarks'!$D$4:$D$221188,$IS$3,'Energy Benchmarks'!$E$4:$E$221188,$M$2,'Energy Benchmarks'!$F$4:$F$221188,JE$4) -> 0 | JF5: ='Demand Scaling'!$F4*'Building Energy'!$O13*SUMIFS('Energy Benchmarks'!$G$4:$G$221188,'Energy Benchmarks'!$A$4:$A$221188,'Building Energy'!$G13,'Energy Benchmarks'!$B$4:$B$221188,'Building Energy'!$H13,'Energy Benchmarks'!$D$4:$D$221188,$IS$3,'Energy Benchmarks'!$E$4:$E$221188,$M$2,'Energy Benchmarks'!$F$4:$F$221188,JF$4) -> 0 | JG5: ='Demand Scaling'!$F4*'Building Energy'!$O13*SUMIFS('Energy Benchmarks'!$G$4:$G$221188,'Energy Benchmarks'!$A$4:$A$221188,'Building Energy'!$G13,'Energy Benchmarks'!$B$4:$B$221188,'Building Energy'!$H13,'Energy Benchmarks'!$D$4:$D$221188,$IS$3,'Energy Benchmarks'!$E$4:$E$221188,$M$2,'Energy Benchmarks'!$F$4:$F$221188,JG$4) -> 0 | JH5: ='Demand Scaling'!$F4*'Building Energy'!$O13*SUMIFS('Energy Benchmarks'!$G$4:$G$221188,'Energy Benchmarks'!$A$4:$A$221188,'Building Energy'!$G13,'Energy Benchmarks'!$B$4:$B$221188,'Building Energy'!$H13,'Energy Benchmarks'!$D$4:$D$221188,$IS$3,'Energy Benchmarks'!$E$4:$E$221188,$M$2,'Energy Benchmarks'!$F$4:$F$221188,JH$4) -> 0 | JI5: ='Demand Scaling'!$F4*'Building Energy'!$O13*SUMIFS('Energy Benchmarks'!$G$4:$G$221188,'Energy Benchmarks'!$A$4:$A$221188,'Building Energy'!$G13,'Energy Benchmarks'!$B$4:$B$221188,'Building Energy'!$H13,'Energy Benchmarks'!$D$4:$D$221188,$IS$3,'Energy Benchmarks'!$E$4:$E$221188,$M$2,'Energy Benchmarks'!$F$4:$F$221188,JI$4) -> 0 | JJ5: ='Demand Scaling'!$F4*'Building Energy'!$O13*SUMIFS('Energy Benchmarks'!$G$4:$G$221188,'Energy Benchmarks'!$A$4:$A$221188,'Building Energy'!$G13,'Energy Benchmarks'!$B$4:$B$221188,'Building Energy'!$H13,'Energy Benchmarks'!$D$4:$D$221188,$IS$3,'Energy Benchmarks'!$E$4:$E$221188,$M$2,'Energy Benchmarks'!$F$4:$F$221188,JJ$4) -> 0 | JK5: ='Demand Scaling'!$F4*'Building Energy'!$O13*SUMIFS('Energy Benchmarks'!$G$4:$G$221188,'Energy Benchmarks'!$A$4:$A$221188,'Building Energy'!$G13,'Energy Benchmarks'!$B$4:$B$221188,'Building Energy'!$H13,'Energy Benchmarks'!$D$4:$D$221188,$IS$3,'Energy Benchmarks'!$E$4:$E$221188,$M$2,'Energy Benchmarks'!$F$4:$F$221188,JK$4) -> 0 | JL5: ='Demand Scaling'!$F4*'Building Energy'!$O13*SUMIFS('Energy Benchmarks'!$G$4:$G$221188,'Energy Benchmarks'!$A$4:$A$221188,'Building Energy'!$G13,'Energy Benchmarks'!$B$4:$B$221188,'Building Energy'!$H13,'Energy Benchmarks'!$D$4:$D$221188,$IS$3,'Energy Benchmarks'!$E$4:$E$221188,$M$2,'Energy Benchmarks'!$F$4:$F$221188,JL$4) -> 0 | JM5: ='Demand Scaling'!$F4*'Building Energy'!$O13*SUMIFS('Energy Benchmarks'!$G$4:$G$221188,'Energy Benchmarks'!$A$4:$A$221188,'Building Energy'!$G13,'Energy Benchmarks'!$B$4:$B$221188,'Building Energy'!$H13,'Energy Benchmarks'!$D$4:$D$221188,$IS$3,'Energy Benchmarks'!$E$4:$E$221188,$M$2,'Energy Benchmarks'!$F$4:$F$221188,JM$4) -> 0 | JN5: ='Demand Scaling'!$F4*'Building Energy'!$O13*SUMIFS('Energy Benchmarks'!$G$4:$G$221188,'Energy Benchmarks'!$A$4:$A$221188,'Building Energy'!$G13,'Energy Benchmarks'!$B$4:$B$221188,'Building Energy'!$H13,'Energy Benchmarks'!$D$4:$D$221188,$IS$3,'Energy Benchmarks'!$E$4:$E$221188,$M$2,'Energy Benchmarks'!$F$4:$F$221188,JN$4) -> 0 | JO5: ='Demand Scaling'!$F4*'Building Energy'!$O13*SUMIFS('Energy Benchmarks'!$G$4:$G$221188,'Energy Benchmarks'!$A$4:$A$221188,'Building Energy'!$G13,'Energy Benchmarks'!$B$4:$B$221188,'Building Energy'!$H13,'Energy Benchmarks'!$D$4:$D$221188,$IS$3,'Energy Benchmarks'!$E$4:$E$221188,$M$2,'Energy Benchmarks'!$F$4:$F$221188,JO$4) -> 0 | JP5: ='Demand Scaling'!$F4*'Building Energy'!$O13*SUMIFS('Energy Benchmarks'!$G$4:$G$221188,'Energy Benchmarks'!$A$4:$A$221188,'Building Energy'!$G13,'Energy Benchmarks'!$B$4:$B$221188,'Building Energy'!$H13,'Energy Benchmarks'!$D$4:$D$221188,$IS$3,'Energy Benchmarks'!$E$4:$E$221188,$M$2,'Energy Benchmarks'!$F$4:$F$221188,JP$4) -> 0 | JQ5: ='Demand Scaling'!$F4*'Building Energy'!$O13*SUMIFS('Energy Benchmarks'!$G$4:$G$221188,'Energy Benchmarks'!$A$4:$A$221188,'Building Energy'!$G13,'Energy Benchmarks'!$B$4:$B$221188,'Building Energy'!$H13,'Energy Benchmarks'!$D$4:$D$221188,$IS$3,'Energy Benchmarks'!$E$4:$E$221188,$M$2,'Energy Benchmarks'!$F$4:$F$221188,JQ$4) -> 0 | JR5: ='Demand Scaling'!$F4*'Building Energy'!$O13*SUMIFS('Energy Benchmarks'!$G$4:$G$221188,'Energy Benchmarks'!$A$4:$A$221188,'Building Energy'!$G13,'Energy Benchmarks'!$B$4:$B$221188,'Building Energy'!$H13,'Energy Benchmarks'!$D$4:$D$221188,$IS$3,'Energy Benchmarks'!$E$4:$E$221188,$M$2,'Energy Benchmarks'!$F$4:$F$221188,JR$4) -> 0 | JS5: ='Demand Scaling'!$F4*'Building Energy'!$O13*SUMIFS('Energy Benchmarks'!$G$4:$G$221188,'Energy Benchmarks'!$A$4:$A$221188,'Building Energy'!$G13,'Energy Benchmarks'!$B$4:$B$221188,'Building Energy'!$H13,'Energy Benchmarks'!$D$4:$D$221188,$IS$3,'Energy Benchmarks'!$E$4:$E$221188,$M$2,'Energy Benchmarks'!$F$4:$F$221188,JS$4) -> 0 | JT5: ='Demand Scaling'!$F4*'Building Energy'!$O13*SUMIFS('Energy Benchmarks'!$G$4:$G$221188,'Energy Benchmarks'!$A$4:$A$221188,'Building Energy'!$G13,'Energy Benchmarks'!$B$4:$B$221188,'Building Energy'!$H13,'Energy Benchmarks'!$D$4:$D$221188,$IS$3,'Energy Benchmarks'!$E$4:$E$221188,$M$2,'Energy Benchmarks'!$F$4:$F$221188,JT$4) -> 0 | JU5: ='Demand Scaling'!$F4*'Building Energy'!$O13*SUMIFS('Energy Benchmarks'!$G$4:$G$221188,'Energy Benchmarks'!$A$4:$A$221188,'Building Energy'!$G13,'Energy Benchmarks'!$B$4:$B$221188,'Building Energy'!$H13,'Energy Benchmarks'!$D$4:$D$221188,$IS$3,'Energy Benchmarks'!$E$4:$E$221188,$M$2,'Energy Benchmarks'!$F$4:$F$221188,JU$4) -> 0 | JV5: ='Demand Scaling'!$F4*'Building Energy'!$O13*SUMIFS('Energy Benchmarks'!$G$4:$G$221188,'Energy Benchmarks'!$A$4:$A$221188,'Building Energy'!$G13,'Energy Benchmarks'!$B$4:$B$221188,'Building Energy'!$H13,'Energy Benchmarks'!$D$4:$D$221188,$IS$3,'Energy Benchmarks'!$E$4:$E$221188,$M$2,'Energy Benchmarks'!$F$4:$F$221188,JV$4) -> 0 | JW5: ='Demand Scaling'!$F4*'Building Energy'!$O13*SUMIFS('Energy Benchmarks'!$G$4:$G$221188,'Energy Benchmarks'!$A$4:$A$221188,'Building Energy'!$G13,'Energy Benchmarks'!$B$4:$B$221188,'Building Energy'!$H13,'Energy Benchmarks'!$D$4:$D$221188,$IS$3,'Energy Benchmarks'!$E$4:$E$221188,$M$2,'Energy Benchmarks'!$F$4:$F$221188,JW$4) -> 0 | JX5: ='Demand Scaling'!$F4*'Building Energy'!$O13*SUMIFS('Energy Benchmarks'!$G$4:$G$221188,'Energy Benchmarks'!$A$4:$A$221188,'Building Energy'!$G13,'Energy Benchmarks'!$B$4:$B$221188,'Building Energy'!$H13,'Energy Benchmarks'!$D$4:$D$221188,$IS$3,'Energy Benchmarks'!$E$4:$E$221188,$M$2,'Energy Benchmarks'!$F$4:$F$221188,JX$4) -> 0 | JY5: ='Demand Scaling'!$F4*'Building Energy'!$O13*SUMIFS('Energy Benchmarks'!$G$4:$G$221188,'Energy Benchmarks'!$A$4:$A$221188,'Building Energy'!$G13,'Energy Benchmarks'!$B$4:$B$221188,'Building Energy'!$H13,'Energy Benchmarks'!$D$4:$D$221188,$IS$3,'Energy Benchmarks'!$E$4:$E$221188,$M$2,'Energy Benchmarks'!$F$4:$F$221188,JY$4) -> 0 | JZ5: ='Demand Scaling'!$F4*'Building Energy'!$O13*SUMIFS('Energy Benchmarks'!$G$4:$G$221188,'Energy Benchmarks'!$A$4:$A$221188,'Building Energy'!$G13,'Energy Benchmarks'!$B$4:$B$221188,'Building Energy'!$H13,'Energy Benchmarks'!$D$4:$D$221188,$IS$3,'Energy Benchmarks'!$E$4:$E$221188,$M$2,'Energy Benchmarks'!$F$4:$F$221188,JZ$4) -> 0 | KA5: ='Demand Scaling'!$F4*'Building Energy'!$O13*SUMIFS('Energy Benchmarks'!$G$4:$G$221188,'Energy Benchmarks'!$A$4:$A$221188,'Building Energy'!$G13,'Energy Benchmarks'!$B$4:$B$221188,'Building Energy'!$H13,'Energy Benchmarks'!$D$4:$D$221188,$IS$3,'Energy Benchmarks'!$E$4:$E$221188,$M$2,'Energy Benchmarks'!$F$4:$F$221188,KA$4) -> 0 | KB5: ='Demand Scaling'!$F4*'Building Energy'!$O13*SUMIFS('Energy Benchmarks'!$G$4:$G$221188,'Energy Benchmarks'!$A$4:$A$221188,'Building Energy'!$G13,'Energy Benchmarks'!$B$4:$B$221188,'Building Energy'!$H13,'Energy Benchmarks'!$D$4:$D$221188,$IS$3,'Energy Benchmarks'!$E$4:$E$221188,$M$2,'Energy Benchmarks'!$F$4:$F$221188,KB$4) -> 0 | KC5: ='Demand Scaling'!$F4*'Building Energy'!$O13*SUMIFS('Energy Benchmarks'!$G$4:$G$221188,'Energy Benchmarks'!$A$4:$A$221188,'Building Energy'!$G13,'Energy Benchmarks'!$B$4:$B$221188,'Building Energy'!$H13,'Energy Benchmarks'!$D$4:$D$221188,$IS$3,'Energy Benchmarks'!$E$4:$E$221188,$M$2,'Energy Benchmarks'!$F$4:$F$221188,KC$4) -> 0 | KD5: ='Demand Scaling'!$F4*'Building Energy'!$O13*SUMIFS('Energy Benchmarks'!$G$4:$G$221188,'Energy Benchmarks'!$A$4:$A$221188,'Building Energy'!$G13,'Energy Benchmarks'!$B$4:$B$221188,'Building Energy'!$H13,'Energy Benchmarks'!$D$4:$D$221188,$IS$3,'Energy Benchmarks'!$E$4:$E$221188,$M$2,'Energy Benchmarks'!$F$4:$F$221188,KD$4) -> 0 | KE5: ='Demand Scaling'!$F4*'Building Energy'!$O13*SUMIFS('Energy Benchmarks'!$G$4:$G$221188,'Energy Benchmarks'!$A$4:$A$221188,'Building Energy'!$G13,'Energy Benchmarks'!$B$4:$B$221188,'Building Energy'!$H13,'Energy Benchmarks'!$D$4:$D$221188,$IS$3,'Energy Benchmarks'!$E$4:$E$221188,$M$2,'Energy Benchmarks'!$F$4:$F$221188,KE$4) -> 0 | KF5: ='Demand Scaling'!$F4*'Building Energy'!$O13*SUMIFS('Energy Benchmarks'!$G$4:$G$221188,'Energy Benchmarks'!$A$4:$A$221188,'Building Energy'!$G13,'Energy Benchmarks'!$B$4:$B$221188,'Building Energy'!$H13,'Energy Benchmarks'!$D$4:$D$221188,$IS$3,'Energy Benchmarks'!$E$4:$E$221188,$M$2,'Energy Benchmarks'!$F$4:$F$221188,KF$4) -> 0 | KG5: ='Demand Scaling'!$F4*'Building Energy'!$O13*SUMIFS('Energy Benchmarks'!$G$4:$G$221188,'Energy Benchmarks'!$A$4:$A$221188,'Building Energy'!$G13,'Energy Benchmarks'!$B$4:$B$221188,'Building Energy'!$H13,'Energy Benchmarks'!$D$4:$D$221188,$IS$3,'Energy Benchmarks'!$E$4:$E$221188,$M$2,'Energy Benchmarks'!$F$4:$F$221188,KG$4) -> 0 | KH5: ='Demand Scaling'!$F4*'Building Energy'!$O13*SUMIFS('Energy Benchmarks'!$G$4:$G$221188,'Energy Benchmarks'!$A$4:$A$221188,'Building Energy'!$G13,'Energy Benchmarks'!$B$4:$B$221188,'Building Energy'!$H13,'Energy Benchmarks'!$D$4:$D$221188,$IS$3,'Energy Benchmarks'!$E$4:$E$221188,$M$2,'Energy Benchmarks'!$F$4:$F$221188,KH$4) -> 0 | KI5: ='Demand Scaling'!$F4*'Building Energy'!$O13*SUMIFS('Energy Benchmarks'!$G$4:$G$221188,'Energy Benchmarks'!$A$4:$A$221188,'Building Energy'!$G13,'Energy Benchmarks'!$B$4:$B$221188,'Building Energy'!$H13,'Energy Benchmarks'!$D$4:$D$221188,$IS$3,'Energy Benchmarks'!$E$4:$E$221188,$M$2,'Energy Benchmarks'!$F$4:$F$221188,KI$4) -> 0 | KJ5: ='Demand Scaling'!$F4*'Building Energy'!$O13*SUMIFS('Energy Benchmarks'!$G$4:$G$221188,'Energy Benchmarks'!$A$4:$A$221188,'Building Energy'!$G13,'Energy Benchmarks'!$B$4:$B$221188,'Building Energy'!$H13,'Energy Benchmarks'!$D$4:$D$221188,$IS$3,'Energy Benchmarks'!$E$4:$E$221188,$M$2,'Energy Benchmarks'!$F$4:$F$221188,KJ$4) -> 0 | KK5: ='Demand Scaling'!$F4*'Building Energy'!$O13*SUMIFS('Energy Benchmarks'!$G$4:$G$221188,'Energy Benchmarks'!$A$4:$A$221188,'Building Energy'!$G13,'Energy Benchmarks'!$B$4:$B$221188,'Building Energy'!$H13,'Energy Benchmarks'!$D$4:$D$221188,$IS$3,'Energy Benchmarks'!$E$4:$E$221188,$M$2,'Energy Benchmarks'!$F$4:$F$221188,KK$4) -> 0 | KL5: ='Demand Scaling'!$F4*'Building Energy'!$O13*SUMIFS('Energy Benchmarks'!$G$4:$G$221188,'Energy Benchmarks'!$A$4:$A$221188,'Building Energy'!$G13,'Energy Benchmarks'!$B$4:$B$221188,'Building Energy'!$H13,'Energy Benchmarks'!$D$4:$D$221188,$IS$3,'Energy Benchmarks'!$E$4:$E$221188,$M$2,'Energy Benchmarks'!$F$4:$F$221188,KL$4) -> 0 | KM5: ='Demand Scaling'!$F4*'Building Energy'!$O13*SUMIFS('Energy Benchmarks'!$G$4:$G$221188,'Energy Benchmarks'!$A$4:$A$221188,'Building Energy'!$G13,'Energy Benchmarks'!$B$4:$B$221188,'Building Energy'!$H13,'Energy Benchmarks'!$D$4:$D$221188,$IS$3,'Energy Benchmarks'!$E$4:$E$221188,$M$2,'Energy Benchmarks'!$F$4:$F$221188,KM$4) -> 0 | KN5: ='Demand Scaling'!$F4*'Building Energy'!$O13*SUMIFS('Energy Benchmarks'!$G$4:$G$221188,'Energy Benchmarks'!$A$4:$A$221188,'Building Energy'!$G13,'Energy Benchmarks'!$B$4:$B$221188,'Building Energy'!$H13,'Energy Benchmarks'!$D$4:$D$221188,$IS$3,'Energy Benchmarks'!$E$4:$E$221188,$M$2,'Energy Benchmarks'!$F$4:$F$221188,KN$4) -> 0 | KO5: ='Demand Scaling'!$F4*'Building Energy'!$O13*SUMIFS('Energy Benchmarks'!$G$4:$G$221188,'Energy Benchmarks'!$A$4:$A$221188,'Building Energy'!$G13,'Energy Benchmarks'!$B$4:$B$221188,'Building Energy'!$H13,'Energy Benchmarks'!$D$4:$D$221188,$KO$3,'Energy Benchmarks'!$E$4:$E$221188,$M$2,'Energy Benchmarks'!$F$4:$F$221188,KO$4) -> 0 | KP5: ='Demand Scaling'!$F4*'Building Energy'!$O13*SUMIFS('Energy Benchmarks'!$G$4:$G$221188,'Energy Benchmarks'!$A$4:$A$221188,'Building Energy'!$G13,'Energy Benchmarks'!$B$4:$B$221188,'Building Energy'!$H13,'Energy Benchmarks'!$D$4:$D$221188,$KO$3,'Energy Benchmarks'!$E$4:$E$221188,$M$2,'Energy Benchmarks'!$F$4:$F$221188,KP$4) -> 0 | KQ5: ='Demand Scaling'!$F4*'Building Energy'!$O13*SUMIFS('Energy Benchmarks'!$G$4:$G$221188,'Energy Benchmarks'!$A$4:$A$221188,'Building Energy'!$G13,'Energy Benchmarks'!$B$4:$B$221188,'Building Energy'!$H13,'Energy Benchmarks'!$D$4:$D$221188,$KO$3,'Energy Benchmarks'!$E$4:$E$221188,$M$2,'Energy Benchmarks'!$F$4:$F$221188,KQ$4) -> 0 | KR5: ='Demand Scaling'!$F4*'Building Energy'!$O13*SUMIFS('Energy Benchmarks'!$G$4:$G$221188,'Energy Benchmarks'!$A$4:$A$221188,'Building Energy'!$G13,'Energy Benchmarks'!$B$4:$B$221188,'Building Energy'!$H13,'Energy Benchmarks'!$D$4:$D$221188,$KO$3,'Energy Benchmarks'!$E$4:$E$221188,$M$2,'Energy Benchmarks'!$F$4:$F$221188,KR$4) -> 0 | KS5: ='Demand Scaling'!$F4*'Building Energy'!$O13*SUMIFS('Energy Benchmarks'!$G$4:$G$221188,'Energy Benchmarks'!$A$4:$A$221188,'Building Energy'!$G13,'Energy Benchmarks'!$B$4:$B$221188,'Building Energy'!$H13,'Energy Benchmarks'!$D$4:$D$221188,$KO$3,'Energy Benchmarks'!$E$4:$E$221188,$M$2,'Energy Benchmarks'!$F$4:$F$221188,KS$4) -> 0 | KT5: ='Demand Scaling'!$F4*'Building Energy'!$O13*SUMIFS('Energy Benchmarks'!$G$4:$G$221188,'Energy Benchmarks'!$A$4:$A$221188,'Building Energy'!$G13,'Energy Benchmarks'!$B$4:$B$221188,'Building Energy'!$H13,'Energy Benchmarks'!$D$4:$D$221188,$KO$3,'Energy Benchmarks'!$E$4:$E$221188,$M$2,'Energy Benchmarks'!$F$4:$F$221188,KT$4) -> 0 | KU5: ='Demand Scaling'!$F4*'Building Energy'!$O13*SUMIFS('Energy Benchmarks'!$G$4:$G$221188,'Energy Benchmarks'!$A$4:$A$221188,'Building Energy'!$G13,'Energy Benchmarks'!$B$4:$B$221188,'Building Energy'!$H13,'Energy Benchmarks'!$D$4:$D$221188,$KO$3,'Energy Benchmarks'!$E$4:$E$221188,$M$2,'Energy Benchmarks'!$F$4:$F$221188,KU$4) -> 0 | KV5: ='Demand Scaling'!$F4*'Building Energy'!$O13*SUMIFS('Energy Benchmarks'!$G$4:$G$221188,'Energy Benchmarks'!$A$4:$A$221188,'Building Energy'!$G13,'Energy Benchmarks'!$B$4:$B$221188,'Building Energy'!$H13,'Energy Benchmarks'!$D$4:$D$221188,$KO$3,'Energy Benchmarks'!$E$4:$E$221188,$M$2,'Energy Benchmarks'!$F$4:$F$221188,KV$4) -> 0 | KW5: ='Demand Scaling'!$F4*'Building Energy'!$O13*SUMIFS('Energy Benchmarks'!$G$4:$G$221188,'Energy Benchmarks'!$A$4:$A$221188,'Building Energy'!$G13,'Energy Benchmarks'!$B$4:$B$221188,'Building Energy'!$H13,'Energy Benchmarks'!$D$4:$D$221188,$KO$3,'Energy Benchmarks'!$E$4:$E$221188,$M$2,'Energy Benchmarks'!$F$4:$F$221188,KW$4) -> 0 | KX5: ='Demand Scaling'!$F4*'Building Energy'!$O13*SUMIFS('Energy Benchmarks'!$G$4:$G$221188,'Energy Benchmarks'!$A$4:$A$221188,'Building Energy'!$G13,'Energy Benchmarks'!$B$4:$B$221188,'Building Energy'!$H13,'Energy Benchmarks'!$D$4:$D$221188,$KO$3,'Energy Benchmarks'!$E$4:$E$221188,$M$2,'Energy Benchmarks'!$F$4:$F$221188,KX$4) -> 0 | KY5: ='Demand Scaling'!$F4*'Building Energy'!$O13*SUMIFS('Energy Benchmarks'!$G$4:$G$221188,'Energy Benchmarks'!$A$4:$A$221188,'Building Energy'!$G13,'Energy Benchmarks'!$B$4:$B$221188,'Building Energy'!$H13,'Energy Benchmarks'!$D$4:$D$221188,$KO$3,'Energy Benchmarks'!$E$4:$E$221188,$M$2,'Energy Benchmarks'!$F$4:$F$221188,KY$4) -> 0 | KZ5: ='Demand Scaling'!$F4*'Building Energy'!$O13*SUMIFS('Energy Benchmarks'!$G$4:$G$221188,'Energy Benchmarks'!$A$4:$A$221188,'Building Energy'!$G13,'Energy Benchmarks'!$B$4:$B$221188,'Building Energy'!$H13,'Energy Benchmarks'!$D$4:$D$221188,$KO$3,'Energy Benchmarks'!$E$4:$E$221188,$M$2,'Energy Benchmarks'!$F$4:$F$221188,KZ$4) -> 0 | LA5: ='Demand Scaling'!$F4*'Building Energy'!$O13*SUMIFS('Energy Benchmarks'!$G$4:$G$221188,'Energy Benchmarks'!$A$4:$A$221188,'Building Energy'!$G13,'Energy Benchmarks'!$B$4:$B$221188,'Building Energy'!$H13,'Energy Benchmarks'!$D$4:$D$221188,$KO$3,'Energy Benchmarks'!$E$4:$E$221188,$M$2,'Energy Benchmarks'!$F$4:$F$221188,LA$4) -> 0 | LB5: ='Demand Scaling'!$F4*'Building Energy'!$O13*SUMIFS('Energy Benchmarks'!$G$4:$G$221188,'Energy Benchmarks'!$A$4:$A$221188,'Building Energy'!$G13,'Energy Benchmarks'!$B$4:$B$221188,'Building Energy'!$H13,'Energy Benchmarks'!$D$4:$D$221188,$KO$3,'Energy Benchmarks'!$E$4:$E$221188,$M$2,'Energy Benchmarks'!$F$4:$F$221188,LB$4) -> 0 | LC5: ='Demand Scaling'!$F4*'Building Energy'!$O13*SUMIFS('Energy Benchmarks'!$G$4:$G$221188,'Energy Benchmarks'!$A$4:$A$221188,'Building Energy'!$G13,'Energy Benchmarks'!$B$4:$B$221188,'Building Energy'!$H13,'Energy Benchmarks'!$D$4:$D$221188,$KO$3,'Energy Benchmarks'!$E$4:$E$221188,$M$2,'Energy Benchmarks'!$F$4:$F$221188,LC$4) -> 0 | LD5: ='Demand Scaling'!$F4*'Building Energy'!$O13*SUMIFS('Energy Benchmarks'!$G$4:$G$221188,'Energy Benchmarks'!$A$4:$A$221188,'Building Energy'!$G13,'Energy Benchmarks'!$B$4:$B$221188,'Building Energy'!$H13,'Energy Benchmarks'!$D$4:$D$221188,$KO$3,'Energy Benchmarks'!$E$4:$E$221188,$M$2,'Energy Benchmarks'!$F$4:$F$221188,LD$4) -> 0 | LE5: ='Demand Scaling'!$F4*'Building Energy'!$O13*SUMIFS('Energy Benchmarks'!$G$4:$G$221188,'Energy Benchmarks'!$A$4:$A$221188,'Building Energy'!$G13,'Energy Benchmarks'!$B$4:$B$221188,'Building Energy'!$H13,'Energy Benchmarks'!$D$4:$D$221188,$KO$3,'Energy Benchmarks'!$E$4:$E$221188,$M$2,'Energy Benchmarks'!$F$4:$F$221188,LE$4) -> 0 | LF5: ='Demand Scaling'!$F4*'Building Energy'!$O13*SUMIFS('Energy Benchmarks'!$G$4:$G$221188,'Energy Benchmarks'!$A$4:$A$221188,'Building Energy'!$G13,'Energy Benchmarks'!$B$4:$B$221188,'Building Energy'!$H13,'Energy Benchmarks'!$D$4:$D$221188,$KO$3,'Energy Benchmarks'!$E$4:$E$221188,$M$2,'Energy Benchmarks'!$F$4:$F$221188,LF$4) -> 0 | LG5: ='Demand Scaling'!$F4*'Building Energy'!$O13*SUMIFS('Energy Benchmarks'!$G$4:$G$221188,'Energy Benchmarks'!$A$4:$A$221188,'Building Energy'!$G13,'Energy Benchmarks'!$B$4:$B$221188,'Building Energy'!$H13,'Energy Benchmarks'!$D$4:$D$221188,$KO$3,'Energy Benchmarks'!$E$4:$E$221188,$M$2,'Energy Benchmarks'!$F$4:$F$221188,LG$4) -> 0 | LH5: ='Demand Scaling'!$F4*'Building Energy'!$O13*SUMIFS('Energy Benchmarks'!$G$4:$G$221188,'Energy Benchmarks'!$A$4:$A$221188,'Building Energy'!$G13,'Energy Benchmarks'!$B$4:$B$221188,'Building Energy'!$H13,'Energy Benchmarks'!$D$4:$D$221188,$KO$3,'Energy Benchmarks'!$E$4:$E$221188,$M$2,'Energy Benchmarks'!$F$4:$F$221188,LH$4) -> 0 | LI5: ='Demand Scaling'!$F4*'Building Energy'!$O13*SUMIFS('Energy Benchmarks'!$G$4:$G$221188,'Energy Benchmarks'!$A$4:$A$221188,'Building Energy'!$G13,'Energy Benchmarks'!$B$4:$B$221188,'Building Energy'!$H13,'Energy Benchmarks'!$D$4:$D$221188,$KO$3,'Energy Benchmarks'!$E$4:$E$221188,$M$2,'Energy Benchmarks'!$F$4:$F$221188,LI$4) -> 0 | LJ5: ='Demand Scaling'!$F4*'Building Energy'!$O13*SUMIFS('Energy Benchmarks'!$G$4:$G$221188,'Energy Benchmarks'!$A$4:$A$221188,'Building Energy'!$G13,'Energy Benchmarks'!$B$4:$B$221188,'Building Energy'!$H13,'Energy Benchmarks'!$D$4:$D$221188,$KO$3,'Energy Benchmarks'!$E$4:$E$221188,$M$2,'Energy Benchmarks'!$F$4:$F$221188,LJ$4) -> 0 | LK5: ='Demand Scaling'!$F4*'Building Energy'!$O13*SUMIFS('Energy Benchmarks'!$G$4:$G$221188,'Energy Benchmarks'!$A$4:$A$221188,'Building Energy'!$G13,'Energy Benchmarks'!$B$4:$B$221188,'Building Energy'!$H13,'Energy Benchmarks'!$D$4:$D$221188,$KO$3,'Energy Benchmarks'!$E$4:$E$221188,$M$2,'Energy Benchmarks'!$F$4:$F$221188,LK$4) -> 0 | LL5: ='Demand Scaling'!$F4*'Building Energy'!$O13*SUMIFS('Energy Benchmarks'!$G$4:$G$221188,'Energy Benchmarks'!$A$4:$A$221188,'Building Energy'!$G13,'Energy Benchmarks'!$B$4:$B$221188,'Building Energy'!$H13,'Energy Benchmarks'!$D$4:$D$221188,$KO$3,'Energy Benchmarks'!$E$4:$E$221188,$M$2,'Energy Benchmarks'!$F$4:$F$221188,LL$4) -> 0 | LM5: ='Demand Scaling'!$F4*'Building Energy'!$O13*SUMIFS('Energy Benchmarks'!$G$4:$G$221188,'Energy Benchmarks'!$A$4:$A$221188,'Building Energy'!$G13,'Energy Benchmarks'!$B$4:$B$221188,'Building Energy'!$H13,'Energy Benchmarks'!$D$4:$D$221188,$KO$3,'Energy Benchmarks'!$E$4:$E$221188,$M$2,'Energy Benchmarks'!$F$4:$F$221188,LM$4) -> 0 | LN5: ='Demand Scaling'!$F4*'Building Energy'!$O13*SUMIFS('Energy Benchmarks'!$G$4:$G$221188,'Energy Benchmarks'!$A$4:$A$221188,'Building Energy'!$G13,'Energy Benchmarks'!$B$4:$B$221188,'Building Energy'!$H13,'Energy Benchmarks'!$D$4:$D$221188,$KO$3,'Energy Benchmarks'!$E$4:$E$221188,$M$2,'Energy Benchmarks'!$F$4:$F$221188,LN$4) -> 0 | LO5: ='Demand Scaling'!$F4*'Building Energy'!$O13*SUMIFS('Energy Benchmarks'!$G$4:$G$221188,'Energy Benchmarks'!$A$4:$A$221188,'Building Energy'!$G13,'Energy Benchmarks'!$B$4:$B$221188,'Building Energy'!$H13,'Energy Benchmarks'!$D$4:$D$221188,$KO$3,'Energy Benchmarks'!$E$4:$E$221188,$M$2,'Energy Benchmarks'!$F$4:$F$221188,LO$4) -> 0 | LP5: ='Demand Scaling'!$F4*'Building Energy'!$O13*SUMIFS('Energy Benchmarks'!$G$4:$G$221188,'Energy Benchmarks'!$A$4:$A$221188,'Building Energy'!$G13,'Energy Benchmarks'!$B$4:$B$221188,'Building Energy'!$H13,'Energy Benchmarks'!$D$4:$D$221188,$KO$3,'Energy Benchmarks'!$E$4:$E$221188,$M$2,'Energy Benchmarks'!$F$4:$F$221188,LP$4) -> 0 | LQ5: ='Demand Scaling'!$F4*'Building Energy'!$O13*SUMIFS('Energy Benchmarks'!$G$4:$G$221188,'Energy Benchmarks'!$A$4:$A$221188,'Building Energy'!$G13,'Energy Benchmarks'!$B$4:$B$221188,'Building Energy'!$H13,'Energy Benchmarks'!$D$4:$D$221188,$KO$3,'Energy Benchmarks'!$E$4:$E$221188,$M$2,'Energy Benchmarks'!$F$4:$F$221188,LQ$4) -> 0 | LR5: ='Demand Scaling'!$F4*'Building Energy'!$O13*SUMIFS('Energy Benchmarks'!$G$4:$G$221188,'Energy Benchmarks'!$A$4:$A$221188,'Building Energy'!$G13,'Energy Benchmarks'!$B$4:$B$221188,'Building Energy'!$H13,'Energy Benchmarks'!$D$4:$D$221188,$KO$3,'Energy Benchmarks'!$E$4:$E$221188,$M$2,'Energy Benchmarks'!$F$4:$F$221188,LR$4) -> 0 | LS5: ='Demand Scaling'!$F4*'Building Energy'!$O13*SUMIFS('Energy Benchmarks'!$G$4:$G$221188,'Energy Benchmarks'!$A$4:$A$221188,'Building Energy'!$G13,'Energy Benchmarks'!$B$4:$B$221188,'Building Energy'!$H13,'Energy Benchmarks'!$D$4:$D$221188,$KO$3,'Energy Benchmarks'!$E$4:$E$221188,$M$2,'Energy Benchmarks'!$F$4:$F$221188,LS$4) -> 0 | LT5: ='Demand Scaling'!$F4*'Building Energy'!$O13*SUMIFS('Energy Benchmarks'!$G$4:$G$221188,'Energy Benchmarks'!$A$4:$A$221188,'Building Energy'!$G13,'Energy Benchmarks'!$B$4:$B$221188,'Building Energy'!$H13,'Energy Benchmarks'!$D$4:$D$221188,$KO$3,'Energy Benchmarks'!$E$4:$E$221188,$M$2,'Energy Benchmarks'!$F$4:$F$221188,LT$4) -> 0 | LU5: ='Demand Scaling'!$F4*'Building Energy'!$O13*SUMIFS('Energy Benchmarks'!$G$4:$G$221188,'Energy Benchmarks'!$A$4:$A$221188,'Building Energy'!$G13,'Energy Benchmarks'!$B$4:$B$221188,'Building Energy'!$H13,'Energy Benchmarks'!$D$4:$D$221188,$KO$3,'Energy Benchmarks'!$E$4:$E$221188,$M$2,'Energy Benchmarks'!$F$4:$F$221188,LU$4) -> 0 | LV5: ='Demand Scaling'!$F4*'Building Energy'!$O13*SUMIFS('Energy Benchmarks'!$G$4:$G$221188,'Energy Benchmarks'!$A$4:$A$221188,'Building Energy'!$G13,'Energy Benchmarks'!$B$4:$B$221188,'Building Energy'!$H13,'Energy Benchmarks'!$D$4:$D$221188,$KO$3,'Energy Benchmarks'!$E$4:$E$221188,$M$2,'Energy Benchmarks'!$F$4:$F$221188,LV$4) -> 0 | LW5: ='Demand Scaling'!$F4*'Building Energy'!$O13*SUMIFS('Energy Benchmarks'!$G$4:$G$221188,'Energy Benchmarks'!$A$4:$A$221188,'Building Energy'!$G13,'Energy Benchmarks'!$B$4:$B$221188,'Building Energy'!$H13,'Energy Benchmarks'!$D$4:$D$221188,$KO$3,'Energy Benchmarks'!$E$4:$E$221188,$M$2,'Energy Benchmarks'!$F$4:$F$221188,LW$4) -> 0 | LX5: ='Demand Scaling'!$F4*'Building Energy'!$O13*SUMIFS('Energy Benchmarks'!$G$4:$G$221188,'Energy Benchmarks'!$A$4:$A$221188,'Building Energy'!$G13,'Energy Benchmarks'!$B$4:$B$221188,'Building Energy'!$H13,'Energy Benchmarks'!$D$4:$D$221188,$KO$3,'Energy Benchmarks'!$E$4:$E$221188,$M$2,'Energy Benchmarks'!$F$4:$F$221188,LX$4) -> 0 | LY5: ='Demand Scaling'!$F4*'Building Energy'!$O13*SUMIFS('Energy Benchmarks'!$G$4:$G$221188,'Energy Benchmarks'!$A$4:$A$221188,'Building Energy'!$G13,'Energy Benchmarks'!$B$4:$B$221188,'Building Energy'!$H13,'Energy Benchmarks'!$D$4:$D$221188,$KO$3,'Energy Benchmarks'!$E$4:$E$221188,$M$2,'Energy Benchmarks'!$F$4:$F$221188,LY$4) -> 0 | LZ5: ='Demand Scaling'!$F4*'Building Energy'!$O13*SUMIFS('Energy Benchmarks'!$G$4:$G$221188,'Energy Benchmarks'!$A$4:$A$221188,'Building Energy'!$G13,'Energy Benchmarks'!$B$4:$B$221188,'Building Energy'!$H13,'Energy Benchmarks'!$D$4:$D$221188,$KO$3,'Energy Benchmarks'!$E$4:$E$221188,$M$2,'Energy Benchmarks'!$F$4:$F$221188,LZ$4) -> 0 | MA5: ='Demand Scaling'!$F4*'Building Energy'!$O13*SUMIFS('Energy Benchmarks'!$G$4:$G$221188,'Energy Benchmarks'!$A$4:$A$221188,'Building Energy'!$G13,'Energy Benchmarks'!$B$4:$B$221188,'Building Energy'!$H13,'Energy Benchmarks'!$D$4:$D$221188,$KO$3,'Energy Benchmarks'!$E$4:$E$221188,$M$2,'Energy Benchmarks'!$F$4:$F$221188,MA$4) -> 0 | MB5: ='Demand Scaling'!$F4*'Building Energy'!$O13*SUMIFS('Energy Benchmarks'!$G$4:$G$221188,'Energy Benchmarks'!$A$4:$A$221188,'Building Energy'!$G13,'Energy Benchmarks'!$B$4:$B$221188,'Building Energy'!$H13,'Energy Benchmarks'!$D$4:$D$221188,$KO$3,'Energy Benchmarks'!$E$4:$E$221188,$M$2,'Energy Benchmarks'!$F$4:$F$221188,MB$4) -> 0 | MC5: ='Demand Scaling'!$F4*'Building Energy'!$O13*SUMIFS('Energy Benchmarks'!$G$4:$G$221188,'Energy Benchmarks'!$A$4:$A$221188,'Building Energy'!$G13,'Energy Benchmarks'!$B$4:$B$221188,'Building Energy'!$H13,'Energy Benchmarks'!$D$4:$D$221188,$KO$3,'Energy Benchmarks'!$E$4:$E$221188,$M$2,'Energy Benchmarks'!$F$4:$F$221188,MC$4) -> 0 | MD5: ='Demand Scaling'!$F4*'Building Energy'!$O13*SUMIFS('Energy Benchmarks'!$G$4:$G$221188,'Energy Benchmarks'!$A$4:$A$221188,'Building Energy'!$G13,'Energy Benchmarks'!$B$4:$B$221188,'Building Energy'!$H13,'Energy Benchmarks'!$D$4:$D$221188,$KO$3,'Energy Benchmarks'!$E$4:$E$221188,$M$2,'Energy Benchmarks'!$F$4:$F$221188,MD$4) -> 0 | ME5: ='Demand Scaling'!$F4*'Building Energy'!$O13*SUMIFS('Energy Benchmarks'!$G$4:$G$221188,'Energy Benchmarks'!$A$4:$A$221188,'Building Energy'!$G13,'Energy Benchmarks'!$B$4:$B$221188,'Building Energy'!$H13,'Energy Benchmarks'!$D$4:$D$221188,$KO$3,'Energy Benchmarks'!$E$4:$E$221188,$M$2,'Energy Benchmarks'!$F$4:$F$221188,ME$4) -> 0 | MF5: ='Demand Scaling'!$F4*'Building Energy'!$O13*SUMIFS('Energy Benchmarks'!$G$4:$G$221188,'Energy Benchmarks'!$A$4:$A$221188,'Building Energy'!$G13,'Energy Benchmarks'!$B$4:$B$221188,'Building Energy'!$H13,'Energy Benchmarks'!$D$4:$D$221188,$KO$3,'Energy Benchmarks'!$E$4:$E$221188,$M$2,'Energy Benchmarks'!$F$4:$F$221188,MF$4) -> 0 | MG5: ='Demand Scaling'!$F4*'Building Energy'!$O13*SUMIFS('Energy Benchmarks'!$G$4:$G$221188,'Energy Benchmarks'!$A$4:$A$221188,'Building Energy'!$G13,'Energy Benchmarks'!$B$4:$B$221188,'Building Energy'!$H13,'Energy Benchmarks'!$D$4:$D$221188,$KO$3,'Energy Benchmarks'!$E$4:$E$221188,$M$2,'Energy Benchmarks'!$F$4:$F$221188,MG$4) -> 0 | MH5: ='Demand Scaling'!$F4*'Building Energy'!$O13*SUMIFS('Energy Benchmarks'!$G$4:$G$221188,'Energy Benchmarks'!$A$4:$A$221188,'Building Energy'!$G13,'Energy Benchmarks'!$B$4:$B$221188,'Building Energy'!$H13,'Energy Benchmarks'!$D$4:$D$221188,$KO$3,'Energy Benchmarks'!$E$4:$E$221188,$M$2,'Energy Benchmarks'!$F$4:$F$221188,MH$4) -> 0 | MI5: ='Demand Scaling'!$F4*'Building Energy'!$O13*SUMIFS('Energy Benchmarks'!$G$4:$G$221188,'Energy Benchmarks'!$A$4:$A$221188,'Building Energy'!$G13,'Energy Benchmarks'!$B$4:$B$221188,'Building Energy'!$H13,'Energy Benchmarks'!$D$4:$D$221188,$KO$3,'Energy Benchmarks'!$E$4:$E$221188,$M$2,'Energy Benchmarks'!$F$4:$F$221188,MI$4) -> 0 | MJ5: ='Demand Scaling'!$F4*'Building Energy'!$O13*SUMIFS('Energy Benchmarks'!$G$4:$G$221188,'Energy Benchmarks'!$A$4:$A$221188,'Building Energy'!$G13,'Energy Benchmarks'!$B$4:$B$221188,'Building Energy'!$H13,'Energy Benchmarks'!$D$4:$D$221188,$KO$3,'Energy Benchmarks'!$E$4:$E$221188,$M$2,'Energy Benchmarks'!$F$4:$F$221188,MJ$4) -> 0 | MK5: ='Demand Scaling'!$F4*'Building Energy'!$O13*SUMIFS('Energy Benchmarks'!$G$4:$G$221188,'Energy Benchmarks'!$A$4:$A$221188,'Building Energy'!$G13,'Energy Benchmarks'!$B$4:$B$221188,'Building Energy'!$H13,'Energy Benchmarks'!$D$4:$D$221188,$MK$3,'Energy Benchmarks'!$E$4:$E$221188,$M$2,'Energy Benchmarks'!$F$4:$F$221188,MK$4) -> 0 | ML5: ='Demand Scaling'!$F4*'Building Energy'!$O13*SUMIFS('Energy Benchmarks'!$G$4:$G$221188,'Energy Benchmarks'!$A$4:$A$221188,'Building Energy'!$G13,'Energy Benchmarks'!$B$4:$B$221188,'Building Energy'!$H13,'Energy Benchmarks'!$D$4:$D$221188,$MK$3,'Energy Benchmarks'!$E$4:$E$221188,$M$2,'Energy Benchmarks'!$F$4:$F$221188,ML$4) -> 0 | MM5: ='Demand Scaling'!$F4*'Building Energy'!$O13*SUMIFS('Energy Benchmarks'!$G$4:$G$221188,'Energy Benchmarks'!$A$4:$A$221188,'Building Energy'!$G13,'Energy Benchmarks'!$B$4:$B$221188,'Building Energy'!$H13,'Energy Benchmarks'!$D$4:$D$221188,$MK$3,'Energy Benchmarks'!$E$4:$E$221188,$M$2,'Energy Benchmarks'!$F$4:$F$221188,MM$4) -> 0 | MN5: ='Demand Scaling'!$F4*'Building Energy'!$O13*SUMIFS('Energy Benchmarks'!$G$4:$G$221188,'Energy Benchmarks'!$A$4:$A$221188,'Building Energy'!$G13,'Energy Benchmarks'!$B$4:$B$221188,'Building Energy'!$H13,'Energy Benchmarks'!$D$4:$D$221188,$MK$3,'Energy Benchmarks'!$E$4:$E$221188,$M$2,'Energy Benchmarks'!$F$4:$F$221188,MN$4) -> 0 | MO5: ='Demand Scaling'!$F4*'Building Energy'!$O13*SUMIFS('Energy Benchmarks'!$G$4:$G$221188,'Energy Benchmarks'!$A$4:$A$221188,'Building Energy'!$G13,'Energy Benchmarks'!$B$4:$B$221188,'Building Energy'!$H13,'Energy Benchmarks'!$D$4:$D$221188,$MK$3,'Energy Benchmarks'!$E$4:$E$221188,$M$2,'Energy Benchmarks'!$F$4:$F$221188,MO$4) -> 0 | MP5: ='Demand Scaling'!$F4*'Building Energy'!$O13*SUMIFS('Energy Benchmarks'!$G$4:$G$221188,'Energy Benchmarks'!$A$4:$A$221188,'Building Energy'!$G13,'Energy Benchmarks'!$B$4:$B$221188,'Building Energy'!$H13,'Energy Benchmarks'!$D$4:$D$221188,$MK$3,'Energy Benchmarks'!$E$4:$E$221188,$M$2,'Energy Benchmarks'!$F$4:$F$221188,MP$4) -> 0 | MQ5: ='Demand Scaling'!$F4*'Building Energy'!$O13*SUMIFS('Energy Benchmarks'!$G$4:$G$221188,'Energy Benchmarks'!$A$4:$A$221188,'Building Energy'!$G13,'Energy Benchmarks'!$B$4:$B$221188,'Building Energy'!$H13,'Energy Benchmarks'!$D$4:$D$221188,$MK$3,'Energy Benchmarks'!$E$4:$E$221188,$M$2,'Energy Benchmarks'!$F$4:$F$221188,MQ$4) -> 0 | MR5: ='Demand Scaling'!$F4*'Building Energy'!$O13*SUMIFS('Energy Benchmarks'!$G$4:$G$221188,'Energy Benchmarks'!$A$4:$A$221188,'Building Energy'!$G13,'Energy Benchmarks'!$B$4:$B$221188,'Building Energy'!$H13,'Energy Benchmarks'!$D$4:$D$221188,$MK$3,'Energy Benchmarks'!$E$4:$E$221188,$M$2,'Energy Benchmarks'!$F$4:$F$221188,MR$4) -> 0 | MS5: ='Demand Scaling'!$F4*'Building Energy'!$O13*SUMIFS('Energy Benchmarks'!$G$4:$G$221188,'Energy Benchmarks'!$A$4:$A$221188,'Building Energy'!$G13,'Energy Benchmarks'!$B$4:$B$221188,'Building Energy'!$H13,'Energy Benchmarks'!$D$4:$D$221188,$MK$3,'Energy Benchmarks'!$E$4:$E$221188,$M$2,'Energy Benchmarks'!$F$4:$F$221188,MS$4) -> 0 | MT5: ='Demand Scaling'!$F4*'Building Energy'!$O13*SUMIFS('Energy Benchmarks'!$G$4:$G$221188,'Energy Benchmarks'!$A$4:$A$221188,'Building Energy'!$G13,'Energy Benchmarks'!$B$4:$B$221188,'Building Energy'!$H13,'Energy Benchmarks'!$D$4:$D$221188,$MK$3,'Energy Benchmarks'!$E$4:$E$221188,$M$2,'Energy Benchmarks'!$F$4:$F$221188,MT$4) -> 0 | MU5: ='Demand Scaling'!$F4*'Building Energy'!$O13*SUMIFS('Energy Benchmarks'!$G$4:$G$221188,'Energy Benchmarks'!$A$4:$A$221188,'Building Energy'!$G13,'Energy Benchmarks'!$B$4:$B$221188,'Building Energy'!$H13,'Energy Benchmarks'!$D$4:$D$221188,$MK$3,'Energy Benchmarks'!$E$4:$E$221188,$M$2,'Energy Benchmarks'!$F$4:$F$221188,MU$4) -> 0 | MV5: ='Demand Scaling'!$F4*'Building Energy'!$O13*SUMIFS('Energy Benchmarks'!$G$4:$G$221188,'Energy Benchmarks'!$A$4:$A$221188,'Building Energy'!$G13,'Energy Benchmarks'!$B$4:$B$221188,'Building Energy'!$H13,'Energy Benchmarks'!$D$4:$D$221188,$MK$3,'Energy Benchmarks'!$E$4:$E$221188,$M$2,'Energy Benchmarks'!$F$4:$F$221188,MV$4) -> 0 | MW5: ='Demand Scaling'!$F4*'Building Energy'!$O13*SUMIFS('Energy Benchmarks'!$G$4:$G$221188,'Energy Benchmarks'!$A$4:$A$221188,'Building Energy'!$G13,'Energy Benchmarks'!$B$4:$B$221188,'Building Energy'!$H13,'Energy Benchmarks'!$D$4:$D$221188,$MK$3,'Energy Benchmarks'!$E$4:$E$221188,$M$2,'Energy Benchmarks'!$F$4:$F$221188,MW$4) -> 0 | MX5: ='Demand Scaling'!$F4*'Building Energy'!$O13*SUMIFS('Energy Benchmarks'!$G$4:$G$221188,'Energy Benchmarks'!$A$4:$A$221188,'Building Energy'!$G13,'Energy Benchmarks'!$B$4:$B$221188,'Building Energy'!$H13,'Energy Benchmarks'!$D$4:$D$221188,$MK$3,'Energy Benchmarks'!$E$4:$E$221188,$M$2,'Energy Benchmarks'!$F$4:$F$221188,MX$4) -> 0 | MY5: ='Demand Scaling'!$F4*'Building Energy'!$O13*SUMIFS('Energy Benchmarks'!$G$4:$G$221188,'Energy Benchmarks'!$A$4:$A$221188,'Building Energy'!$G13,'Energy Benchmarks'!$B$4:$B$221188,'Building Energy'!$H13,'Energy Benchmarks'!$D$4:$D$221188,$MK$3,'Energy Benchmarks'!$E$4:$E$221188,$M$2,'Energy Benchmarks'!$F$4:$F$221188,MY$4) -> 0 | MZ5: ='Demand Scaling'!$F4*'Building Energy'!$O13*SUMIFS('Energy Benchmarks'!$G$4:$G$221188,'Energy Benchmarks'!$A$4:$A$221188,'Building Energy'!$G13,'Energy Benchmarks'!$B$4:$B$221188,'Building Energy'!$H13,'Energy Benchmarks'!$D$4:$D$221188,$MK$3,'Energy Benchmarks'!$E$4:$E$221188,$M$2,'Energy Benchmarks'!$F$4:$F$221188,MZ$4) -> 0 | NA5: ='Demand Scaling'!$F4*'Building Energy'!$O13*SUMIFS('Energy Benchmarks'!$G$4:$G$221188,'Energy Benchmarks'!$A$4:$A$221188,'Building Energy'!$G13,'Energy Benchmarks'!$B$4:$B$221188,'Building Energy'!$H13,'Energy Benchmarks'!$D$4:$D$221188,$MK$3,'Energy Benchmarks'!$E$4:$E$221188,$M$2,'Energy Benchmarks'!$F$4:$F$221188,NA$4) -> 0 | NB5: ='Demand Scaling'!$F4*'Building Energy'!$O13*SUMIFS('Energy Benchmarks'!$G$4:$G$221188,'Energy Benchmarks'!$A$4:$A$221188,'Building Energy'!$G13,'Energy Benchmarks'!$B$4:$B$221188,'Building Energy'!$H13,'Energy Benchmarks'!$D$4:$D$221188,$MK$3,'Energy Benchmarks'!$E$4:$E$221188,$M$2,'Energy Benchmarks'!$F$4:$F$221188,NB$4) -> 0 | NC5: ='Demand Scaling'!$F4*'Building Energy'!$O13*SUMIFS('Energy Benchmarks'!$G$4:$G$221188,'Energy Benchmarks'!$A$4:$A$221188,'Building Energy'!$G13,'Energy Benchmarks'!$B$4:$B$221188,'Building Energy'!$H13,'Energy Benchmarks'!$D$4:$D$221188,$MK$3,'Energy Benchmarks'!$E$4:$E$221188,$M$2,'Energy Benchmarks'!$F$4:$F$221188,NC$4) -> 0 | ND5: ='Demand Scaling'!$F4*'Building Energy'!$O13*SUMIFS('Energy Benchmarks'!$G$4:$G$221188,'Energy Benchmarks'!$A$4:$A$221188,'Building Energy'!$G13,'Energy Benchmarks'!$B$4:$B$221188,'Building Energy'!$H13,'Energy Benchmarks'!$D$4:$D$221188,$MK$3,'Energy Benchmarks'!$E$4:$E$221188,$M$2,'Energy Benchmarks'!$F$4:$F$221188,ND$4) -> 0 | NE5: ='Demand Scaling'!$F4*'Building Energy'!$O13*SUMIFS('Energy Benchmarks'!$G$4:$G$221188,'Energy Benchmarks'!$A$4:$A$221188,'Building Energy'!$G13,'Energy Benchmarks'!$B$4:$B$221188,'Building Energy'!$H13,'Energy Benchmarks'!$D$4:$D$221188,$MK$3,'Energy Benchmarks'!$E$4:$E$221188,$M$2,'Energy Benchmarks'!$F$4:$F$221188,NE$4) -> 0 | NF5: ='Demand Scaling'!$F4*'Building Energy'!$O13*SUMIFS('Energy Benchmarks'!$G$4:$G$221188,'Energy Benchmarks'!$A$4:$A$221188,'Building Energy'!$G13,'Energy Benchmarks'!$B$4:$B$221188,'Building Energy'!$H13,'Energy Benchmarks'!$D$4:$D$221188,$MK$3,'Energy Benchmarks'!$E$4:$E$221188,$M$2,'Energy Benchmarks'!$F$4:$F$221188,NF$4) -> 0 | NG5: ='Demand Scaling'!$F4*'Building Energy'!$O13*SUMIFS('Energy Benchmarks'!$G$4:$G$221188,'Energy Benchmarks'!$A$4:$A$221188,'Building Energy'!$G13,'Energy Benchmarks'!$B$4:$B$221188,'Building Energy'!$H13,'Energy Benchmarks'!$D$4:$D$221188,$MK$3,'Energy Benchmarks'!$E$4:$E$221188,$M$2,'Energy Benchmarks'!$F$4:$F$221188,NG$4) -> 0 | NH5: ='Demand Scaling'!$F4*'Building Energy'!$O13*SUMIFS('Energy Benchmarks'!$G$4:$G$221188,'Energy Benchmarks'!$A$4:$A$221188,'Building Energy'!$G13,'Energy Benchmarks'!$B$4:$B$221188,'Building Energy'!$H13,'Energy Benchmarks'!$D$4:$D$221188,$MK$3,'Energy Benchmarks'!$E$4:$E$221188,$M$2,'Energy Benchmarks'!$F$4:$F$221188,NH$4) -> 0 | NI5: ='Demand Scaling'!$F4*'Building Energy'!$O13*SUMIFS('Energy Benchmarks'!$G$4:$G$221188,'Energy Benchmarks'!$A$4:$A$221188,'Building Energy'!$G13,'Energy Benchmarks'!$B$4:$B$221188,'Building Energy'!$H13,'Energy Benchmarks'!$D$4:$D$221188,$MK$3,'Energy Benchmarks'!$E$4:$E$221188,$M$2,'Energy Benchmarks'!$F$4:$F$221188,NI$4) -> 0 | NJ5: ='Demand Scaling'!$F4*'Building Energy'!$O13*SUMIFS('Energy Benchmarks'!$G$4:$G$221188,'Energy Benchmarks'!$A$4:$A$221188,'Building Energy'!$G13,'Energy Benchmarks'!$B$4:$B$221188,'Building Energy'!$H13,'Energy Benchmarks'!$D$4:$D$221188,$MK$3,'Energy Benchmarks'!$E$4:$E$221188,$M$2,'Energy Benchmarks'!$F$4:$F$221188,NJ$4) -> 0 | NK5: ='Demand Scaling'!$F4*'Building Energy'!$O13*SUMIFS('Energy Benchmarks'!$G$4:$G$221188,'Energy Benchmarks'!$A$4:$A$221188,'Building Energy'!$G13,'Energy Benchmarks'!$B$4:$B$221188,'Building Energy'!$H13,'Energy Benchmarks'!$D$4:$D$221188,$MK$3,'Energy Benchmarks'!$E$4:$E$221188,$M$2,'Energy Benchmarks'!$F$4:$F$221188,NK$4) -> 0 | NL5: ='Demand Scaling'!$F4*'Building Energy'!$O13*SUMIFS('Energy Benchmarks'!$G$4:$G$221188,'Energy Benchmarks'!$A$4:$A$221188,'Building Energy'!$G13,'Energy Benchmarks'!$B$4:$B$221188,'Building Energy'!$H13,'Energy Benchmarks'!$D$4:$D$221188,$MK$3,'Energy Benchmarks'!$E$4:$E$221188,$M$2,'Energy Benchmarks'!$F$4:$F$221188,NL$4) -> 0 | NM5: ='Demand Scaling'!$F4*'Building Energy'!$O13*SUMIFS('Energy Benchmarks'!$G$4:$G$221188,'Energy Benchmarks'!$A$4:$A$221188,'Building Energy'!$G13,'Energy Benchmarks'!$B$4:$B$221188,'Building Energy'!$H13,'Energy Benchmarks'!$D$4:$D$221188,$MK$3,'Energy Benchmarks'!$E$4:$E$221188,$M$2,'Energy Benchmarks'!$F$4:$F$221188,NM$4) -> 0 | NN5: ='Demand Scaling'!$F4*'Building Energy'!$O13*SUMIFS('Energy Benchmarks'!$G$4:$G$221188,'Energy Benchmarks'!$A$4:$A$221188,'Building Energy'!$G13,'Energy Benchmarks'!$B$4:$B$221188,'Building Energy'!$H13,'Energy Benchmarks'!$D$4:$D$221188,$MK$3,'Energy Benchmarks'!$E$4:$E$221188,$M$2,'Energy Benchmarks'!$F$4:$F$221188,NN$4) -> 0 | NO5: ='Demand Scaling'!$F4*'Building Energy'!$O13*SUMIFS('Energy Benchmarks'!$G$4:$G$221188,'Energy Benchmarks'!$A$4:$A$221188,'Building Energy'!$G13,'Energy Benchmarks'!$B$4:$B$221188,'Building Energy'!$H13,'Energy Benchmarks'!$D$4:$D$221188,$MK$3,'Energy Benchmarks'!$E$4:$E$221188,$M$2,'Energy Benchmarks'!$F$4:$F$221188,NO$4) -> 0 | NP5: ='Demand Scaling'!$F4*'Building Energy'!$O13*SUMIFS('Energy Benchmarks'!$G$4:$G$221188,'Energy Benchmarks'!$A$4:$A$221188,'Building Energy'!$G13,'Energy Benchmarks'!$B$4:$B$221188,'Building Energy'!$H13,'Energy Benchmarks'!$D$4:$D$221188,$MK$3,'Energy Benchmarks'!$E$4:$E$221188,$M$2,'Energy Benchmarks'!$F$4:$F$221188,NP$4) -> 0 | NQ5: ='Demand Scaling'!$F4*'Building Energy'!$O13*SUMIFS('Energy Benchmarks'!$G$4:$G$221188,'Energy Benchmarks'!$A$4:$A$221188,'Building Energy'!$G13,'Energy Benchmarks'!$B$4:$B$221188,'Building Energy'!$H13,'Energy Benchmarks'!$D$4:$D$221188,$MK$3,'Energy Benchmarks'!$E$4:$E$221188,$M$2,'Energy Benchmarks'!$F$4:$F$221188,NQ$4) -> 0 | NR5: ='Demand Scaling'!$F4*'Building Energy'!$O13*SUMIFS('Energy Benchmarks'!$G$4:$G$221188,'Energy Benchmarks'!$A$4:$A$221188,'Building Energy'!$G13,'Energy Benchmarks'!$B$4:$B$221188,'Building Energy'!$H13,'Energy Benchmarks'!$D$4:$D$221188,$MK$3,'Energy Benchmarks'!$E$4:$E$221188,$M$2,'Energy Benchmarks'!$F$4:$F$221188,NR$4) -> 0 | NS5: ='Demand Scaling'!$F4*'Building Energy'!$O13*SUMIFS('Energy Benchmarks'!$G$4:$G$221188,'Energy Benchmarks'!$A$4:$A$221188,'Building Energy'!$G13,'Energy Benchmarks'!$B$4:$B$221188,'Building Energy'!$H13,'Energy Benchmarks'!$D$4:$D$221188,$MK$3,'Energy Benchmarks'!$E$4:$E$221188,$M$2,'Energy Benchmarks'!$F$4:$F$221188,NS$4) -> 0 | NT5: ='Demand Scaling'!$F4*'Building Energy'!$O13*SUMIFS('Energy Benchmarks'!$G$4:$G$221188,'Energy Benchmarks'!$A$4:$A$221188,'Building Energy'!$G13,'Energy Benchmarks'!$B$4:$B$221188,'Building Energy'!$H13,'Energy Benchmarks'!$D$4:$D$221188,$MK$3,'Energy Benchmarks'!$E$4:$E$221188,$M$2,'Energy Benchmarks'!$F$4:$F$221188,NT$4) -> 0 | NU5: ='Demand Scaling'!$F4*'Building Energy'!$O13*SUMIFS('Energy Benchmarks'!$G$4:$G$221188,'Energy Benchmarks'!$A$4:$A$221188,'Building Energy'!$G13,'Energy Benchmarks'!$B$4:$B$221188,'Building Energy'!$H13,'Energy Benchmarks'!$D$4:$D$221188,$MK$3,'Energy Benchmarks'!$E$4:$E$221188,$M$2,'Energy Benchmarks'!$F$4:$F$221188,NU$4) -> 0 | NV5: ='Demand Scaling'!$F4*'Building Energy'!$O13*SUMIFS('Energy Benchmarks'!$G$4:$G$221188,'Energy Benchmarks'!$A$4:$A$221188,'Building Energy'!$G13,'Energy Benchmarks'!$B$4:$B$221188,'Building Energy'!$H13,'Energy Benchmarks'!$D$4:$D$221188,$MK$3,'Energy Benchmarks'!$E$4:$E$221188,$M$2,'Energy Benchmarks'!$F$4:$F$221188,NV$4) -> 0 | NW5: ='Demand Scaling'!$F4*'Building Energy'!$O13*SUMIFS('Energy Benchmarks'!$G$4:$G$221188,'Energy Benchmarks'!$A$4:$A$221188,'Building Energy'!$G13,'Energy Benchmarks'!$B$4:$B$221188,'Building Energy'!$H13,'Energy Benchmarks'!$D$4:$D$221188,$MK$3,'Energy Benchmarks'!$E$4:$E$221188,$M$2,'Energy Benchmarks'!$F$4:$F$221188,NW$4) -> 0 | NX5: ='Demand Scaling'!$F4*'Building Energy'!$O13*SUMIFS('Energy Benchmarks'!$G$4:$G$221188,'Energy Benchmarks'!$A$4:$A$221188,'Building Energy'!$G13,'Energy Benchmarks'!$B$4:$B$221188,'Building Energy'!$H13,'Energy Benchmarks'!$D$4:$D$221188,$MK$3,'Energy Benchmarks'!$E$4:$E$221188,$M$2,'Energy Benchmarks'!$F$4:$F$221188,NX$4) -> 0 | NY5: ='Demand Scaling'!$F4*'Building Energy'!$O13*SUMIFS('Energy Benchmarks'!$G$4:$G$221188,'Energy Benchmarks'!$A$4:$A$221188,'Building Energy'!$G13,'Energy Benchmarks'!$B$4:$B$221188,'Building Energy'!$H13,'Energy Benchmarks'!$D$4:$D$221188,$MK$3,'Energy Benchmarks'!$E$4:$E$221188,$M$2,'Energy Benchmarks'!$F$4:$F$221188,NY$4) -> 0 | NZ5: ='Demand Scaling'!$F4*'Building Energy'!$O13*SUMIFS('Energy Benchmarks'!$G$4:$G$221188,'Energy Benchmarks'!$A$4:$A$221188,'Building Energy'!$G13,'Energy Benchmarks'!$B$4:$B$221188,'Building Energy'!$H13,'Energy Benchmarks'!$D$4:$D$221188,$MK$3,'Energy Benchmarks'!$E$4:$E$221188,$M$2,'Energy Benchmarks'!$F$4:$F$221188,NZ$4) -> 0 | OA5: ='Demand Scaling'!$F4*'Building Energy'!$O13*SUMIFS('Energy Benchmarks'!$G$4:$G$221188,'Energy Benchmarks'!$A$4:$A$221188,'Building Energy'!$G13,'Energy Benchmarks'!$B$4:$B$221188,'Building Energy'!$H13,'Energy Benchmarks'!$D$4:$D$221188,$MK$3,'Energy Benchmarks'!$E$4:$E$221188,$M$2,'Energy Benchmarks'!$F$4:$F$221188,OA$4) -> 0 | OB5: ='Demand Scaling'!$F4*'Building Energy'!$O13*SUMIFS('Energy Benchmarks'!$G$4:$G$221188,'Energy Benchmarks'!$A$4:$A$221188,'Building Energy'!$G13,'Energy Benchmarks'!$B$4:$B$221188,'Building Energy'!$H13,'Energy Benchmarks'!$D$4:$D$221188,$MK$3,'Energy Benchmarks'!$E$4:$E$221188,$M$2,'Energy Benchmarks'!$F$4:$F$221188,OB$4) -> 0 | OC5: ='Demand Scaling'!$F4*'Building Energy'!$O13*SUMIFS('Energy Benchmarks'!$G$4:$G$221188,'Energy Benchmarks'!$A$4:$A$221188,'Building Energy'!$G13,'Energy Benchmarks'!$B$4:$B$221188,'Building Energy'!$H13,'Energy Benchmarks'!$D$4:$D$221188,$MK$3,'Energy Benchmarks'!$E$4:$E$221188,$M$2,'Energy Benchmarks'!$F$4:$F$221188,OC$4) -> 0 | OD5: ='Demand Scaling'!$F4*'Building Energy'!$O13*SUMIFS('Energy Benchmarks'!$G$4:$G$221188,'Energy Benchmarks'!$A$4:$A$221188,'Building Energy'!$G13,'Energy Benchmarks'!$B$4:$B$221188,'Building Energy'!$H13,'Energy Benchmarks'!$D$4:$D$221188,$MK$3,'Energy Benchmarks'!$E$4:$E$221188,$M$2,'Energy Benchmarks'!$F$4:$F$221188,OD$4) -> 0 | OE5: ='Demand Scaling'!$F4*'Building Energy'!$O13*SUMIFS('Energy Benchmarks'!$G$4:$G$221188,'Energy Benchmarks'!$A$4:$A$221188,'Building Energy'!$G13,'Energy Benchmarks'!$B$4:$B$221188,'Building Energy'!$H13,'Energy Benchmarks'!$D$4:$D$221188,$MK$3,'Energy Benchmarks'!$E$4:$E$221188,$M$2,'Energy Benchmarks'!$F$4:$F$221188,OE$4) -> 0 | OF5: ='Demand Scaling'!$F4*'Building Energy'!$O13*SUMIFS('Energy Benchmarks'!$G$4:$G$221188,'Energy Benchmarks'!$A$4:$A$221188,'Building Energy'!$G13,'Energy Benchmarks'!$B$4:$B$221188,'Building Energy'!$H13,'Energy Benchmarks'!$D$4:$D$221188,$MK$3,'Energy Benchmarks'!$E$4:$E$221188,$M$2,'Energy Benchmarks'!$F$4:$F$221188,OF$4) -> 0 | OG5: ='Demand Scaling'!$F4*'Building Energy'!$O13*SUMIFS('Energy Benchmarks'!$G$4:$G$221188,'Energy Benchmarks'!$A$4:$A$221188,'Building Energy'!$G13,'Energy Benchmarks'!$B$4:$B$221188,'Building Energy'!$H13,'Energy Benchmarks'!$D$4:$D$221188,$OG$3,'Energy Benchmarks'!$E$4:$E$221188,$M$2,'Energy Benchmarks'!$F$4:$F$221188,OG$4) -> 0 | OH5: ='Demand Scaling'!$F4*'Building Energy'!$O13*SUMIFS('Energy Benchmarks'!$G$4:$G$221188,'Energy Benchmarks'!$A$4:$A$221188,'Building Energy'!$G13,'Energy Benchmarks'!$B$4:$B$221188,'Building Energy'!$H13,'Energy Benchmarks'!$D$4:$D$221188,$OG$3,'Energy Benchmarks'!$E$4:$E$221188,$M$2,'Energy Benchmarks'!$F$4:$F$221188,OH$4) -> 0 | OI5: ='Demand Scaling'!$F4*'Building Energy'!$O13*SUMIFS('Energy Benchmarks'!$G$4:$G$221188,'Energy Benchmarks'!$A$4:$A$221188,'Building Energy'!$G13,'Energy Benchmarks'!$B$4:$B$221188,'Building Energy'!$H13,'Energy Benchmarks'!$D$4:$D$221188,$OG$3,'Energy Benchmarks'!$E$4:$E$221188,$M$2,'Energy Benchmarks'!$F$4:$F$221188,OI$4) -> 0 | OJ5: ='Demand Scaling'!$F4*'Building Energy'!$O13*SUMIFS('Energy Benchmarks'!$G$4:$G$221188,'Energy Benchmarks'!$A$4:$A$221188,'Building Energy'!$G13,'Energy Benchmarks'!$B$4:$B$221188,'Building Energy'!$H13,'Energy Benchmarks'!$D$4:$D$221188,$OG$3,'Energy Benchmarks'!$E$4:$E$221188,$M$2,'Energy Benchmarks'!$F$4:$F$221188,OJ$4) -> 0 | OK5: ='Demand Scaling'!$F4*'Building Energy'!$O13*SUMIFS('Energy Benchmarks'!$G$4:$G$221188,'Energy Benchmarks'!$A$4:$A$221188,'Building Energy'!$G13,'Energy Benchmarks'!$B$4:$B$221188,'Building Energy'!$H13,'Energy Benchmarks'!$D$4:$D$221188,$OG$3,'Energy Benchmarks'!$E$4:$E$221188,$M$2,'Energy Benchmarks'!$F$4:$F$221188,OK$4) -> 0 | OL5: ='Demand Scaling'!$F4*'Building Energy'!$O13*SUMIFS('Energy Benchmarks'!$G$4:$G$221188,'Energy Benchmarks'!$A$4:$A$221188,'Building Energy'!$G13,'Energy Benchmarks'!$B$4:$B$221188,'Building Energy'!$H13,'Energy Benchmarks'!$D$4:$D$221188,$OG$3,'Energy Benchmarks'!$E$4:$E$221188,$M$2,'Energy Benchmarks'!$F$4:$F$221188,OL$4) -> 0 | OM5: ='Demand Scaling'!$F4*'Building Energy'!$O13*SUMIFS('Energy Benchmarks'!$G$4:$G$221188,'Energy Benchmarks'!$A$4:$A$221188,'Building Energy'!$G13,'Energy Benchmarks'!$B$4:$B$221188,'Building Energy'!$H13,'Energy Benchmarks'!$D$4:$D$221188,$OG$3,'Energy Benchmarks'!$E$4:$E$221188,$M$2,'Energy Benchmarks'!$F$4:$F$221188,OM$4) -> 0 | ON5: ='Demand Scaling'!$F4*'Building Energy'!$O13*SUMIFS('Energy Benchmarks'!$G$4:$G$221188,'Energy Benchmarks'!$A$4:$A$221188,'Building Energy'!$G13,'Energy Benchmarks'!$B$4:$B$221188,'Building Energy'!$H13,'Energy Benchmarks'!$D$4:$D$221188,$OG$3,'Energy Benchmarks'!$E$4:$E$221188,$M$2,'Energy Benchmarks'!$F$4:$F$221188,ON$4) -> 0 | OO5: ='Demand Scaling'!$F4*'Building Energy'!$O13*SUMIFS('Energy Benchmarks'!$G$4:$G$221188,'Energy Benchmarks'!$A$4:$A$221188,'Building Energy'!$G13,'Energy Benchmarks'!$B$4:$B$221188,'Building Energy'!$H13,'Energy Benchmarks'!$D$4:$D$221188,$OG$3,'Energy Benchmarks'!$E$4:$E$221188,$M$2,'Energy Benchmarks'!$F$4:$F$221188,OO$4) -> 0 | OP5: ='Demand Scaling'!$F4*'Building Energy'!$O13*SUMIFS('Energy Benchmarks'!$G$4:$G$221188,'Energy Benchmarks'!$A$4:$A$221188,'Building Energy'!$G13,'Energy Benchmarks'!$B$4:$B$221188,'Building Energy'!$H13,'Energy Benchmarks'!$D$4:$D$221188,$OG$3,'Energy Benchmarks'!$E$4:$E$221188,$M$2,'Energy Benchmarks'!$F$4:$F$221188,OP$4) -> 0 | OQ5: ='Demand Scaling'!$F4*'Building Energy'!$O13*SUMIFS('Energy Benchmarks'!$G$4:$G$221188,'Energy Benchmarks'!$A$4:$A$221188,'Building Energy'!$G13,'Energy Benchmarks'!$B$4:$B$221188,'Building Energy'!$H13,'Energy Benchmarks'!$D$4:$D$221188,$OG$3,'Energy Benchmarks'!$E$4:$E$221188,$M$2,'Energy Benchmarks'!$F$4:$F$221188,OQ$4) -> 0 | OR5: ='Demand Scaling'!$F4*'Building Energy'!$O13*SUMIFS('Energy Benchmarks'!$G$4:$G$221188,'Energy Benchmarks'!$A$4:$A$221188,'Building Energy'!$G13,'Energy Benchmarks'!$B$4:$B$221188,'Building Energy'!$H13,'Energy Benchmarks'!$D$4:$D$221188,$OG$3,'Energy Benchmarks'!$E$4:$E$221188,$M$2,'Energy Benchmarks'!$F$4:$F$221188,OR$4) -> 0 | OS5: ='Demand Scaling'!$F4*'Building Energy'!$O13*SUMIFS('Energy Benchmarks'!$G$4:$G$221188,'Energy Benchmarks'!$A$4:$A$221188,'Building Energy'!$G13,'Energy Benchmarks'!$B$4:$B$221188,'Building Energy'!$H13,'Energy Benchmarks'!$D$4:$D$221188,$OG$3,'Energy Benchmarks'!$E$4:$E$221188,$M$2,'Energy Benchmarks'!$F$4:$F$221188,OS$4) -> 0 | OT5: ='Demand Scaling'!$F4*'Building Energy'!$O13*SUMIFS('Energy Benchmarks'!$G$4:$G$221188,'Energy Benchmarks'!$A$4:$A$221188,'Building Energy'!$G13,'Energy Benchmarks'!$B$4:$B$221188,'Building Energy'!$H13,'Energy Benchmarks'!$D$4:$D$221188,$OG$3,'Energy Benchmarks'!$E$4:$E$221188,$M$2,'Energy Benchmarks'!$F$4:$F$221188,OT$4) -> 0 | OU5: ='Demand Scaling'!$F4*'Building Energy'!$O13*SUMIFS('Energy Benchmarks'!$G$4:$G$221188,'Energy Benchmarks'!$A$4:$A$221188,'Building Energy'!$G13,'Energy Benchmarks'!$B$4:$B$221188,'Building Energy'!$H13,'Energy Benchmarks'!$D$4:$D$221188,$OG$3,'Energy Benchmarks'!$E$4:$E$221188,$M$2,'Energy Benchmarks'!$F$4:$F$221188,OU$4) -> 0 | OV5: ='Demand Scaling'!$F4*'Building Energy'!$O13*SUMIFS('Energy Benchmarks'!$G$4:$G$221188,'Energy Benchmarks'!$A$4:$A$221188,'Building Energy'!$G13,'Energy Benchmarks'!$B$4:$B$221188,'Building Energy'!$H13,'Energy Benchmarks'!$D$4:$D$221188,$OG$3,'Energy Benchmarks'!$E$4:$E$221188,$M$2,'Energy Benchmarks'!$F$4:$F$221188,OV$4) -> 0 | OW5: ='Demand Scaling'!$F4*'Building Energy'!$O13*SUMIFS('Energy Benchmarks'!$G$4:$G$221188,'Energy Benchmarks'!$A$4:$A$221188,'Building Energy'!$G13,'Energy Benchmarks'!$B$4:$B$221188,'Building Energy'!$H13,'Energy Benchmarks'!$D$4:$D$221188,$OG$3,'Energy Benchmarks'!$E$4:$E$221188,$M$2,'Energy Benchmarks'!$F$4:$F$221188,OW$4) -> 0 | OX5: ='Demand Scaling'!$F4*'Building Energy'!$O13*SUMIFS('Energy Benchmarks'!$G$4:$G$221188,'Energy Benchmarks'!$A$4:$A$221188,'Building Energy'!$G13,'Energy Benchmarks'!$B$4:$B$221188,'Building Energy'!$H13,'Energy Benchmarks'!$D$4:$D$221188,$OG$3,'Energy Benchmarks'!$E$4:$E$221188,$M$2,'Energy Benchmarks'!$F$4:$F$221188,OX$4) -> 0 | OY5: ='Demand Scaling'!$F4*'Building Energy'!$O13*SUMIFS('Energy Benchmarks'!$G$4:$G$221188,'Energy Benchmarks'!$A$4:$A$221188,'Building Energy'!$G13,'Energy Benchmarks'!$B$4:$B$221188,'Building Energy'!$H13,'Energy Benchmarks'!$D$4:$D$221188,$OG$3,'Energy Benchmarks'!$E$4:$E$221188,$M$2,'Energy Benchmarks'!$F$4:$F$221188,OY$4) -> 0 | OZ5: ='Demand Scaling'!$F4*'Building Energy'!$O13*SUMIFS('Energy Benchmarks'!$G$4:$G$221188,'Energy Benchmarks'!$A$4:$A$221188,'Building Energy'!$G13,'Energy Benchmarks'!$B$4:$B$221188,'Building Energy'!$H13,'Energy Benchmarks'!$D$4:$D$221188,$OG$3,'Energy Benchmarks'!$E$4:$E$221188,$M$2,'Energy Benchmarks'!$F$4:$F$221188,OZ$4) -> 0 | PA5: ='Demand Scaling'!$F4*'Building Energy'!$O13*SUMIFS('Energy Benchmarks'!$G$4:$G$221188,'Energy Benchmarks'!$A$4:$A$221188,'Building Energy'!$G13,'Energy Benchmarks'!$B$4:$B$221188,'Building Energy'!$H13,'Energy Benchmarks'!$D$4:$D$221188,$OG$3,'Energy Benchmarks'!$E$4:$E$221188,$M$2,'Energy Benchmarks'!$F$4:$F$221188,PA$4) -> 0 | PB5: ='Demand Scaling'!$F4*'Building Energy'!$O13*SUMIFS('Energy Benchmarks'!$G$4:$G$221188,'Energy Benchmarks'!$A$4:$A$221188,'Building Energy'!$G13,'Energy Benchmarks'!$B$4:$B$221188,'Building Energy'!$H13,'Energy Benchmarks'!$D$4:$D$221188,$OG$3,'Energy Benchmarks'!$E$4:$E$221188,$M$2,'Energy Benchmarks'!$F$4:$F$221188,PB$4) -> 0 | PC5: ='Demand Scaling'!$F4*'Building Energy'!$O13*SUMIFS('Energy Benchmarks'!$G$4:$G$221188,'Energy Benchmarks'!$A$4:$A$221188,'Building Energy'!$G13,'Energy Benchmarks'!$B$4:$B$221188,'Building Energy'!$H13,'Energy Benchmarks'!$D$4:$D$221188,$OG$3,'Energy Benchmarks'!$E$4:$E$221188,$M$2,'Energy Benchmarks'!$F$4:$F$221188,PC$4) -> 0 | PD5: ='Demand Scaling'!$F4*'Building Energy'!$O13*SUMIFS('Energy Benchmarks'!$G$4:$G$221188,'Energy Benchmarks'!$A$4:$A$221188,'Building Energy'!$G13,'Energy Benchmarks'!$B$4:$B$221188,'Building Energy'!$H13,'Energy Benchmarks'!$D$4:$D$221188,$OG$3,'Energy Benchmarks'!$E$4:$E$221188,$M$2,'Energy Benchmarks'!$F$4:$F$221188,PD$4) -> 0 | PE5: ='Demand Scaling'!$F4*'Building Energy'!$O13*SUMIFS('Energy Benchmarks'!$G$4:$G$221188,'Energy Benchmarks'!$A$4:$A$221188,'Building Energy'!$G13,'Energy Benchmarks'!$B$4:$B$221188,'Building Energy'!$H13,'Energy Benchmarks'!$D$4:$D$221188,$OG$3,'Energy Benchmarks'!$E$4:$E$221188,$M$2,'Energy Benchmarks'!$F$4:$F$221188,PE$4) -> 0 | PF5: ='Demand Scaling'!$F4*'Building Energy'!$O13*SUMIFS('Energy Benchmarks'!$G$4:$G$221188,'Energy Benchmarks'!$A$4:$A$221188,'Building Energy'!$G13,'Energy Benchmarks'!$B$4:$B$221188,'Building Energy'!$H13,'Energy Benchmarks'!$D$4:$D$221188,$OG$3,'Energy Benchmarks'!$E$4:$E$221188,$M$2,'Energy Benchmarks'!$F$4:$F$221188,PF$4) -> 0 | PG5: ='Demand Scaling'!$F4*'Building Energy'!$O13*SUMIFS('Energy Benchmarks'!$G$4:$G$221188,'Energy Benchmarks'!$A$4:$A$221188,'Building Energy'!$G13,'Energy Benchmarks'!$B$4:$B$221188,'Building Energy'!$H13,'Energy Benchmarks'!$D$4:$D$221188,$OG$3,'Energy Benchmarks'!$E$4:$E$221188,$M$2,'Energy Benchmarks'!$F$4:$F$221188,PG$4) -> 0 | PH5: ='Demand Scaling'!$F4*'Building Energy'!$O13*SUMIFS('Energy Benchmarks'!$G$4:$G$221188,'Energy Benchmarks'!$A$4:$A$221188,'Building Energy'!$G13,'Energy Benchmarks'!$B$4:$B$221188,'Building Energy'!$H13,'Energy Benchmarks'!$D$4:$D$221188,$OG$3,'Energy Benchmarks'!$E$4:$E$221188,$M$2,'Energy Benchmarks'!$F$4:$F$221188,PH$4) -> 0 | PI5: ='Demand Scaling'!$F4*'Building Energy'!$O13*SUMIFS('Energy Benchmarks'!$G$4:$G$221188,'Energy Benchmarks'!$A$4:$A$221188,'Building Energy'!$G13,'Energy Benchmarks'!$B$4:$B$221188,'Building Energy'!$H13,'Energy Benchmarks'!$D$4:$D$221188,$OG$3,'Energy Benchmarks'!$E$4:$E$221188,$M$2,'Energy Benchmarks'!$F$4:$F$221188,PI$4) -> 0 | PJ5: ='Demand Scaling'!$F4*'Building Energy'!$O13*SUMIFS('Energy Benchmarks'!$G$4:$G$221188,'Energy Benchmarks'!$A$4:$A$221188,'Building Energy'!$G13,'Energy Benchmarks'!$B$4:$B$221188,'Building Energy'!$H13,'Energy Benchmarks'!$D$4:$D$221188,$OG$3,'Energy Benchmarks'!$E$4:$E$221188,$M$2,'Energy Benchmarks'!$F$4:$F$221188,PJ$4) -> 0 | PK5: ='Demand Scaling'!$F4*'Building Energy'!$O13*SUMIFS('Energy Benchmarks'!$G$4:$G$221188,'Energy Benchmarks'!$A$4:$A$221188,'Building Energy'!$G13,'Energy Benchmarks'!$B$4:$B$221188,'Building Energy'!$H13,'Energy Benchmarks'!$D$4:$D$221188,$OG$3,'Energy Benchmarks'!$E$4:$E$221188,$M$2,'Energy Benchmarks'!$F$4:$F$221188,PK$4) -> 0 | PL5: ='Demand Scaling'!$F4*'Building Energy'!$O13*SUMIFS('Energy Benchmarks'!$G$4:$G$221188,'Energy Benchmarks'!$A$4:$A$221188,'Building Energy'!$G13,'Energy Benchmarks'!$B$4:$B$221188,'Building Energy'!$H13,'Energy Benchmarks'!$D$4:$D$221188,$OG$3,'Energy Benchmarks'!$E$4:$E$221188,$M$2,'Energy Benchmarks'!$F$4:$F$221188,PL$4) -> 0 | PM5: ='Demand Scaling'!$F4*'Building Energy'!$O13*SUMIFS('Energy Benchmarks'!$G$4:$G$221188,'Energy Benchmarks'!$A$4:$A$221188,'Building Energy'!$G13,'Energy Benchmarks'!$B$4:$B$221188,'Building Energy'!$H13,'Energy Benchmarks'!$D$4:$D$221188,$OG$3,'Energy Benchmarks'!$E$4:$E$221188,$M$2,'Energy Benchmarks'!$F$4:$F$221188,PM$4) -> 0 | PN5: ='Demand Scaling'!$F4*'Building Energy'!$O13*SUMIFS('Energy Benchmarks'!$G$4:$G$221188,'Energy Benchmarks'!$A$4:$A$221188,'Building Energy'!$G13,'Energy Benchmarks'!$B$4:$B$221188,'Building Energy'!$H13,'Energy Benchmarks'!$D$4:$D$221188,$OG$3,'Energy Benchmarks'!$E$4:$E$221188,$M$2,'Energy Benchmarks'!$F$4:$F$221188,PN$4) -> 0 | PO5: ='Demand Scaling'!$F4*'Building Energy'!$O13*SUMIFS('Energy Benchmarks'!$G$4:$G$221188,'Energy Benchmarks'!$A$4:$A$221188,'Building Energy'!$G13,'Energy Benchmarks'!$B$4:$B$221188,'Building Energy'!$H13,'Energy Benchmarks'!$D$4:$D$221188,$OG$3,'Energy Benchmarks'!$E$4:$E$221188,$M$2,'Energy Benchmarks'!$F$4:$F$221188,PO$4) -> 0 | PP5: ='Demand Scaling'!$F4*'Building Energy'!$O13*SUMIFS('Energy Benchmarks'!$G$4:$G$221188,'Energy Benchmarks'!$A$4:$A$221188,'Building Energy'!$G13,'Energy Benchmarks'!$B$4:$B$221188,'Building Energy'!$H13,'Energy Benchmarks'!$D$4:$D$221188,$OG$3,'Energy Benchmarks'!$E$4:$E$221188,$M$2,'Energy Benchmarks'!$F$4:$F$221188,PP$4) -> 0 | PQ5: ='Demand Scaling'!$F4*'Building Energy'!$O13*SUMIFS('Energy Benchmarks'!$G$4:$G$221188,'Energy Benchmarks'!$A$4:$A$221188,'Building Energy'!$G13,'Energy Benchmarks'!$B$4:$B$221188,'Building Energy'!$H13,'Energy Benchmarks'!$D$4:$D$221188,$OG$3,'Energy Benchmarks'!$E$4:$E$221188,$M$2,'Energy Benchmarks'!$F$4:$F$221188,PQ$4) -> 0 | PR5: ='Demand Scaling'!$F4*'Building Energy'!$O13*SUMIFS('Energy Benchmarks'!$G$4:$G$221188,'Energy Benchmarks'!$A$4:$A$221188,'Building Energy'!$G13,'Energy Benchmarks'!$B$4:$B$221188,'Building Energy'!$H13,'Energy Benchmarks'!$D$4:$D$221188,$OG$3,'Energy Benchmarks'!$E$4:$E$221188,$M$2,'Energy Benchmarks'!$F$4:$F$221188,PR$4) -> 0 | PS5: ='Demand Scaling'!$F4*'Building Energy'!$O13*SUMIFS('Energy Benchmarks'!$G$4:$G$221188,'Energy Benchmarks'!$A$4:$A$221188,'Building Energy'!$G13,'Energy Benchmarks'!$B$4:$B$221188,'Building Energy'!$H13,'Energy Benchmarks'!$D$4:$D$221188,$OG$3,'Energy Benchmarks'!$E$4:$E$221188,$M$2,'Energy Benchmarks'!$F$4:$F$221188,PS$4) -> 0 | PT5: ='Demand Scaling'!$F4*'Building Energy'!$O13*SUMIFS('Energy Benchmarks'!$G$4:$G$221188,'Energy Benchmarks'!$A$4:$A$221188,'Building Energy'!$G13,'Energy Benchmarks'!$B$4:$B$221188,'Building Energy'!$H13,'Energy Benchmarks'!$D$4:$D$221188,$OG$3,'Energy Benchmarks'!$E$4:$E$221188,$M$2,'Energy Benchmarks'!$F$4:$F$221188,PT$4) -> 0 | PU5: ='Demand Scaling'!$F4*'Building Energy'!$O13*SUMIFS('Energy Benchmarks'!$G$4:$G$221188,'Energy Benchmarks'!$A$4:$A$221188,'Building Energy'!$G13,'Energy Benchmarks'!$B$4:$B$221188,'Building Energy'!$H13,'Energy Benchmarks'!$D$4:$D$221188,$OG$3,'Energy Benchmarks'!$E$4:$E$221188,$M$2,'Energy Benchmarks'!$F$4:$F$221188,PU$4) -> 0 | PV5: ='Demand Scaling'!$F4*'Building Energy'!$O13*SUMIFS('Energy Benchmarks'!$G$4:$G$221188,'Energy Benchmarks'!$A$4:$A$221188,'Building Energy'!$G13,'Energy Benchmarks'!$B$4:$B$221188,'Building Energy'!$H13,'Energy Benchmarks'!$D$4:$D$221188,$OG$3,'Energy Benchmarks'!$E$4:$E$221188,$M$2,'Energy Benchmarks'!$F$4:$F$221188,PV$4) -> 0 | PW5: ='Demand Scaling'!$F4*'Building Energy'!$O13*SUMIFS('Energy Benchmarks'!$G$4:$G$221188,'Energy Benchmarks'!$A$4:$A$221188,'Building Energy'!$G13,'Energy Benchmarks'!$B$4:$B$221188,'Building Energy'!$H13,'Energy Benchmarks'!$D$4:$D$221188,$OG$3,'Energy Benchmarks'!$E$4:$E$221188,$M$2,'Energy Benchmarks'!$F$4:$F$221188,PW$4) -> 0 | PX5: ='Demand Scaling'!$F4*'Building Energy'!$O13*SUMIFS('Energy Benchmarks'!$G$4:$G$221188,'Energy Benchmarks'!$A$4:$A$221188,'Building Energy'!$G13,'Energy Benchmarks'!$B$4:$B$221188,'Building Energy'!$H13,'Energy Benchmarks'!$D$4:$D$221188,$OG$3,'Energy Benchmarks'!$E$4:$E$221188,$M$2,'Energy Benchmarks'!$F$4:$F$221188,PX$4) -> 0 | PY5: ='Demand Scaling'!$F4*'Building Energy'!$O13*SUMIFS('Energy Benchmarks'!$G$4:$G$221188,'Energy Benchmarks'!$A$4:$A$221188,'Building Energy'!$G13,'Energy Benchmarks'!$B$4:$B$221188,'Building Energy'!$H13,'Energy Benchmarks'!$D$4:$D$221188,$OG$3,'Energy Benchmarks'!$E$4:$E$221188,$M$2,'Energy Benchmarks'!$F$4:$F$221188,PY$4) -> 0 | PZ5: ='Demand Scaling'!$F4*'Building Energy'!$O13*SUMIFS('Energy Benchmarks'!$G$4:$G$221188,'Energy Benchmarks'!$A$4:$A$221188,'Building Energy'!$G13,'Energy Benchmarks'!$B$4:$B$221188,'Building Energy'!$H13,'Energy Benchmarks'!$D$4:$D$221188,$OG$3,'Energy Benchmarks'!$E$4:$E$221188,$M$2,'Energy Benchmarks'!$F$4:$F$221188,PZ$4) -> 0 | QA5: ='Demand Scaling'!$F4*'Building Energy'!$O13*SUMIFS('Energy Benchmarks'!$G$4:$G$221188,'Energy Benchmarks'!$A$4:$A$221188,'Building Energy'!$G13,'Energy Benchmarks'!$B$4:$B$221188,'Building Energy'!$H13,'Energy Benchmarks'!$D$4:$D$221188,$OG$3,'Energy Benchmarks'!$E$4:$E$221188,$M$2,'Energy Benchmarks'!$F$4:$F$221188,QA$4) -> 0 | QB5: ='Demand Scaling'!$F4*'Building Energy'!$O13*SUMIFS('Energy Benchmarks'!$G$4:$G$221188,'Energy Benchmarks'!$A$4:$A$221188,'Building Energy'!$G13,'Energy Benchmarks'!$B$4:$B$221188,'Building Energy'!$H13,'Energy Benchmarks'!$D$4:$D$221188,$OG$3,'Energy Benchmarks'!$E$4:$E$221188,$M$2,'Energy Benchmarks'!$F$4:$F$221188,QB$4) -> 0
